Workbook

Sheet Contents
B1: =SheetHeader -> REGULATORY REPORTING STATEMENT
B2: =dms_TradingName -> AusNet (D)
B3: =CONCATENATE(FRCP_y1," to ",FRCP_y5) -> 2016 to 2020
B4: CONTENTS
E7: 1. Business details | L7: 2. Expenditure | S7: 3. Economic benchmarking
E27: 4. Alternative control services | L27: 5. Network information | S27: 6. Service & quality
E34: 7. Other templates

Sheet Instructions
B1: =SheetHeader -> REGULATORY REPORTING STATEMENT
B2: =dms_TradingName -> AusNet (D)
B3: =CONCATENATE(FRCP_y1," to ",FRCP_y5) -> 2016 to 2020
B4: INSTRUCTIONS
B6: INSTRUCTIONS FOR USE
B7: =CONCATENATE(dms_TradingName, " must fill out and submit the regulatory templates in this spreadsheet as part of its regulatory proposal.") -> AusNet (D) must fill out and submit the regulatory templates in this spreadsheet as part of its regulatory proposal.
B8: Please ensure that tab 1.0 Business and other details is complete before populating data cells.

Sheet 1.0 Business & other details
B1: =(LOOKUP(dms_Model,J15:J22,K15:K31)) -> REGULATORY REPORTING STATEMENT | J1: Data is in this column used for data validation and database purposes.
B2: =dms_TradingName -> AusNet (D)
B3: =CONCATENATE(FRCP_y1," to ",FRCP_y5) -> 2016 to 2020 | C3: =CONCATENATE(LEFT(FRCP_y1,4),"-",LEFT(FRCP_y5,2),RIGHT(FRCP_y5,2)) -> 2016-2020
B4: 1.0 BUSINESS & OTHER DETAILS
B7: Instructions
B8: Complete the following business details regulatory template before entering data or values in any other regulatory template. This regulatory template is linked to other cells within the spreadsheet and automatically generates column headings.
B10: TABLE 1.2.1 - SUBMISSION PARTICULARS INPUT SHEETS
B12: Entity details
B14: Trading name | C14: AusNet (D)
B15: ACN / ABN | C15: =INDEX(dms_ABN_List,MATCH(dms_TradingName,dms_TradingName_List)) -> 91064651118 | J15: CA | K15: CATEGORY ANALYSIS
J16: CAM/Service change Backcast | K16: REGULATORY REPORTING STATEMENT
J17: CPI | K17: CPI
B18: Business address | C18: Address 1 | E18: 2 Southbank Boulevard | J18: EB | K18: ECONOMIC BENCHMARKING
D19: Address 2 | J19: PTRM | K19: POST TAX REVENUE MODEL
C20: Suburb | E20: Southbank | J20: Reset | K20: REGULATORY REPORTING STATEMENT
D21: State | E21: Vic | G21: 3008 | J21: RFM | K21: ROLL FORWARD MODEL
J22: WACC | K22: WEIGHTED AVERAGE COST OF CAPITAL
B23: Postal address | C23: Address 1 | E23: 2 Southbank Boulevard
D24: Address 2
C25: Suburb | E25: Southbank
D26: State | E26: Vic | F26: p/code | G26: 3008
J27: ActewAGL Distribution | K27: 76670568688
J28: Ausgrid | K28: 67505337385
B29: Contact name/s | C29: Anh Mai | F29: Katie Yates | J29: AusNet (D) | K29: 91064651118
B30: Contact phone/s | C30: 03 9695 6627 | F30: 03 9695 6622 | J30: AusNet (T) | K30: 78079798173
B31: Contact email address/s | C31: anh.mai@ausnetservices.com.au | F31: katie.yates@ausnetservices.com.au | J31: Citipower | K31: 76064651056
J32: Electranet | K32: 41094482416
B33: Regulatory control period details | J33: Endeavour Energy | K33: 59253130878
J34: Energex | K34: 40078849055
B35: Forthcoming regulatory control period | C35: =CONCATENATE(IF(dms_RPT="Calendar",G38+1,(LEFT(G38,4)+1&"-"&IF(MID(G38,6,2)<"09","0"&RIGHT(G38,1)+1,RIGHT(G38,2)+1)))) -> 2016 | D35: =CONCATENATE(IF(dms_RPT="Calendar",C35+1,(LEFT(C35,4)+1&"-"&IF(MID(C35,6,2)<"09","0"&RIGHT(C35,1)+1,RIGHT(C35,2)+1)))) -> 2017 | E35: =CONCATENATE(IF(dms_RPT="Calendar",D35+1,(LEFT(D35,4)+1&"-"&IF(MID(D35,6,2)<"09","0"&RIGHT(D35,1)+1,RIGHT(D35,2)+1)))) -> 2018 | F35: =CONCATENATE(IF(dms_RPT="Calendar",E35+1,(LEFT(E35,4)+1&"-"&IF(MID(E35,6,2)<"09","0"&RIGHT(E35,1)+1,RIGHT(E35,2)+1)))) -> 2019 | G35: =CONCATENATE(IF(dms_RPT="Calendar",F35+1,(LEFT(F35,4)+1&"-"&IF(MID(F35,6,2)<"09","0"&RIGHT(F35,1)+1,RIGHT(F35,2)+1)))) -> 2020 | J35: Ergon Energy | K35: 50087646062
J36: Essential Energy | K36: 37428185226
J37: Jemena Electricity | K37: 82064651083
B38: Current regulatory control period | C38: 2011 | D38: =CONCATENATE(IF(dms_RPT="Calendar",C38+1,(LEFT(C38,4)+1&"-"&IF(MID(C38,6,2)<"09","0"&RIGHT(C38,1)+1,RIGHT(C38,2)+1)))) -> 2012 | E38: =CONCATENATE(IF(dms_RPT="Calendar",D38+1,(LEFT(D38,4)+1&"-"&IF(MID(D38,6,2)<"09","0"&RIGHT(D38,1)+1,RIGHT(D38,2)+1)))) -> 2013 | F38: =CONCATENATE(IF(dms_RPT="Calendar",E38+1,(LEFT(E38,4)+1&"-"&IF(MID(E38,6,2)<"09","0"&RIGHT(E38,1)+1,RIGHT(E38,2)+1)))) -> 2014 | G38: =CONCATENATE(IF(dms_RPT="Calendar",F38+1,(LEFT(F38,4)+1&"-"&IF(MID(F38,6,2)<"09","0"&RIGHT(F38,1)+1,RIGHT(F38,2)+1)))) -> 2015 | J38: Powercor Australia | K38: 89064651109
J39: Powerlink | K39: 82078849233
J40: Qld,SA &ACT Gas Reset | K40: 22222222222
B41: Previous regulatory control period | C41: =CONCATENATE(IF(dms_RPT="Calendar",D41-1,(LEFT(D41,4)-1&"-"&IF(MID(D41,3,1)="0","0"&RIGHT(D41,2)-1,RIGHT(D41,2)-1)))) -> 2006 | D41: =CONCATENATE(IF(dms_RPT="Calendar",E41-1,(LEFT(E41,4)-1&"-"&IF(MID(E41,3,1)="0","0"&RIGHT(E41,2)-1,RIGHT(E41,2)-1)))) -> 2007 | E41: =CONCATENATE(IF(dms_RPT="Calendar",F41-1,(LEFT(F41,4)-1&"-"&IF(MID(F41,3,1)="0","0"&RIGHT(F41,2)-1,RIGHT(F41,2)-1)))) -> 2008 | F41: =CONCATENATE(IF(dms_RPT="Calendar",G41-1,(LEFT(G41,4)-1&"-"&IF(MID(G41,3,1)="0","0"&RIGHT(G41,2)-1,RIGHT(G41,2)-1)))) -> 2009 | G41: =CONCATENATE(IF(dms_RPT="Calendar",C38-1,(LEFT(C38,4)-1&"-"&IF(MID(C38,3,1)="0","0"&RIGHT(C38,2)-1,RIGHT(C38,2)-1)))) -> 2010 | J41: SA Power Networks | K41: 13332330749
J42: TasNetworks (D) | K42: 24167357299
J43: TasNetworks (T) | K43: 24167357299
B44: Sector | C44: Electricity | J44: TransGrid | K44: 19622755774
B45: Segment | C45: Distribution | J45: United Energy | K45: 70064651029
B46: Source | C46: Regulatory proposal | J46: Victorian DNSP Backcasting | K46: 33333333666
B47: Regulatory Year Ending | C47: =CONCATENATE(LEFT(G38, 2) &IF(G38>"2009-10",,"") &RIGHT(G38,2)) -> 2015 | J47: Victorian DNSP Reset | K47: 33333333333
B48: Reporting Period Type | C48: =IF(LEN(CRCP_y1)>4,"Financial","Calendar") -> Calendar
B49: Model or RIN Type | C49: Reset
B50: Security Classification | C50: Confidential
B51: Data quality (Actual, estimate, public, consolidated) | C51: Public
B52: RIN response - version no. | C52: 1
B53: Amended RIN submission - amendment reason
B54: Template - version no. | C54: 1
B55: $ real (the last month before the FRCP_y1) | C55: =CONCATENATE(IF(C48="Financial","June ","December "),(IF(C48="Financial",LEFT(G38,2),LEFT(G38,2))&(RIGHT(G38,2)))) -> December 2015
B56: Previous $ real - End Year 5 | C56: =CONCATENATE(IF(C48="Financial","June ","December "),(IF(C48="Financial",LEFT(G41,2),LEFT(G38,2))&(RIGHT(G41,2)))) -> December 2010
B57: Previous $ real - Beginning Year 1 | C57: =CONCATENATE(IF(C48="Financial","July ","January "),(LEFT(C41,4))) -> January 2006
B58: EBSS - First application of scheme in forthcoming period? | C58: No

Sheet 2.1 Expenditure summary
C1: =SheetHeader -> REGULATORY REPORTING STATEMENT
C2: =dms_TradingName -> AusNet (D)
C3: =FRCP_span -> 2016 to 2020
C4: 2.1 EXPENDITURE SUMMARY & RECONCILIATION
C8: TABLE 2.1.1 - STANDARD CONTROL SERVICES CAPEX
D10: =CONCATENATE("Forecast ($0's, real ", dms_DollarReal, ")") -> Forecast ($0's, real December 2015)
D11: =CRCP_y5 -> 2015 | E11: =FRCP -> 2016 | F11: 2017 | G11: 2018 | H11: 2019 | I11: 2020
A12: ED_EXP211_00001 | C12: Replacement expenditure | D12: 182095684.7 | E12: 151740392.4 | F12: 159136978.6 | G12: 159424920.1 | H12: 163425102.2 | I12: 155964325.9
A13: ED_EXP211_00002 | C13: Connections | D13: 74188787.52 | E13: 80744800.91 | F13: 80123765.42 | G13: 83068262.51 | H13: 79381956.61 | I13: 79707119.96
A14: ED_EXP211_00003 | C14: Augmentation Expenditure | D14: 78937724.31 | E14: 69728804.7 | F14: 80400711.33 | G14: 60946862.57 | H14: 56261182.96 | I14: 58171023.52
A15: ED_EXP211_00004 | C15: Non-network | D15: 22471454.74 | E15: 50757085.24 | F15: 73441231.82 | G15: 42619988.08 | H15: 47064766.49 | I15: 39667141.82
A16: ED_EXP211_00005 | C16: Capitalised network overheads | D16: 23302401.78 | E16: 22945516.56 | F16: 24093503.01 | G16: 23396589.62 | H16: 23406838.36 | I16: 23481360.64
A17: ED_EXP211_00006 | C17: Capitalised corporate overheads | D17: 11248517.67 | E17: 11076242.31 | F17: 11630397.45 | G17: 11293983.95 | H17: 11298931.22 | I17: 11334904.56
C18: TOTAL GROSS CAPEX (includes capcons) | D18: =SUM(D12:D17) -> 392244570.7 | E18: 386992842.1 | F18: 428826587.6 | G18: 380750606.8 | H18: 380838777.9 | I18: 368325876.4
A19: ED_EXP211_00024 | C19: capcons | D19: 36738111.48 | E19: 39336106.44 | F19: 38956561.62 | G19: 40520062.11 | H19: 38661075.32 | I19: 38927886.81
C21: TABLE 2.1.2 - STANDARD CONTROL SERVICES OPEX BY CATEGORY
D23: =CONCATENATE("Forecast ($0's, real ", dms_DollarReal, ")") -> Forecast ($0's, real December 2015)
D24: =CRCP_y5 -> 2015
A25: ED_EXP212_00001 | C25: Vegetation management | D25: 36315856.69
A26: ED_EXP212_00002 | C26: Maintenance | D26: 30982707.56
A27: ED_EXP212_00003 | C27: Emergency response | D27: 17560825.9
A28: ED_EXP212_00004 | C28: Non-network | D28: 32428620.89
A29: ED_EXP212_00005 | C29: Network overheads | D29: 51872542.01
A30: ED_EXP212_00006 | C30: Corporate overheads | D30: 29170453.09
C31: TOTAL OPEX | D31: =SUM(D25:D30) -> 198331006.1
C33: TABLE 2.1.3 - ALTERNATIVE CONTROL SERVICES CAPEX
D35: =CONCATENATE("Forecast ($0's, real ", dms_DollarReal, ")") -> Forecast ($0's, real December 2015)
D36: =CRCP_y5 -> 2015 | E36: =FRCP -> 2016 | F36: 2017 | G36: 2018 | H36: 2019 | I36: 2020
A37: ED_EXP213_00001 | C37: Connections | D37: 3173649.504 | E37: 3689161.201 | F37: 3980382.141 | G37: 3991310.26 | H37: 3888060.692 | I37: 3915933.053
A38: ED_EXP213_00002 | C38: Metering | D38: 35995644.05 | E38: 17690044.02 | F38: 13958049.7 | G38: 16026247.1 | H38: 17236633.72 | I38: 18424061.43
A39: ED_EXP213_00003 | C39: Public lighting | D39: 2360342.356 | E39: 2000256.147 | F39: 1964308.08 | G39: 1920930.665 | H39: 1884563.895 | I39: 1854913.172
A40: ED_EXP213_00004 | C40: Fee and quoted | D40: 0 | E40: 0 | F40: 0 | G40: 0 | H40: 0 | I40: 0
C41: TOTAL CAPEX | D41: =SUM(D37:D40) -> 41529635.91 | E41: 23379461.37 | F41: 19902739.93 | G41: 21938488.03 | H41: 23009258.3 | I41: 24194907.65
C43: TABLE 2.1.4 - ALTERNATIVE CONTROL SERVICES OPEX
D45: =CONCATENATE("Forecast ($0's, real ", dms_DollarReal, ")") -> Forecast ($0's, real December 2015)
D46: =CRCP_y5 -> 2015 | E46: =FRCP -> 2016 | F46: 2017 | G46: 2018 | H46: 2019 | I46: 2020
A47: ED_EXP214_00001 | C47: Connections | D47: 0 | E47: 0 | F47: 0 | G47: 0 | H47: 0 | I47: 0
A48: ED_EXP214_00002 | C48: Metering | D48: 11866240.08 | E48: 12000732.62 | F48: 11217784.09 | G48: 10508452.04 | H48: 10785592.91 | I48: 10974495.55
A49: ED_EXP214_00003 | C49: Public lighting | D49: 2197480.81 | E49: 5222581.799 | F49: 5258670.397 | G49: 5299440.87 | H49: 5342837.37 | I49: 5388724.339
A50: ED_EXP214_00004 | C50: Fee and quoted | D50: 6361435.234 | E50: 9942169.281 | F50: 5053557.479 | G50: 5021497.773 | H50: 5014546.394 | I50: 5026999.588
C51: TOTAL OPEX | D51: =SUM(D47:D50) -> 20425156.12 | E51: 27165483.7 | F51: 21530011.97 | G51: 20829390.68 | H51: 21142976.67 | I51: 21390219.48
C53: TABLE 2.1.5 - DUAL FUNCTION ASSETS CAPEX
D55: =CONCATENATE("Forecast ($0's, real ", dms_DollarReal, ")") -> Forecast ($0's, real December 2015)
D56: =CRCP_y5 -> 2015 | E56: =FRCP -> 2016 | F56: 2017 | G56: 2018 | H56: 2019 | I56: 2020
A57: ED_EXP215_00001 | C57: Replacement expenditure
A58: ED_EXP215_00002 | C58: Connections
A59: ED_EXP215_00003 | C59: Augmentation Expenditure
A60: ED_EXP215_00004 | C60: Non-network
A61: ED_EXP215_00005 | C61: Capitalised network overheads
A62: ED_EXP215_00006 | C62: Capitalised corporate overheads
C63: TOTAL GROSS CAPEX (includes capcons) | D63: =SUM(D57:D62) -> 0 | E63: 0 | F63: 0 | G63: 0 | H63: 0 | I63: 0
A64: ED_EXP215_00023 | C64: capcons
C66: TABLE 2.1.6 - DUAL FUNCTION ASSETS OPEX BY CATEGORY
D68: Forecast ($0's real June 2015)
D70: =CRCP_y5 -> 2015
A71: ED_EXP216_00001 | C71: Vegetation management
A72: ED_EXP216_00002 | C72: Maintenance
A73: ED_EXP216_00003 | C73: Emergency response
A74: ED_EXP216_00004 | C74: Non-network
A75: ED_EXP216_00005 | C75: network overheads
A76: ED_EXP216_00006 | C76: corporate overheads
A77: ED_EXP216_00006
A78: ED_EXP216_00006
A79: ED_EXP216_00006
A80: ED_EXP216_00006
A81: ED_EXP216_00006
A82: ED_EXP216_00006
A83: ED_EXP216_00006
A84: ED_EXP216_00006
A85: ED_EXP216_00006
A86: ED_EXP216_00006
A87: ED_EXP216_00006
A88: ED_EXP216_00006
A89: ED_EXP216_00006
A90: ED_EXP216_00006
A91: ED_EXP216_00006
A92: ED_EXP216_00007 | C92: balancing item
C93: TOTAL OPEX | D93: =SUM(D71:D92) -> 0

Sheet 2.3 Augex
C1: =SheetHeader -> REGULATORY REPORTING STATEMENT | G1: Worksheet navigation
C2: =dms_TradingName -> Victorian DNSP Reset
C3: =FRCP_span -> 2016 to 2020
C4: 2.3 AUGEX PROJECT DATA
C7: TABLE 2.3.1 - AUGEX ASSET DATA - SUBTRANSMISSION SUBSTATIONS, SWITCHING STATIONS AND ZONE SUBSTATIONS
C8: NOTE: DNSP must provide expenditure information on an 'as incurred' basis.
A9: AUG231 | C9: AUG231_1 | D9: AUG231_2 | E9: AUG231_3 | F9: AUG231_4 | G9: AUG231_5 | H9: AUG231_6 | I9: ED_AUG231_00001 | J9: ED_AUG231_00002 | K9: ED_AUG231_00003 | L9: ED_AUG231_00004 | M9: ED_AUG231_00005 | N9: ED_AUG231_00006 | O9: ED_AUG231_00007 | P9: ED_AUG231_00008 | Q9: ED_AUG231_00009 | R9: ED_AUG231_00010 | S9: ED_AUG231_00011 | T9: ED_AUG231_00012 | U9: ED_AUG231_00013 | V9: ED_AUG231_00014 | W9: ED_AUG231_00015 | X9: ED_AUG231_00016 | Y9: ED_AUG231_00017 | Z9: ED_AUG231_00018 | AA9: ED_AUG231_00019 | AB9: ED_AUG231_00020 | AC9: ED_AUG231_00021 | AD9: ED_AUG231_00022 | AE9: ED_AUG231_00023
C10: PROJECT DESCRIPTION AND CHANGES | M10: PLANT AND EQUIPMENT EXPENDITURE AND VOLUME | W10: OTHER EXPENDITURE | Y10: TOTAL DIRECT EXPENDITURE ($0's) | Z10: YEARS INCURRED | AA10: ALL RELATED PARTY CONTRACTS | AC10: ALL NON RELATED PARTYCONTRACTS | AD10: LAND AND EASEMENTS
C11: SUBSTATION ID | D11: SUBSTATION TYPE | E11: PROJECT ID | F11: PROJECT TYPE | G11: PROJECT TRIGGER | H11: VOLTAGE (KV) | I11: SUBSTATION RATING NORMAL CYCLIC (MVA) | K11: SUBSTATION RATING N-1 EMERGENCY (MVA) | M11: TRANSFORMERS | P11: SWITCHGEAR | R11: CAPACITORS | T11: OTHER PLANT ITEM | U11: INSTALLATION (LABOUR) | W11: CIVIL WORKS | X11: OTHER DIRECT | AA11: RELATED PARTY MARGINS | AB11: TOTAL | AD11: LAND PURCHASE | AE11: EASEMENTS
I12: PRE | J12: POST | K12: PRE | L12: POST | M12: UNITS ADDED | N12: MVA ADDED | O12: =CONCATENATE("EXPENDITURE ($0's, real ", dms_DollarReal,")") -> EXPENDITURE ($0's, real December 2015) | P12: UNITS ADDED | Q12: =CONCATENATE("EXPENDITURE ($0's, real ", dms_DollarReal,")") -> EXPENDITURE ($0's, real December 2015) | R12: MVAR ADDED | S12: =CONCATENATE("EXPENDITURE ($0's, real ", dms_DollarReal,")") -> EXPENDITURE ($0's, real December 2015) | T12: =CONCATENATE("EXPENDITURE ($0's, real ", dms_DollarReal,")") -> EXPENDITURE ($0's, real December 2015) | U12: VOLUME | V12: =CONCATENATE("EXPENDITURE ($0's, real ", dms_DollarReal,")") -> EXPENDITURE ($0's, real December 2015) | W12: =CONCATENATE("EXPENDITURE ($0's, real ", dms_DollarReal,")") -> EXPENDITURE ($0's, real December 2015) | AA12: =CONCATENATE("EXPENDITURE ($0's, real ", dms_DollarReal,")") -> EXPENDITURE ($0's, real December 2015) | AD12: =CONCATENATE("EXPENDITURE ($0's, real ", dms_DollarReal,")") -> EXPENDITURE ($0's, real December 2015)
A13: AUG231_1 | C13: CLN | D13: Zone substation | G13: Demand growth | H13: 66 | I13: 88.7 | J13: 133.7 | K13: 45.7 | L13: 90.7 | M13: 1 | N13: 45 | O13: 3000000 | P13: 1 | Q13: 1200000 | R13: 0 | S13: 0 | T13: 0 | U13: 0 | V13: 0 | W13: 0 | X13: 4105383 | Y13: =SUM(O13,Q13,S13,T13,V13,W13,X13) -> 8305383 | Z13: 2019,2020,2021 | AA13: 0 | AB13: 0 | AC13: 0 | AD13: 0 | AE13: 0
A14: AUG231_2 | Y14: 0
A15: AUG231_3 | Y15: 0
A16: AUG231_4 | Y16: 0
A17: AUG231_5 | Y17: 0
A18: AUG231_6 | Y18: 0
A19: AUG231_7 | Y19: 0
A20: AUG231_8 | Y20: 0
A21: AUG231_9 | Y21: 0
A22: AUG231_10 | Y22: 0
A23: AUG231_11 | Y23: 0
A24: AUG231_12 | Y24: 0
A25: AUG231_13 | Y25: 0
A26: AUG231_14 | Y26: 0
A27: AUG231_15 | Y27: 0
A28: AUG231_16 | Y28: 0
A29: AUG231_17 | Y29: 0
A30: AUG231_18 | Y30: 0
A31: AUG231_19 | Y31: 0
A32: AUG231_20 | Y32: 0
A33: AUG231_21 | Y33: 0
A34: AUG231_22 | Y34: 0
A35: AUG231_23 | Y35: 0
A36: AUG231_24 | Y36: 0
A37: AUG231_25 | Y37: 0
A38: AUG231_26 | Y38: 0
A39: AUG231_27 | Y39: 0
A40: AUG231_28 | Y40: 0
A41: AUG231_29 | Y41: 0
A42: AUG231_30 | Y42: 0
A43: AUG231_31 | Y43: 0
A44: AUG231_32 | Y44: 0
A45: AUG231_33 | Y45: 0
A46: AUG231_34 | Y46: 0
A47: AUG231_35 | Y47: 0
A48: AUG231_36 | Y48: 0
A49: AUG231_37 | Y49: 0
A50: AUG231_38 | Y50: 0
A51: AUG231_39 | Y51: 0
A52: AUG231_40 | Y52: 0
A53: AUG231_41 | Y53: 0
A54: AUG231_42 | Y54: 0
A55: AUG231_43 | Y55: 0
A56: AUG231_44 | Y56: 0
A57: AUG231_45 | Y57: 0
A58: AUG231_46 | Y58: 0
A59: AUG231_47 | Y59: 0
A60: AUG231_48 | Y60: 0
A61: AUG231_49 | Y61: 0
A62: AUG231_50 | Y62: 0
A63: AUG231_51 | Y63: 0
A64: AUG231_52 | Y64: 0
A65: AUG231_53 | E65: Non material projects - [actual]
A66: AUG231_54 | E66: Non material projects - [forecast]
A68: AUG232 | C68: AUG232_1 | D68: AUG232_2 | E68: AUG232_3 | F68: AUG232_4 | G68: AUG232_5 | H68: AUG232_6 | I68: ED_AUG232_00001 | J68: ED_AUG232_00002 | K68: ED_AUG232_00003 | L68: ED_AUG232_00004 | M68: ED_AUG232_00005 | N68: ED_AUG232_00006 | O68: ED_AUG232_00007 | P68: ED_AUG232_00008 | Q68: ED_AUG232_00009 | R68: ED_AUG232_00010 | S68: ED_AUG232_00011 | T68: ED_AUG232_00012 | U68: ED_AUG232_00013 | V68: ED_AUG232_00014 | W68: ED_AUG232_00015 | X68: ED_AUG232_00016 | Y68: ED_AUG232_00017 | Z68: ED_AUG232_00018 | AA68: ED_AUG232_00019 | AB68: ED_AUG232_00020 | AC68: ED_AUG232_00021
C69: TABLE 2.3.2 - AUGEX ASSET DATA - SUBTRANSMISSION LINES
C70: NOTE: DNSP must provide expenditure information on an 'as incurred' basis.
C71: PROJECT DESCRIPTION AND CHANGES | I71: PLANT AND EQUIPMENT EXPENDITURE AND VOLUME | U71: OTHER EXPENDITURE | W71: TOTAL DIRECT EXPENDITURE ($0's) | X71: YEARS INCURRED | Y71: ALL RELATED PARTY CONTRACTS | AA71: ALL NON RELATED PARTY CONTRACTS | AB71: LAND AND EASEMENTS
C72: LINE ID | D72: PROJECT ID | E72: PROJECT TYPE | F72: PROJECT TRIGGER | G72: VOLTAGE (KV) | H72: ROUTE LINE LENGTH ADDED | I72: POLES/TOWERS (INCLUDING STRUCTURES, AND CIVIL WORKS) | L72: OVERHEAD LINES | O72: UNDERGROUND CABLES | R72: OTHER PLANT ITEM | S72: INSTALLATION (LABOUR) | U72: CIVIL WORKS | V72: OTHER DIRECT | Y72: RELATED PARTY MARGINS | Z72: TOTAL | AB72: LAND PURCHASE | AC72: EASEMENTS
H73: KM ADDED | I73: POLES/TOWERS ADDED | J73: POLES/TOWERS UPGRADED | K73: =CONCATENATE("EXPENDITURE ($0's, real ", dms_DollarReal,")") -> EXPENDITURE ($0's, real December 2015) | L73: CIRCUIT KM ADDED | M73: CIRCUIT KM UPGRADED | N73: =CONCATENATE("EXPENDITURE ($0's, real ", dms_DollarReal,")") -> EXPENDITURE ($0's, real December 2015) | O73: CIRCUIT KM ADDED | P73: CIRCUIT KM UPGRADED | Q73: =CONCATENATE("EXPENDITURE ($0's, real ", dms_DollarReal,")") -> EXPENDITURE ($0's, real December 2015) | R73: =CONCATENATE("EXPENDITURE ($0's, real ", dms_DollarReal,")") -> EXPENDITURE ($0's, real December 2015) | S73: VOLUME | T73: =CONCATENATE("EXPENDITURE ($0's, real ", dms_DollarReal,")") -> EXPENDITURE ($0's, real December 2015) | U73: EXPENDITURE ($0's, real December 2015) | Y73: EXPENDITURE ($0's, real December 2015) | AB73: EXPENDITURE ($0's, real December 2015)
A74: AUG232_1 | C74: KLO-DRN | D74: 74290159 | E74: New line on new route - single circuit | F74: Demand growth | G74: 66 | H74: 24 | I74: 11 | J74: 254 | K74: 1880694.635 | L74: 24 | M74: 0 | N74: 3423631.1 | O74: 0.3 | P74: 0 | Q74: 1719633.597 | R74: 145867.9434 | S74: 0 | T74: 4028634.711 | U74: 0 | V74: 1405302.176 | W74: 12603764.16 | X74: 2015,2016,2017,2018 | Y74: 0 | Z74: 0 | AA74: 0 | AB74: 0 | AC74: 0
A75: AUG232_2 | W75: =SUM(K75,N75,Q75,R75,T75,U75,V75) -> 0
A76: AUG232_3 | W76: 0
A77: AUG232_4 | W77: 0
A78: AUG232_5 | W78: 0
A79: AUG232_6 | W79: 0
A80: AUG232_7 | W80: 0
A81: AUG232_8 | W81: 0
A82: AUG232_9 | W82: 0
A83: AUG232_10 | W83: 0
A84: AUG232_11 | W84: 0
A85: AUG232_12 | W85: 0
A86: AUG232_13 | W86: 0
A87: AUG232_14 | W87: 0
A88: AUG232_15 | W88: 0
A89: AUG232_16 | W89: 0
A90: AUG232_17 | W90: 0
A91: AUG232_18 | W91: 0
A92: AUG232_19 | W92: 0
A93: AUG232_20 | W93: 0
A94: AUG232_21 | W94: 0
A95: AUG232_22 | W95: 0
A96: AUG232_23 | W96: 0
A97: AUG232_24 | W97: 0
A98: AUG232_25 | W98: 0
A99: AUG232_26 | W99: 0
A100: AUG232_27 | W100: 0
A101: AUG232_28 | W101: 0
A102: AUG232_29 | W102: 0
A103: AUG232_30 | W103: 0
A104: AUG232_31 | W104: 0
A105: AUG232_32 | W105: 0
A106: AUG232_33 | W106: 0
A107: AUG232_34 | W107: 0
A108: AUG232_35 | W108: 0
A109: AUG232_36 | W109: 0
A110: AUG232_37 | W110: 0
A111: AUG232_38 | W111: 0
A112: AUG232_39 | W112: 0
A113: AUG232_40 | W113: 0
A114: AUG232_41 | W114: 0
A115: AUG232_42 | W115: 0
A116: AUG232_43 | W116: 0
A117: AUG232_44 | W117: 0
A118: AUG232_45 | W118: 0
A119: AUG232_46 | W119: 0
A120: AUG232_47 | W120: 0
A121: AUG232_48 | W121: 0
A122: AUG232_49 | W122: 0
A123: AUG232_50 | W123: 0
A124: AUG232_51 | W124: 0
A125: AUG232_52 | W125: 0
A126: AUG232_53 | W126: 0
A127: AUG232_54 | W127: 0
A128: AUG232_55 | D128: Non material projects - [actual] | W128: =#REF! ->  | X128: 2015
A129: AUG232_56 | D129: Non material projects - [forecast] | W129: =#REF! ->  | X129: 2016
C132: TABLE 2.3.3 - AUGEX DATA - HV/LV FEEDERS AND DISTRIBUTION SUBSTATIONS
C133: NOTE: DNSP must provide expenditure information on an 'as incurred' basis.
C134: Table 2.3.3.1 - Descriptor metrics
C137: PROJECT TYPE | D137: Unit of Measure | E137: UNITS ADDED (0's) | L137: UNITS UPGRADED (0's)
A138: AUG2331 | E138: =CRCP_y5 -> 2015 | F138: =FRCP -> 2016 | G138: 2017 | H138: 2018 | I138: 2019 | J138: 2020 | L138: =CRCP_y5 -> 2015 | M138: =FRCP -> 2016 | N138: 2017 | O138: 2018 | P138: 2019 | Q138: 2020
C139: HV Feeder Augmentations - Overhead Lines | D139: Circuit Line Length in KM | E139: 0 | F139: 0 | G139: 0 | H139: 0 | I139: 0 | J139: 0 | L139: 9.228218301 | M139: 1.3 | N139: 2 | O139: 19 | P139: 6 | Q139: 0
A140: ED_AUG2331_00002 | C140: HV Feeder Augmentations - Underground Cables | D140: Circuit Line Length in KM | E140: 0.05954267853 | F140: 0.5 | G140: 12 | H140: 6 | I140: 1 | J140: 3 | L140: 0 | M140: 0 | N140: 0 | O140: 0 | P140: 0 | Q140: 0
A141: ED_AUG2331_00003 | C141: LV Feeder Augmentations - Overhead Lines | D141: Circuit Line Length in KM | E141: 2.602625311 | F141: 3.470167082 | G141: 3.470167082 | H141: 3.470167082 | I141: 3.470167082 | J141: 3.470167082 | K141: ED_AUG2333_00003 | L141: 0 | M141: 0 | N141: 0 | O141: 0 | P141: 0 | Q141: 0
A142: ED_AUG2331_00004 | C142: LV Feeder Augmentations - Underground Cables | D142: Circuit Line Length in KM | E142: 0.6140978413 | F142: 0.8187971218 | G142: 0.8187971218 | H142: 0.8187971218 | I142: 0.8187971218 | J142: 0.8187971218 | K142: ED_AUG2333_00004 | L142: 0 | M142: 0 | N142: 0 | O142: 0 | P142: 0 | Q142: 0
A143: ED_AUG2331_00005 | C143: Distribution Substation Augmentations - Pole Mounted | D143: Number | E143: 0 | F143: 0 | G143: 0 | H143: 0 | I143: 0 | J143: 0 | K143: ED_AUG2333_00005 | L143: 13.29743516 | M143: 114.7504462 | N143: 114.7504462 | O143: 114.7504462 | P143: 100.4066404 | Q143: 100.4066404
A144: ED_AUG2331_00006 | C144: Distribution Substation Augmentations - Ground Mounted | D144: Number | E144: 0 | F144: 0 | G144: 0 | H144: 0 | I144: 0 | J144: 0 | K144: ED_AUG2333_00006 | L144: 1.791626953 | M144: 15.46087572 | N144: 15.46087572 | O144: 15.46087572 | P144: 13.52826626 | Q144: 13.52826626
A145: ED_AUG2331_00007 | C145: Distribution Substation Augmentations - Indoor | D145: Number | E145: 0 | F145: 0 | G145: 0 | H145: 0 | I145: 0 | J145: 0 | K145: ED_AUG2333_00007 | L145: 0 | M145: 0 | N145: 0 | O145: 0 | P145: 0 | Q145: 0
C147: Table 2.3.3.2 - Cost metrics
C150: PROJECT TYPE | E150: =CONCATENATE("TOTAL DIRECT EXPENDITURE ($0's, real ", dms_DollarReal,")") -> TOTAL DIRECT EXPENDITURE ($0's, real December 2015)
A151: AUG2332 | E151: =CRCP_y5 -> 2015 | F151: =FRCP -> 2016 | G151: 2017 | H151: 2018 | I151: 2019 | J151: 2020
A152: ED_AUG2332_00001 | C152: HV Feeder Augmentations - Overhead Lines | E152: 456076.2327 | F152: 2121485.92 | G152: 4619309.484 | H152: 4729607.059 | I152: 4910385.031 | J152: 2246470.732
A153: ED_AUG2332_00002 | C153: HV Feeder Augmentations - Underground Cables | E153: 87344.11127 | F153: 724331.4356 | G153: 3038946.532 | H153: 4421812.044 | I153: 2695700.116 | J153: 2112054.279
A154: ED_AUG2332_00003 | C154: HV Feeder Non-Material Projects | E154: 388465.3861 | F154: 521251.6647 | G154: 524599.8949 | H154: 525454.8298 | I154: 528600.0553 | J154: 531997.9646
A155: ED_AUG2332_00004 | C155: LV Feeder Augmentations - Overhead Lines | E155: 1140771.88 | F155: 1530713.579 | G155: 1540546.03 | H155: 1543056.641 | I155: 1552292.946 | J155: 1562271.285
A156: ED_AUG2332_00005 | C156: LV Feeder Augmentations - Underground Cables | E156: 24624.27856 | F156: 33041.41541 | G156: 33253.65505 | H156: 33307.84818 | I156: 33507.21963 | J156: 33722.60836
A157: ED_AUG2332_00006 | C157: LV Feeder Non-Material Projects | E157: 0 | F157: 0 | G157: 0 | H157: 0 | I157: 0 | J157: 0
A158: ED_AUG2332_00007 | C158: Distribution Substation Augmentations - Pole Mounted | E158: 342828.4252 | F158: 2977280.251 | G158: 2996404.64 | H158: 3001287.849 | I158: 2641846.128 | J158: 2658828.255
A159: ED_AUG2332_00008 | C159: Distribution Substation Augmentations - Ground Mounted | E159: 137341.0511 | F159: 1192733.067 | G159: 1200394.519 | H159: 1202350.79 | I159: 1058354.259 | J159: 1065157.497
A160: ED_AUG2332_00009 | C160: Distribution Substation Augmentations - Indoor | E160: 0 | F160: 0 | G160: 0 | H160: 0 | I160: 0 | J160: 0
C165: TABLE 2.3.4 - AUGEX DATA - TOTAL AUGMENTATION EXPENDITURE
E166: =CONCATENATE("TOTAL DIRECT EXPENDITURE ($0's, real ", dms_DollarReal,")") -> TOTAL DIRECT EXPENDITURE ($0's, real December 2015)
A167: AUG234 | E167: =CRCP_y5 -> 2015 | F167: =FRCP -> 2016 | G167: 2017 | H167: 2018 | I167: 2019 | J167: 2020
A168: ED_AUG234_00001 | C168: Subtransmission Substations, Switching Stations, Zone Substations | E168: 0 | F168: 0 | G168: 0 | H168: 0 | I168: 1549168.182 | J168: 6756214.551
A169: ED_AUG234_00002 | C169: Subtransmission Lines | E169: 1411682.558 | F169: 812514.4625 | G169: 8594380.163 | H169: 2789161.498 | I169: 0 | J169: 0
A170: ED_AUG234_00003 | C170: HV Feeders | E170: 931885.73 | F170: 3367069.02 | G170: 8182855.912 | H170: 9676873.933 | I170: 8134685.203 | J170: 4890522.976
A171: ED_AUG234_00004 | C171: HV Feeders - Land Purchases and Easements | E171: 0 | F171: 0 | G171: 0 | H171: 0 | I171: 0 | J171: 0
A172: ED_AUG234_00005 | C172: Distribution Substations | E172: 480169.4763 | F172: 4170013.318 | G172: 4196799.159 | H172: 4203638.638 | I172: 3700200.387 | J172: 3723985.752
A173: ED_AUG234_00006 | C173: Distribution Substations - Land Purchases and Easements | E173: 0 | F173: 0 | G173: 0 | H173: 0 | I173: 0 | J173: 0
A174: ED_AUG234_00007 | C174: LV Feeders | E174: 1165396.158 | F174: 1563754.994 | G174: 1573799.685 | H174: 1576364.489 | I174: 1585800.166 | J174: 1595993.894
A175: ED_AUG234_00008 | C175: LV Feeders - Land Purchases and Easements | E175: 0 | F175: 0 | G175: 0 | H175: 0 | I175: 0 | J175: 0
A176: ED_AUG234_00009 | C176: Other Assets | E176: 74948590.39 | F176: 59815452.91 | G176: 57852876.41 | H176: 42700824.01 | I176: 41291329.02 | J176: 41204306.35
A181: PROJECT TYPE FOR TBL 2.3.2
A182: New line on new route - single circuit
A183: New line on new route - dual circuit
A184: New line on new route - other
A185: Line rebuild over existing route - single circuit
A186: Line rebuild over existing route - dual circuit
A187: Reconductor - Single circuit
A188: Reconductor - Dual circuit
A189: Reconductor - Other
A190: Line upgrade - raising/retensoring
A191: Line upgrade - voltage upgrade
A192: Line upgrade - capacity
A193: String spare circuit
A194: Other - specify

Sheet 2.5 Connections
C1: =SheetHeader -> REGULATORY REPORTING STATEMENT
C2: =dms_TradingName -> AusNet (D)
C3: =FRCP_span -> 2016 to 2020
C4: 2.5 CONNECTIONS
C9: 2.5.1 DESCRIPTOR METRICS
C12: CONNECTION SUBCATEGORY | D12: DESCRIPTOR METRIC | E12: Unit of Measure | F12: =CONCATENATE("VOLUMES and EXPENDITURE (0's, real ", dms_DollarReal, ")") -> VOLUMES and EXPENDITURE (0's, real December 2015)
F13: =CRCP_y5 -> 2015 | G13: =FRCP -> 2016 | H13: 2017 | I13: 2018 | J13: 2019 | K13: 2020
A14: ED_CON251_00001 | C14: RESIDENTIAL | D14: Underground connections | E14: 0's | F14: 14279.8257 | G14: 15962.59859 | H14: 16860.33952 | I14: 16779.43987 | J14: 16089.08441 | K14: 15988.67276
A15: ED_CON251_00002 | D15: Overhead connections | E15: 0's | F15: 902.6084684 | G15: 1008.974267 | H15: 1065.719257 | I15: 1060.605699 | J15: 1016.969264 | K15: 1010.62238
A16: ED_CON251_00003 | D16: Distribution substations installed | E16: MVA added | F16: 89.36684755 | G16: 97.70872799 | H16: 97.25889429 | I16: 100.3211644 | J16: 96.89287668 | K16: 97.40331701
A17: ED_CON251_00004 | D17: Distribution substations installed | E17: 0's | F17: 446.8342378 | G17: 488.5436399 | H17: 486.2944715 | I17: 501.6058221 | J17: 484.4643834 | K17: 487.016585
A18: ED_CON251_00005 | D18: Distribution substations installed | E18: total spend $0's | F18: 6057319.184 | G18: 6622735.038 | H18: 6592245.137 | I18: 6799806.98 | J18: 6567436.323 | K18: 6602034.165
A19: ED_CON251_00006 | D19: Augmentation HV | E19: net circuit KM added | F19: 80.64622741 | G19: 88.17408819 | H19: 87.76815029 | I19: 90.53159713 | J19: 87.43784951 | K19: 87.89847991
A20: ED_CON251_00007 | D20: Augmentation HV | E20: total spend $0's | F20: 889935.4426 | G20: 973005.7899 | H20: 968526.2433 | I20: 999021.0273 | J20: 964881.3565 | K20: 969964.4377
A21: ED_CON251_00008 | D21: Augmentation LV | E21: net circuit KM added | F21: 20.46227574 | G21: 22.37231131 | H21: 22.26931315 | I21: 22.97047938 | J21: 22.18550631 | K21: 22.30238154
A22: ED_CON251_00009 | D22: Augmentation LV | E22: total spend $0's | F22: 1375737.398 | G22: 1504154.559 | H22: 1497229.698 | I22: 1544371.112 | J22: 1491595.124 | K22: 1499452.98
A23: ED_CON251_00010 | D23: Mean days to connect residential customer with LV single phase connection | E23: 0's | F23: 6.645975 | G23: 6.645975 | H23: 6.645975 | I23: 6.645975 | J23: 6.645975 | K23: 6.645975
A24: ED_CON251_00011 | D24: Volume of GSL breaches for residential customers | E24: 0's | F24: 335.25 | G24: 335.25 | H24: 335.25 | I24: 335.25 | J24: 335.25 | K24: 335.25
A25: ED_CON251_00012 | D25: Volume of customer complaints relating to connection services | E25: 0's | F25: 1214.25 | G25: 1214.25 | H25: 1214.25 | I25: 1214.25 | J25: 1214.25 | K25: 1214.25
A26: ED_CON251_00013 | D26: GSL payments | E26: $0's | F26: 43.725 | G26: 43.725 | H26: 43.725 | I26: 43.725 | J26: 43.725 | K26: 43.725
A27: ED_CON251_00014 | C27: COMMERCIAL/INDUSTRIAL | D27: Underground connections | E27: 0's | F27: 1605.141979 | G27: 1815.613031 | H27: 1904.583051 | I27: 1905.601856 | J27: 1812.223105 | K27: 1799.250817
A28: ED_CON251_00015 | D28: Overhead connections | E28: 0's | F28: 183.6494053 | G28: 207.7300686 | H28: 217.9094119 | I28: 218.0259766 | J28: 207.3422163 | K28: 205.8580156
A29: ED_CON251_00016 | D29: Distribution substations installed | E29: MVA added | F29: 291.1359077 | G29: 338.2425833 | H29: 332.3976342 | I29: 348.4970415 | J29: 323.4184727 | K29: 323.1022598
A30: ED_CON251_00017 | D30: Distribution substations installed | E30: 0's | F30: 291.1359077 | G30: 338.2425833 | H30: 332.3976342 | I30: 348.4970415 | J30: 323.4184727 | K30: 323.1022598
A31: ED_CON251_00018 | D31: Distribution substations installed | E31: total spend $0's | F31: 9774451.351 | G31: 11355987.31 | H31: 11159751.92 | I31: 11700265.36 | J31: 10858290.04 | K31: 10847673.67
A32: ED_CON251_00019 | D32: Augmentation HV | E32: net circuit KM added | F32: 123.9227621 | G32: 143.973842 | H32: 141.4859241 | I32: 148.338679 | J32: 137.6639205 | K32: 137.5293237
A33: ED_CON251_00020 | D33: Augmentation HV | E33: total spend $0's | F33: 5515623.979 | G33: 6408068.718 | H33: 6297335.07 | I33: 6602341.338 | J33: 6127223.184 | K33: 6121232.471
A34: ED_CON251_00021 | D34: Augmentation LV | E34: net circuit KM added | F34: 12.49191471 | G34: 14.51314451 | H34: 14.26235234 | I34: 14.9531377 | J34: 13.87707895 | K34: 13.86351104
A35: ED_CON251_00022 | D35: Augmentation LV | E35: total spend $0's | F35: 1364403.036 | G35: 1585167.598 | H35: 1557775.353 | I35: 1633224.926 | J35: 1515694.679 | K35: 1514212.753
A36: ED_CON251_00023 | C36: SUBDIVISION | D36: Underground connections | E36: 0's | F36: 436.4805872 | G36: 478.8322579 | H36: 477.1679005 | I36: 493.4017623 | J36: 476.5300306 | K36: 479.7948529
A37: ED_CON251_00024 | D37: Overhead connections | E37: 0's | F37: 31.08916016 | G37: 34.10573848 | H37: 33.98719145 | I37: 35.14347915 | J37: 33.94175796 | K37: 34.17430114
A38: ED_CON251_00025 | D38: Distribution substations installed | E38: MVA added | F38: 80.87920496 | G38: 88.72690668 | H38: 88.41850371 | I38: 91.42661422 | J38: 88.30030738 | K38: 88.90527411
A39: ED_CON251_00026 | D39: Distribution substations installed | E39: 0's | F39: 178.8023548 | G39: 196.1515306 | H39: 195.4697339 | I39: 202.119864 | J39: 195.2084333 | K39: 196.5458534
A40: ED_CON251_00027 | D40: Distribution substations installed | E40: total spend $0's | F40: 6619853.859 | G40: 7262177.662 | H40: 7236935.295 | I40: 7483145.084 | J40: 7227261.085 | K40: 7276776.796
A41: ED_CON251_00028 | D41: Augmentation HV | E41: net circuit KM added | F41: 121.6352508 | G41: 133.4375079 | H41: 132.9736968 | I41: 137.4976319 | J41: 132.7959399 | K41: 133.7057569
A42: ED_CON251_00029 | D42: Augmentation HV | E42: total spend $0's | F42: 6619853.859 | G42: 7262177.662 | H42: 7236935.295 | I42: 7483145.084 | J42: 7227261.085 | K42: 7276776.796
A43: ED_CON251_00030 | D43: Augmentation LV | E43: net circuit KM added | F43: 172.2181784 | G43: 188.9284922 | H43: 188.2718018 | I43: 194.6770491 | J43: 188.0201233 | K43: 189.3082945
A44: ED_CON251_00031 | D44: Augmentation LV | E44: total spend $0's | F44: 7636346.794 | G44: 8377300.812 | H44: 8348182.424 | I44: 8632198.261 | J44: 8337022.718 | K44: 8394141.674
A45: ED_CON251_00032 | D45: Cost per lot | E45: $0's | F45: 1843.720201 | G45: 1843.720201 | H45: 1843.720201 | I45: 1843.720201 | J45: 1843.720201 | K45: 1843.720201
A46: ED_CON251_00033 | C46: EMBEDDED GENERATION | D46: Underground connections | E46: 0's | F46: 1.428571429 | G46: 0.7142857143 | H46: 0.7142857143 | I46: 0.7142857143 | J46: 0.7142857143 | K46: 0.7142857143
A47: ED_CON251_00034 | D47: Overhead connections | E47: 0's | F47: 0.5714285714 | G47: 0.2857142857 | H47: 0.2857142857 | I47: 0.2857142857 | J47: 0.2857142857 | K47: 0.2857142857
A48: ED_CON251_00035 | D48: Distribution substations installed | E48: MVA added | F48: 0.2556319877 | G48: 0.07054088784 | H48: 0.07091065173 | I48: 0.07126262946 | J48: 0.07180452918 | K48: 0.07224468441
A49: ED_CON251_00036 | D49: Distribution substations installed | E49: 0's | F49: 0.5112639754 | G49: 0.1410817757 | H49: 0.1418213035 | I49: 0.1425252589 | J49: 0.1436090584 | K49: 0.1444893688
A50: ED_CON251_00037 | D50: Distribution substations installed | E50: total spend $0's | F50: 10412.6726 | G50: 2873.346082 | H50: 2888.407696 | I50: 2902.744825 | J50: 2924.818058 | K50: 2942.746926
A51: ED_CON251_00038 | D51: Augmentation HV | E51: net circuit KM added | F51: 0 | G51: 0 | H51: 0 | I51: 0 | J51: 0 | K51: 0
A52: ED_CON251_00039 | D52: Augmentation HV | E52: total spend $0's | F52: 0 | G52: 0 | H52: 0 | I52: 0 | J52: 0 | K52: 0
A53: ED_CON251_00040 | D53: Augmentation LV | E53: net circuit KM added | F53: 0 | G53: 0 | H53: 0 | I53: 0 | J53: 0 | K53: 0
A54: ED_CON251_00041 | D54: Augmentation LV | E54: total spend $0's | F54: 0 | G54: 0 | H54: 0 | I54: 0 | J54: 0 | K54: 0
A62: NB: Codes also in hidden Column L | C62: 2.5.2 COST METRICS BY CONNECTION CLASSIFICATION
C65: CONNECTION SUBCATEGORY | D65: CONNECTION CLASSICIATION | F65: =CONCATENATE("EXPENDITURE ($'0s, real ", dms_DollarReal,")") -> EXPENDITURE ($'0s, real December 2015) | M65: VOLUMES (0's)
F66: =CRCP_y5 -> 2015 | G66: =FRCP -> 2016 | H66: 2017 | I66: 2018 | J66: 2019 | K66: 2020 | M66: =CRCP_y5 -> 2015 | N66: =FRCP -> 2016 | O66: 2017 | P66: 2018 | Q66: 2019 | R66: 2020
A67: ED_CON252_00001 | C67: RESIDENTIAL | D67: Simple connection LV | F67: 6797612.435 | G67: 7432130.399 | H67: 7397914.185 | I67: 7630843.129 | J67: 7370073.37 | K67: 7408899.575 | L67: ED_CON252_00001 | M67: 13495.77729 | N67: 15086.15581 | O67: 15934.60536 | P67: 15858.14759 | Q67: 15205.6968 | R67: 15110.79835
A68: ED_CON252_00002 | D68: Complex connection LV | F68: 10359607.67 | G68: 11326617.37 | H68: 11274471.63 | I68: 11629456.93 | J68: 11232042.04 | K68: 11291213.44 | L68: ED_CON252_00002 | M68: 1339.993756 | N68: 1497.902208 | O68: 1582.14464 | P68: 1574.553158 | Q68: 1509.771415 | R68: 1500.348962
A69: ED_CON252_00003 | D69: Complex connection HV | F69: 12287778.58 | G69: 13434771.93 | H69: 13372920.62 | I69: 13793977.18 | J69: 13322593.86 | K69: 13392778.48 | L69: ED_CON252_00003 | M69: 346.6631228 | N69: 387.5148333 | O69: 409.3087741 | P69: 407.3448196 | Q69: 390.5854568 | R69: 388.1478209
A70: ED_CON252_00004 | C70: COMMERCIAL/INDUSTRIAL | D70: Simple connection LV | F70: 175941.9654 | G70: 204409.9106 | H70: 200877.6365 | I70: 210606.9804 | J70: 195451.2659 | K70: 195260.1692 | L70: ED_CON252_00004 | M70: 1447.756703 | N70: 1637.590924 | O70: 1717.837372 | P70: 1718.756283 | Q70: 1634.533382 | R70: 1622.833036
A71: ED_CON252_00005 | D71: Complex connection HV (customer connected at LV, minor HV works) | F71: 1383494.667 | G71: 1607348.312 | H71: 1579572.777 | I71: 1656078.091 | J71: 1536903.282 | K71: 1535400.62 | L71: ED_CON252_00005 | M71: 124.943926 | N71: 141.3269501 | O71: 148.2523584 | P71: 148.331662 | Q71: 141.0630789 | R71: 140.0533186
A72: ED_CON252_00006 | D72: Complex connection HV (customer connected at LV, upstream asset works) | F72: 6957031.923 | G72: 8082700.852 | H72: 7943028.981 | I72: 8327743.086 | J72: 7728461.448 | K72: 7720905.172 | L72: ED_CON252_00006 | M72: 91.1262134 | N72: 103.0749571 | O72: 108.1259128 | P72: 108.1837518 | Q72: 102.8825061 | R72: 102.1460507
A73: ED_CON252_00007 | D73: Complex connection HV (customer connected at HV) | F73: 10758616.99 | G73: 12499393.95 | H73: 12283400.09 | I73: 12878336.51 | J73: 11951584.75 | K73: 11939899.44 | L73: ED_CON252_00007 | M73: 124.7846153 | N73: 141.14675 | O73: 148.0633281 | P73: 148.1425305 | Q73: 140.8832153 | R73: 139.8747425
A74: ED_CON252_00008 | D74: Complex connection sub-transmission | F74: 9548.34562 | G74: 11093.29699 | H74: 10901.60097 | I74: 11429.61109 | J74: 10607.11261 | K74: 10596.74181 | L74: ED_CON252_00008 | M74: 0.1799261813 | N74: 0.2035186443 | O74: 0.2134916163 | P74: 0.2136058178 | Q74: 0.2031386552 | R74: 0.2016845444
A75: ED_CON252_00009 | C75: SUBDIVISION | D75: Complex connection LV | F75: 4218562.456 | G75: 4627889.178 | H75: 4611803.248 | I75: 4768702.69 | J75: 4605638.269 | K75: 4637192.609 | L75: ED_CON252_00009 | M75: 216.427927 | N75: 237.4279086 | O75: 236.6026407 | P75: 244.652165 | Q75: 236.2863544 | R75: 237.9052092
A76: ED_CON252_00010 | D76: Complex connection HV (no upstream asset works) | F76: 19068924.39 | G76: 20919180.34 | H76: 20846468.05 | I76: 21555691.53 | J76: 20818600.85 | K76: 20961234.11 | L76: ED_CON252_00010 | M76: 251.1418203 | N76: 275.5100878 | O76: 274.5524512 | P76: 283.8930765 | Q76: 274.1854342 | R76: 276.0639449
A77: ED_CON252_00011 | D77: Complex connection HV (with upstream asset works) | F77: 0 | G77: 0 | H77: 0 | I77: 0 | J77: 0 | K77: 0 | L77: ED_CON252_00011 | M77: 0 | N77: 0 | O77: 0 | P77: 0 | Q77: 0 | R77: 0
A78: ED_CON252_00012 | C78: EMBEDDED GENERATION | D78: Simple connection LV | F78: 0 | G78: 0 | H78: 0 | I78: 0 | J78: 0 | K78: 0 | L78: ED_CON252_00012 | M78: 0 | N78: 0 | O78: 0 | P78: 0 | Q78: 0 | R78: 0
A79: ED_CON252_00013 | D79: Complex connection HV (small capacity) | F79: 2171668.104 | G79: 599265.3639 | H79: 602406.6158 | I79: 605396.769 | J79: 610000.3647 | K79: 613739.6115 | L79: ED_CON252_00013 | M79: 2 | N79: 1 | O79: 1 | P79: 1 | Q79: 1 | R79: 1
A80: ED_CON252_00014 | D80: Complex connection HV (large capacity) | F80: 0 | G80: 0 | H80: 0 | I80: 0 | J80: 0 | K80: 0 | L80: ED_CON252_00014 | M80: 0 | N80: 0 | O80: 0 | P80: 0 | Q80: 0 | R80: 0

Sheet 2.6 Non-network
C1: =SheetHeader -> REGULATORY REPORTING STATEMENT
C2: =dms_TradingName -> AusNet (D)
C3: =FRCP_span -> 2016 to 2020
C4: 2.6 NON NETWORK EXPENDITURE
A9: NB: Codes also in hidden column N | C9: TABLE 2.6.1 NON-NETWORK EXPENDITURE | O9: TABLE 2.6.2 ANNUAL DESCRIPTOR METRICS - IT & COMMUNICATIONS EXPENDITURE
F11: =CONCATENATE("EXPENDITURE ($'0s, real ", dms_DollarReal,")") -> EXPENDITURE ($'0s, real December 2015) | O11: NON-NETWORK CATEGORY | P11: DESCRIPTOR METRIC | S11: VOLUMES (0's)
C12: SERVICE SUBCATEGORY | D12: ASSET CATEGORY | E12: ASSET REPORTING CATEGORY | F12: =CRCP_y5 -> 2015 | G12: =FRCP -> 2016 | H12: 2017 | I12: 2018 | J12: 2019 | K12: 2020 | N12: NON-NETWORK CATEGORY | S12: =CRCP_y5 -> 2015 | T12: =FRCP -> 2016 | U12: 2017 | V12: 2018 | W12: 2019 | X12: 2020
A13: ED_NON261_00001 | C13: IT & COMMUNICATIONS | D13: Client device expenditure | E13: Opex | F13: 0 | O13: IT & COMMUNICATIONS | P13: Employee numbers
A14: ED_NON261_00002 | E14: Capex | F14: 0 | G14: 155162.0714 | H14: 983527.6463 | I14: 1406862.678 | J14: 0 | K14: 0 | M14: ED_NON262_00001 | N14: IT & COMMUNICATIONS | P14: User numbers
A15: ED_NON261_00003 | D15: Recurrent expenditure | E15: Opex | F15: 0 | M15: ED_NON262_00002 | P15: Number of devices
A16: ED_NON261_00004 | E16: Capex | F16: 12644851.2 | G16: 25505723.98 | H16: 22861692.32 | I16: 20023313.97 | J16: 34324239.47 | K16: 23738987.92 | M16: ED_NON262_00003
A17: ED_NON261_00005 | D17: Non-recurrent expenditure | E17: Opex | F17: 0
A18: ED_NON261_00006 | E18: Capex | F18: 6201360.233 | G18: 19076239.36 | H18: 42264055.72 | I18: 14734682.96 | J18: 4529330.002 | K18: 8095934.726
A19: ED_NON261_00007 | C19: MOTOR VEHICLES | D19: Car | E19: Opex | F19: 0
A20: ED_NON261_00008 | E20: Capex | F20: 144880.1948 | G20: 136466.1904 | H20: 259975.1707 | I20: 171701.8466 | J20: 337348.4104 | K20: 296775.5698
A21: ED_NON261_00009 | D21: Light commercial vehicle | E21: Opex | F21: 0
A22: ED_NON261_00010 | E22: Capex | F22: 561923.0846 | G22: 529289.0636 | H22: 1008323.119 | I22: 665951.8328 | J22: 1308418.032 | K22: 1151054.8
A23: ED_NON261_00011 | D23: Elevated work platform (LCV) | E23: Opex | F23: 0 | O23: TABLE 2.6.3 ANNUAL DESCRIPTOR METRICS - MOTOR VEHICLES
A24: ED_NON261_00012 | E24: Capex | F24: 0
A25: ED_NON261_00013 | D25: Elevated work platform (HCV) | E25: Opex | F25: 0 | N25: TABLE 2.6.3 ANNUAL DESCRIPTOR METRICS - MOTOR VEHICLES | O25: NON-NETWORK CATEGORY | P25: DESCRIPTOR METRIC | R25: Unit of Measure | S25: VOLUMES (0's or %)
A26: ED_NON261_00014 | E26: Capex | F26: 274353.557 | G26: 258420.3092 | H26: 492304.0925 | I26: 325144.5956 | J26: 638822.5558 | K26: 561991.4669 | S26: =CRCP_y5 -> 2015 | T26: =FRCP -> 2016 | U26: 2017 | V26: 2018 | W26: 2019 | X26: 2020
A27: ED_NON261_00015 | D27: Heavy commercial vehicle | E27: Opex | F27: 0 | N27: NON-NETWORK CATEGORY | O27: MOTOR VEHICLES | P27: CAR | Q27: Average kilometres travelled | R27: 0's
A28: ED_NON261_00016 | E28: Capex | F28: 509712.8594 | G28: 480110.9785 | H28: 914636.316 | I28: 604075.9353 | J28: 1186848.369 | K28: 1044106.301 | Q28: Number purchased | R28: 0's
A29: ED_NON261_00017 | C29: BUILDINGS AND PROPERTY | D29: Total buildings and property expenditure | E29: Opex | F29: 0 | M29: ED_NON263_00001 | N29: MOTOR VEHICLES | Q29: Number leased | R29: 0's
A30: ED_NON261_00018 | E30: Capex | F30: 0 | M30: ED_NON263_00002 | Q30: Number in fleet | R30: 0's
A31: ED_NON261_00019 | C31: OTHER | D31: Other expenditure | E31: Opex | F31: 0 | M31: ED_NON263_00003 | Q31: Proportion of total fleet expenditure allocated as regulatory expenditure | R31: %
A32: ED_NON261_00020 | E32: Capex | F32: 48970.3251 | G32: 0 | H32: 0 | I32: 0 | J32: 0 | K32: 0 | M32: ED_NON263_00004 | P32: LIGHT COMMERCIAL VEHICLE | Q32: Average kilometres travelled | R32: 0's
A33: ED_NON261_00021 | C33: OTHER - DNSP nominated | D33: General furniture and equipment | E33: Opex | F33: 0 | M33: ED_NON263_00005 | Q33: Number purchased | R33: 0's
A34: ED_NON261_00022 | E34: Capex | F34: 2085403.286 | G34: 4615673.288 | H34: 4656717.44 | I34: 4688254.265 | J34: 4739759.651 | K34: 4778291.035 | M34: ED_NON263_00006 | Q34: Number leased | R34: 0's
A35: ED_NON261_00023 | D35: Other buildings and property | E35: Opex | F35: 0 | M35: ED_NON263_00007 | Q35: Number in fleet | R35: 0's
A36: ED_NON261_00024 | E36: Capex | F36: 0 | M36: ED_NON263_00008 | Q36: Proportion of total fleet expenditure allocated as regulatory expenditure | R36: %
A37: ED_NON261_00025 | E37: Opex | M37: ED_NON263_00009 | P37: ELEVATED WORK PLATFORM (LCV) | Q37: Average kilometres travelled | R37: 0's
A38: ED_NON261_00026 | E38: Capex | M38: ED_NON263_00010 | Q38: Number purchased | R38: 0's
A39: ED_NON261_00027 | E39: Opex | M39: ED_NON263_00011 | Q39: Number leased | R39: 0's
A40: ED_NON261_00028 | E40: Capex | M40: ED_NON263_00012 | Q40: Number in fleet | R40: 0's
A41: ED_NON261_00029 | E41: Opex | M41: ED_NON263_00013 | Q41: Proportion of total fleet expenditure allocated as regulatory expenditure | R41: %
A42: ED_NON261_00030 | E42: Capex | M42: ED_NON263_00014 | P42: ELEVATED WORK PLATFORM (HCV) | Q42: Average kilometres travelled | R42: 0's
A43: ED_NON261_00031 | E43: Opex | M43: ED_NON263_00015 | Q43: Number purchased | R43: 0's
A44: ED_NON261_00032 | E44: Capex | M44: ED_NON263_00016 | Q44: Number leased | R44: 0's
A45: ED_NON261_00033 | E45: Opex | M45: ED_NON263_00017 | Q45: Number in fleet | R45: 0's
A46: ED_NON261_00034 | E46: Capex | M46: ED_NON263_00018 | Q46: Proportion of total fleet expenditure allocated as regulatory expenditure | R46: %
A47: ED_NON261_00035 | E47: Opex | M47: ED_NON263_00019 | P47: HEAVY COMMERCIAL VEHICLE | Q47: Average kilometres travelled | R47: 0's
A48: ED_NON261_00036 | E48: Capex | M48: ED_NON263_00020 | Q48: Number purchased | R48: 0's
A49: ED_NON261_00037 | E49: Opex | M49: ED_NON263_00021 | Q49: Number leased | R49: 0's
A50: ED_NON261_00038 | E50: Capex | M50: ED_NON263_00022 | Q50: Number in fleet | R50: 0's
A51: ED_NON261_00039 | E51: Opex | M51: ED_NON263_00023 | Q51: Proportion of total fleet expenditure allocated as regulatory expenditure | R51: %
A52: ED_NON261_00040 | E52: Capex | M52: ED_NON263_00024
A53: ED_NON261_00041 | E53: Opex | M53: ED_NON263_00025
A54: ED_NON261_00042 | E54: Capex

Sheet 2.14 Forecast price changes
C1: =SheetHeader -> REGULATORY REPORTING STATEMENT
C2: =dms_TradingName -> AusNet (D)
C3: =FRCP_span -> 2016 to 2020
C4: 2.14 FORECAST PRICE CHANGES
C6: Instructions
C7: The DNSP must provide all forecast price changes used to forecast opex and capex, including forecast changes in CPI. Forecast price changes must be expressed in real terms, except for CPI. If the same escalators are not used for capex and opex, report capex and opex escalators separately. Add additional rows as required. If price changes for a given year were not used to forecast either opex or capex enter '0' for that year.
C9: TABLE 2.14.1 - FORECAST LABOUR AND MATERIALS PRICE CHANGES
D11: Price changes (% YoY real) Current regulatory period | I11: Price changes (%YoY real) Forthcoming regulatory period
D12: Historical | H12: Forecast
D13: =CRCP -> 2011 | E13: 2012 | F13: 2013 | G13: 2014 | H13: 2015 | I13: =FRCP -> 2016 | J13: 2017 | K13: 2018 | L13: 2019 | M13: 2020
C14: Materials price changes
A15: ED_FOR21411_00001 | C15: Aluminium | D15: -0.2123781006 | E15: -0.0118135029 | F15: -0.04706273754 | G15: 0.1047780565 | H15: 0 | I15: 0 | J15: 0 | K15: 0 | L15: 0 | M15: 0
A16: ED_FOR21411_00002 | C16: Copper | D16: -0.2371552301 | E16: 0.004180160898 | F16: 0.04346832664 | G16: -0.08169286102 | H16: 0 | I16: 0 | J16: 0 | K16: 0 | L16: 0 | M16: 0
A17: ED_FOR21411_00003 | C17: Steel | D17: -0.05152304612 | E17: -0.5061251849 | F17: 0.1591609629 | G17: 0.8400431312 | H17: 0 | I17: 0 | J17: 0 | K17: 0 | L17: 0 | M17: 0
A18: ED_FOR21411_00004 | C18: Oil | D18: 0.1157068045 | E18: -0.01419181373 | F18: -0.0616516026 | G18: -0.5676129087 | H18: 0 | I18: 0 | J18: 0 | K18: 0 | L18: 0 | M18: 0
A19: ED_FOR21411_00005
A20: ED_FOR21411_00006
A21: ED_FOR21411_00007
A22: ED_FOR21411_00008
A23: ED_FOR21411_00009
A24: ED_FOR21411_00010
A25: ED_FOR21411_00011
A26: ED_FOR21411_00012
A27: ED_FOR21411_00013
A28: ED_FOR21411_00014
A29: ED_FOR21411_00015
A30: ED_FOR21411_00016
A31: ED_FOR21411_00017
A32: ED_FOR21411_00018
A33: ED_FOR21411_00019
A34: ED_FOR21411_00020
A35: ED_FOR21411_00021
A36: ED_FOR21411_00022
A37: ED_FOR21411_00023
A38: ED_FOR21411_00024
A39: ED_FOR21411_00025
A40: ED_FOR21411_00026
A41: ED_FOR21411_00027
A42: ED_FOR21411_00028
A43: ED_FOR21411_00029
A44: ED_FOR21411_00030
A45: ED_FOR21411_00031
A46: ED_FOR21411_00032
A47: ED_FOR21411_00033
A48: ED_FOR21411_00034
A49: ED_FOR21411_00035
A50: ED_FOR21411_00036
A51: ED_FOR21411_00037
A52: ED_FOR21411_00038
A53: ED_FOR21411_00039
A54: ED_FOR21411_00040
A55: ED_FOR21411_00041
A56: ED_FOR21411_00042
A57: ED_FOR21411_00043
A58: ED_FOR21411_00044
A59: ED_FOR21411_00045
A60: ED_FOR21411_00046
A61: ED_FOR21411_00047
A62: ED_FOR21411_00048
A63: ED_FOR21411_00049
A64: ED_FOR21411_00050
C65: Labour and Other price changes
A66: ED_FOR21412_00001 | C66: Internal labour (opex + capex) | D66: 0.01554506684 | E66: 0.005015658228 | F66: 0.02296349016 | G66: 0.02289423077 | H66: 0.02142857143 | I66: 0.01735358315 | J66: 0.008811317894 | K66: 0.01164816461 | L66: 0.01249819817 | M66: 0.01169082639
A67: ED_FOR21412_00002 | C67: Field Services - other (opex) | D67: 0.008674019314 | E67: 0.002914882588 | F67: 0.01815868271 | G67: 0.008583252191 | H67: 0.0134 | I67: 0.005513318301 | J67: 0.008811317894 | K67: 0.01164816461 | L67: 0.01249819817 | M67: 0.01169082639
A68: ED_FOR21412_00003 | C68: Field services - vegetation management (opex) | D68: 0.008674019314 | E68: 0.002914882588 | F68: 0.01815868271 | G68: 0.008583252191 | H68: 0.0134 | I68: 0.005513318301 | J68: 0.008811317894 | K68: 0.01164816461 | L68: 0.01249819817 | M68: 0.01169082639
A69: ED_FOR21412_00004 | C69: Non-field services (opex) | D69: 0.008674019314 | E69: 0.002914882588 | F69: 0.01815868271 | G69: 0.008583252191 | H69: 0.0134 | I69: 0.005513318301 | J69: 0.008811317894 | K69: 0.01164816461 | L69: 0.01249819817 | M69: 0.01169082639
A70: ED_FOR21412_00005 | C70: External labour (capex) | D70: 0.01104978782 | E70: 0.006914802975 | F70: 0.01066492187 | G70: 0.007364379408 | H70: 0.0134 | I70: 0.00635 | J70: 0.0109 | K70: 0.0126 | L70: 0.0119 | M70: 0.0129
A71: ED_FOR21412_00006
A72: ED_FOR21412_00007
A73: ED_FOR21412_00008
A74: ED_FOR21412_00009
A75: ED_FOR21412_00010
A76: ED_FOR21412_00011
A77: ED_FOR21412_00012
A78: ED_FOR21412_00013
A79: ED_FOR21412_00014
A80: ED_FOR21412_00015
A81: ED_FOR21412_00016
A82: ED_FOR21412_00017
A83: ED_FOR21412_00018
A84: ED_FOR21412_00019
A85: ED_FOR21412_00020
A86: ED_FOR21412_00021
A87: ED_FOR21412_00022
A88: ED_FOR21412_00023
A89: ED_FOR21412_00024
A90: ED_FOR21412_00025
A91: ED_FOR21412_99999 | C91: CPI | D91: 0.02787663108 | E91: 0.03519907675 | F91: 0.02004008016 | G91: 0.02161100196 | H91: 0.02307692308 | I91: 0.0219 | J91: 0.0219 | K91: 0.0219 | L91: 0.0219 | M91: 0.0219

Sheet 2.15 Insurance & Self-insurance
C1: =SheetHeader -> REGULATORY REPORTING STATEMENT
C2: =dms_TradingName -> AusNet (D)
C3: =FRCP_span -> 2016 to 2020
C4: 2.15 COMMERCIAL INSURANCE AND SELF-INSURANCE
C7: TABLE 2.15.1 - FORECAST COMMERCIAL INSURANCE PREMIUMS BY RISK CATEGORY
C9: Instructions
C10: This table removed from final RIN.
C12: Risk class [drop down] | D12: Risk category | E12: Deductables | F12: Policy limit | G12: Premiums Historical ($0's, nominal) | I12: =CONCATENATE("Forecast Premiums ($0's, real ", dms_DollarReal,")") -> Forecast Premiums ($0's, real December 2015)
A13: INS2151 | G13: =CRCP_y4 -> 2014 | H13: =CRCP_y5 -> 2015 | I13: =FRCP -> 2016 | J13: 2017 | K13: 2018 | L13: 2019 | M13: 2020 | N13: Total
A14: ED_INS2151_00001 | N14: =SUM(G14:M14) -> 0
A15: ED_INS2151_00002 | N15: =SUM(G15:M15) -> 0
A16: ED_INS2151_00003 | N16: 0
A17: ED_INS2151_00004 | N17: 0
A18: ED_INS2151_00005 | N18: 0
A19: ED_INS2151_00006 | N19: 0
A20: ED_INS2151_00007 | N20: 0
A21: ED_INS2151_00008 | N21: 0
A22: ED_INS2151_00009 | N22: 0
A23: ED_INS2151_00010 | N23: 0
A24: ED_INS2151_00011 | N24: 0
A25: ED_INS2151_00012 | N25: 0
A26: ED_INS2151_00013 | N26: 0
A27: ED_INS2151_00014 | N27: 0
A28: ED_INS2151_00015 | N28: 0
A29: ED_INS2151_00016 | N29: 0
A30: ED_INS2151_00017 | N30: 0
A31: ED_INS2151_00018 | N31: 0
A32: ED_INS2151_00019 | N32: 0
A33: ED_INS2151_00020 | N33: 0
A34: ED_INS2151_00021 | N34: 0
A35: ED_INS2151_00022 | N35: 0
A36: ED_INS2151_00023 | N36: 0
A37: ED_INS2151_00024 | N37: 0
A38: ED_INS2151_00025 | N38: 0
A39: ED_INS2151_00026 | N39: 0
A40: ED_INS2151_00027 | N40: 0
A41: ED_INS2151_00028 | N41: 0
A42: ED_INS2151_00029 | N42: 0
A43: ED_INS2151_00030 | N43: =SUM(G43:M43) -> 0
A44: ED_INS2151_00031 | N44: 0
A45: ED_INS2151_00032 | N45: 0
A46: ED_INS2151_00033 | N46: 0
A47: ED_INS2151_00034 | N47: 0
A48: ED_INS2151_00035 | N48: 0
A49: ED_INS2151_00036 | N49: 0
A50: ED_INS2151_00037 | N50: 0
A51: ED_INS2151_00038 | N51: 0
A52: ED_INS2151_00039 | N52: 0
A53: ED_INS2151_00040 | N53: 0
A54: ED_INS2151_00041 | N54: 0
A55: ED_INS2151_00042 | N55: 0
A56: ED_INS2151_00043 | N56: 0
A57: ED_INS2151_00044 | N57: 0
A58: ED_INS2151_00045 | N58: 0
A59: ED_INS2151_00046 | N59: 0
A60: ED_INS2151_00047 | N60: 0
A61: ED_INS2151_00048 | N61: 0
A62: ED_INS2151_00049 | N62: 0
A63: ED_INS2151_00050 | N63: 0
C64: Total forecast premiums | G64: =SUM(G14:G63) -> 0 | H64: 0 | I64: 0 | J64: 0 | K64: 0 | L64: 0 | M64: 0 | N64: 0
C67: TABLE 2.15.2 - INSURANCE PREMIUM - TOTAL PROPERTY
C69: Instructions
C70: This table removed from final RIN.
D73: Historical ($0's, nominal) | I73: =CONCATENATE("Forecast ($0's, real ", dms_DollarReal,")") -> Forecast ($0's, real December 2015)
A74: INS2152 | D74: =CRCP -> 2011 | E74: 2012 | F74: 2013 | G74: 2014 | H74: 2015 | I74: =FRCP -> 2016 | J74: 2017 | K74: 2018 | L74: 2019 | M74: 2020
C75: Base premium
A76: ED_INS21521_00001 | C76: Value of insured assets
A77: ED_INS21521_00002 | C77: Premium rate (%) | I77: =I78/I76 ->  | J77: =J78/J76 ->  | K77: =K78/K76 ->  | L77: =L78/L76 ->  | M77: =M78/M76 -> 
A78: ED_INS21521_00003 | C78: Premium (exposure x unit rate)
C79: Statutory charges
A80: ED_INS21522_00001 | C80: Stamp duty ($nominal)
A81: ED_INS21522_00002 | C81: FSL
A82: ED_INS21522_00003 | C82: Insert additional items if any
A83: ED_INS21522_00004
A84: ED_INS21522_00005
A85: ED_INS21522_00006
A86: ED_INS21522_00007
C87: Total premium (excludes GST) | I87: =I78+SUM(I80:I86) -> 0 | J87: =J78+SUM(J80:J86) -> 0 | K87: =K78+SUM(K80:K86) -> 0 | L87: =L78+SUM(L80:L86) -> 0 | M87: =M78+SUM(M80:M86) -> 0
A89: ED_INS2152_A9999 | C89: Change to exposure (%) | H89: =(I76-H76)/H76 -> 
A90: ED_INS2152_B9999 | C90: Change to premium rates (%, real) | H90: =(I87-H87)/H87 -> 
C93: TABLE 2.15.3 - INSURANCE PREMIUM - TOTAL LIABILITY
C95: Instruction
C96: This table removed from final RIN.
D99: Historical ($0's, nominal) | I99: =CONCATENATE("Forecast ($0's, real ", dms_DollarReal,")") -> Forecast ($0's, real December 2015)
A100: INS2153 | D100: =CRCP -> 2011 | E100: 2012 | F100: 2013 | G100: 2014 | H100: 2015 | I100: =FRCP -> 2016 | J100: 2017 | K100: 2018 | L100: 2019 | M100: 2020
A101: ED_INS2153_00001 | C101: Change to premium rates (per cent, real) | E101: =(E114-D114)/D114 ->  | F101: =(F114-E114)/E114 -> 
C102: Base premium
A103: ED_INS21531_00001 | C103: Liability cap
A104: ED_INS21531_00002 | C104: Premium
C105: Statutory charges
A106: ED_INS21532_00001 | C106: Stamp duty
A107: ED_INS21532_00002 | C107: <Insert additional items if any>
A108: ED_INS21532_00003
A109: ED_INS21532_00004
A110: ED_INS21532_00005
A111: ED_INS21532_00006
A112: ED_INS21532_00007
A113: ED_INS21532_00008
C114: Total premium (excludes GST) | I114: =SUM(I106:I113)+I104 -> 0 | J114: =SUM(J106:J113)+J104 -> 0 | K114: =SUM(K106:K113)+K104 -> 0 | L114: =SUM(L106:L113)+L104 -> 0 | M114: =SUM(M106:M113)+M104 -> 0
C117: TABLE 2.15.4 - PROPOSED SELF-INSURANCE ALLOWANCES BY RISK CATEGORY
C119: Instruction
C120: The DNSP is required to provide a list of proposed self insurance allowances by risk category including a description of the risk and the proposed self-insurance allowance in table 2.15.4 below.
C122: Risk class [drop down] | D122: Risk category | E122: Commercially insured (Yes/No) | F122: Commercial insurance deductable ($0's) | G122: Commercial insurance limit ($0's) | H122: Self insurance limit ($0's) | I122: =CONCATENATE("Proposed self insurance allowance ($0's, real ", dms_DollarReal, ")") -> Proposed self insurance allowance ($0's, real December 2015)
A123: INS2154 | I123: =FRCP -> 2016 | J123: 2017 | K123: 2018 | L123: 2019 | M123: 2020 | N123: Total
A124: INS2154_00001 | C124: Property | D124: Poles and wires | E124: No | F124: N/A | G124: N/A | H124: N/A | I124: 2117141.044 | J124: 2134669.006 | K124: 2131025.402 | L124: 2134048.747 | M124: 2120386.184 | N124: =+SUM(I124:M124) -> 10637270.38
A125: INS2154_00002 | C125: Liability | D125: Bushfire liability | E125: Yes | F125: 10000000 | H125: N/A | I125: 1217877.197 | J125: 1238948.983 | K125: 1249716.738 | L125: 1263199.544 | M125: 1271865.179 | N125: =+SUM(I125:M125) -> 6241607.64
A126: INS2154_00003 | N126: 0
A127: INS2154_00004 | N127: 0
A128: INS2154_00005 | N128: 0
A129: INS2154_00006 | N129: 0
A130: INS2154_00007 | N130: 0
A131: INS2154_00008 | N131: 0
A132: INS2154_00009 | N132: =+SUM(I132:M132) -> 0
A133: INS2154_00010 | N133: =+SUM(I133:M133) -> 0
A134: INS2154_00011 | N134: =+SUM(I134:M134) -> 0
A135: INS2154_00012 | N135: 0
A136: INS2154_00013 | N136: 0
A137: INS2154_00014 | N137: 0
A138: INS2154_00015 | N138: 0
C139: Total | I139: =+SUM(I124:I138) -> 3335018.241 | J139: 3373617.989 | K139: 3380742.14 | L139: 3397248.291 | M139: 3392251.363 | N139: 16878878.02

Sheet 2.16 Opex Summary
C1: =SheetHeader -> REGULATORY REPORTING STATEMENT
C2: =dms_TradingName -> AusNet (D)
C3: =FRCP_span -> 2016 to 2020
C4: 2.16 OPEX SUMMARY
C6: Instructions
C7: Complete the tables below in accordance with the regulatory information notice. The DNSP must input forecast opex by category in Table 2.16.2 and Table 2.16.4 if it did not forecast its total opex using a Base Year approach. Otherwise input '0'. The DNSP's total forecast opex must reconcile to Table 2.16.1 (and if the DNSP owns and dual function assets) Table 2.16.3. If the DNSP did not forecast its total opex using a Base Year approach, total forecast opex must, in addition, reconcile to Table 2.16.2 (and if the DNSP owns any dual function assets) Table 2.16.4. If the DNSP does not own any dual function assets,Table 2.16.3 and 2.16.4 may be left blank. The total step changes in Table 2.16.1 and Table 2.16.3 must reconcile (in each year) to the total step changes for each year in Table 2.17.1 and Table 2.17.3 of worksheet '2.17 Step Changes', respectively.
A9: NB: Codes in hidden column K | C9: TABLE 2.16.1 - STANDARD CONTROL SERVICES - OPEX BY DRIVER | L9: TABLE 2.16.2 - STANDARD CONTROL SERVICES - OPEX BY CATEGORY
D11: Current regulatory period | E11: Forthcoming regulatory period | M11: Current regulatory period | N11: Forthcoming regulatory period
D12: =CONCATENATE("Forecast ($0's, real ", dms_DollarReal,")") -> Forecast ($0's, real December 2015) | M12: =CONCATENATE("Forecast ($0's, real ", dms_DollarReal,")") -> Forecast ($0's, real December 2015)
D13: =CRCP_y5 -> 2015 | E13: =FRCP -> 2016 | F13: 2017 | G13: 2018 | H13: 2019 | I13: 2020 | M13: =CRCP_y5 -> 2015 | N13: =FRCP -> 2016 | O13: 2017 | P13: 2018 | Q13: 2019 | R13: 2020
C14: Driver | K14: ED_OPX2162_00001 | L14: Vegetation management | M14: 0 | N14: 0 | O14: 0 | P14: 0 | Q14: 0 | R14: 0
A15: ED_OPX2161_00001 | C15: Efficient historic opex | D15: 153178397.4 | E15: 237020997.8 | F15: 237142825.7 | G15: 237055916.4 | H15: 236506088.3 | I15: 236311837.8 | K15: ED_OPX2162_00002 | L15: Maintenance | M15: 0 | N15: 0 | O15: 0 | P15: 0 | Q15: 0 | R15: 0
A16: ED_OPX2161_00002 | C16: Real price changes | E16: 2029431.626 | F16: 3530145.201 | G16: 5528488.128 | H16: 7693332.075 | I16: 9739275.298 | K16: ED_OPX2162_00003 | L16: Emergency response | M16: 0 | N16: 0 | O16: 0 | P16: 0 | Q16: 0 | R16: 0
A17: ED_OPX2161_00003 | C17: Output growth | E17: 3439861.59 | F17: 6774280.795 | G17: 10087795.14 | H17: 13319010.29 | I17: 16507284.61 | K17: ED_OPX2162_00004 | L17: Non-network | M17: 0 | N17: 0 | O17: 0 | P17: 0 | Q17: 0 | R17: 0
A18: ED_OPX2161_00004 | C18: Productivity growth | E18: 0 | F18: 0 | G18: 0 | H18: 0 | I18: 0 | K18: ED_OPX2162_00005 | L18: Network overheads | M18: 0 | N18: 0 | O18: 0 | P18: 0 | Q18: 0 | R18: 0
A19: ED_OPX2161_00005 | C19: Step changes | D19: 45152608.75 | E19: 562452.1739 | F19: 702556.5217 | G19: 1658085.855 | H19: 1837373.032 | I19: 2131025.426 | K19: ED_OPX2162_00006 | L19: Corporate overheads | M19: 0 | N19: 0 | O19: 0 | P19: 0 | Q19: 0 | R19: 0
C20: Total opex | D20: =SUM(D15:D19) -> 198331006.1 | E20: 243052743.2 | F20: 248149808.2 | G20: 254330285.5 | H20: 259355803.7 | I20: 264689423.2 | L20: Total opex | M20: =SUM(M14:M19) -> 0 | N20: 0 | O20: 0 | P20: 0 | Q20: 0 | R20: 0
C23: TABLE 2.16.3 - DUAL FUNCTION ASSETS - OPEX BY DRIVER | L23: TABLE 2.16.4 - DUAL FUNCTION ASSETS - OPEX BY CATEGORY
D25: Current regulatory period | E25: Forthcoming regulatory period | M25: Current regulatory period | N25: Forthcoming regulatory period
D26: =CONCATENATE("Forecast ($0's, real ", dms_DollarReal,")") -> Forecast ($0's, real December 2015) | M26: =CONCATENATE("Forecast ($0's, real ", dms_DollarReal,")") -> Forecast ($0's, real December 2015)
D27: =CRCP_y5 -> 2015 | E27: =FRCP -> 2016 | F27: 2017 | G27: 2018 | H27: 2019 | I27: 2020 | M27: =CRCP_y5 -> 2015 | N27: =FRCP -> 2016 | O27: 2017 | P27: 2018 | Q27: 2019 | R27: 2020
C28: Driver | K28: ED_OPX2164_00001 | L28: Vegetation management
A29: ED_OPX2163_00001 | C29: Efficent recurrent opex | K29: ED_OPX2164_00002 | L29: Maintenance
A30: ED_OPX2163_00002 | C30: Real price changes | K30: ED_OPX2164_00003 | L30: Emergency response
A31: ED_OPX2163_00003 | C31: Output growth | K31: ED_OPX2164_00004 | L31: Non-network
A32: ED_OPX2163_00004 | C32: Productivity growth | K32: ED_OPX2164_00005 | L32: Network overheads
A33: ED_OPX2163_00005 | C33: Step changes | K33: ED_OPX2164_00006 | L33: Corporate overheads
C34: Total opex | D34: =SUM(D29:D33) -> 0 | E34: 0 | F34: 0 | G34: 0 | H34: 0 | I34: 0 | L34: Total opex | M34: =SUM(M28:M33) -> 0 | N34: 0 | O34: 0 | P34: 0 | Q34: 0 | R34: 0

Sheet 2.17 Step Changes
C1: =SheetHeader -> REGULATORY REPORTING STATEMENT
C2: =dms_TradingName -> AusNet (D)
C3: =FRCP_span -> 2016 to 2020
C4: 2.17 STEP CHANGES
C7: Instructions
C8: Complete the Tables below in accordance with the regulatory information notice. If the DNSP does not own any dual function assets,Table 2.17.3 and 2.17.4 may be left blank. The total step changes in Table 2.17.1 and Table 2.17.3 must reconcile (in each year) to the total step changes for each year in Table 2.16.1 and Table 2.16.3 of worksheet '2.16 Opex Summary', respectively.
C12: TABLE 2.17.1 - FORECAST OPEX STEP CHANGES FOR STANDARD CONTROL SERVICES
E14: Current regulatory period | J14: Forthcoming regulatory period
E15: Historical ($0's, nominal) | I15: =CONCATENATE("Forecast ($0's, real ", dms_DollarReal, ")") -> Forecast ($0's, real December 2015)
A16: STE2171 | C16: Step change | D16: Description | E16: =CRCP -> 2011 | F16: 2012 | G16: 2013 | H16: 2014 | I16: 2015 | J16: =FRCP -> 2016 | K16: 2017 | L16: 2018 | M16: 2019 | N16: 2020
A17: ED_STE2171_00001 | C17: Power of Choice | D17: Refer to Chapter 4 of Revised Regulatory Proposal | E17: 0 | F17: 0 | G17: 0 | H17: 0 | I17: 0 | J17: 142452.1739 | K17: 282556.5217 | L17: 1238085.855 | M17: 1417373.032 | N17: 1711025.426
A18: ED_STE2171_00002 | C18: New Connections Framework | D18: Refer to Chapter 4 of Revised Regulatory Proposal | E18: 0 | F18: 0 | G18: 0 | H18: 0 | I18: 0 | J18: 420000 | K18: 420000 | L18: 420000 | M18: 420000 | N18: 420000
A19: ED_STE2171_00003 | C19: Insurance | D19: Refer to 2011-2015 final decision | E19: 5322987.782 | F19: 5420701.31 | G19: 5860726.713 | H19: 6188914.713 | I19: 6553851.238
A20: ED_STE2171_00004 | C20: National Framework for distribution network planning & expansion | D20: Refer to 2011-2015 final decision | E20: 252490.3718 | F20: 182571.5545 | G20: -35727.37926 | H20: 24188.64706 | I20: 463140.9876
A21: ED_STE2171_00005 | C21: Substation site cleanup | D21: Refer to 2011-2015 final decision | E21: 54661.5 | F21: -314154.93 | G21: 466548.19 | H21: 233084.7 | I21: 203772.2152
A22: ED_STE2171_00006 | C22: Quality of supply | D22: Refer to 2011-2015 final decision | F22: 277393.05 | G22: 149189.72 | H22: 255036.29 | I22: 335739.2489
A23: ED_STE2171_00007 | C23: Electricity Safety (Bushfire Mitigation) Regulations—POEL inspection program | D23: Refer to 2011-2015 final decision | E23: 240000.73 | F23: 115618.29 | G23: 369233.06 | H23: 245265.09 | I23: 370995.0563
A24: ED_STE2171_00008 | C24: SMS customers | D24: Refer to 2011-2015 final decision | E24: 11363.28 | F24: 16215 | G24: 21812.26 | H24: 42089.535 | I24: 365637.6218
A25: ED_STE2171_00009 | C25: Amendments to electricity distribution code | D25: Refer to 2011-2015 final decision | E25: 13220 | F25: 221299.32 | G25: 335740.06 | H25: 433125.67 | I25: 731275.2435
A26: ED_STE2171_00010 | C26: Customer charter | D26: Refer to 2011-2015 final decision | E26: 375674.5
A27: ED_STE2171_00011 | C27: Electric Line Clearance Regulations, incl hazardous trees | D27: Refer to 2011-2015 final decision | E27: 6310436.54 | F27: 15982442.66 | G27: 22577487.65 | H27: 18538986.37 | I27: 20160301.08
A28: ED_STE2171_00012 | C28: Electricity safety management—Conductor ties | D28: Refer to 2011-2015 final decision
A29: ED_STE2171_00013 | C29: Electricity safety management—Enhanced asset inspection programs | D29: Refer to 2011-2015 final decision | E29: 3371531.87 | F29: 2602162.82 | G29: 2366533.76 | H29: 2074714.45 | I29: 633864.4145
A30: ED_STE2171_00014 | C30: IT systems | D30: Refer to 2011-2015 final decision | E30: 3925488.918 | F30: 5649131.349 | G30: 6181593.938 | H30: 4359520.368 | I30: 9515573.212
A31: ED_STE2171_00015 | C31: Leasing of vehicles | D31: Refer to 2011-2015 final decision | E31: -151980.2277 | F31: 791914.6551 | G31: 522209.8157 | H31: 572038.6682 | I31: 2437584.145
A32: ED_STE2171_00016 | C32: Leasing of major facilities | D32: Refer to 2011-2015 final decision | G32: 248.2096715 | H32: 623.9502956 | I32: 645959.7984
A33: ED_STE2171_00017 | C33: EDPR regulatory submission cost | D33: Refer to 2011-2015 final decision | H33: 1748369.926 | I33: 1810042.712
A34: ED_STE2171_00018 | C34: ESV levy | D34: Refer to 2011-2015 final decision | E34: 485344 | F34: 957506 | G34: 983133 | H34: 1029603.5 | I34: 924871.772
A35: ED_STE2171_00019
A36: ED_STE2171_00020
A37: ED_STE2171_00021
A38: ED_STE2171_00022
A39: ED_STE2171_00023
A40: ED_STE2171_00024
A41: ED_STE2171_00025
A42: ED_STE2171_00026
A43: ED_STE2171_00027
A44: ED_STE2171_00028
A45: ED_STE2171_00029
A46: ED_STE2171_00030
A47: ED_STE2171_00031
A48: ED_STE2171_00032
A49: ED_STE2171_00033
A50: ED_STE2171_00034
C51: Total | E51: =SUM(E17:E50) -> 20211219.26 | F51: 31902801.08 | G51: 39798729 | H51: 35745561.88 | I51: 45152608.75 | J51: 562452.1739 | K51: 702556.5217 | L51: 1658085.855 | M51: 1837373.032 | N51: 2131025.426
C52: Check | J52: =IF(J$51-'2.16 Opex Summary'!E$19=0,"OK","Error") -> OK | K52: =IF(K$51-'2.16 Opex Summary'!F$19=0,"OK","Error") -> OK | L52: =IF(L$51-'2.16 Opex Summary'!G$19=0,"OK","Error") -> OK | M52: =IF(M$51-'2.16 Opex Summary'!H$19=0,"OK","Error") -> OK | N52: =IF(N$51-'2.16 Opex Summary'!I$19=0,"OK","Error") -> OK
C54: TABLE 2.17.2 - FORECAST CAPEX STEP CHANGES FOR STANDARD CONTROL SERVICES
E56: Current regulatory period | J56: Forthcoming regulatory period
E57: Historical ($0's, nominal) | I57: =CONCATENATE("Forecast ($0's, real ", dms_DollarReal, ")") -> Forecast ($0's, real December 2015)
A58: STE2172 | C58: Step change | D58: Description | E58: =CRCP -> 2011 | F58: 2012 | G58: 2013 | H58: 2014 | I58: 2015 | J58: =FRCP -> 2016 | K58: 2017 | L58: 2018 | M58: 2019 | N58: 2020
A59: ED_STE2172_00001 | C59: Vibration Dampers & Armour Rods | D59: Installation of Vibration Dampers & Armour Rods on 110,000 structures in accordance with plan developed to meet Energy Safe Victoria directive. | E59: 0 | F59: 1119661.73 | G59: 26014746.46 | H59: 26535263.61 | I59: 23363379.28 | J59: 27522480.19 | K59: 27641500.6 | L59: 27787111.16 | M59: 27933176.17 | N59: 28084820.56
A60: ED_STE2172_00002 | C60: Overhang Removals | D60: Completion of program to eliminate risk from overhanging trees by reconfiguring, relocating or undergrounding network as required by Electricity Safety (Electric Line Clearance) Regulations 2010 | E60: 1157000 | F60: 7543556.43 | G60: 13311339.96 | H60: 7991880.399 | I60: 12537287.08 | J60: 16900262.36 | K60: 13887760 | L60: 0 | M60: 0 | N60: 0
A61: ED_STE2172_00003 | C61: EDO fuses | D61: Replacement of EDO fuses that present risk of fire ignition with Boric acid or group fusing | E61: 3037000 | F61: 1344081.551 | G61: 5328921.235 | H61: 10414745.78 | I61: 2223540.82 | J61: 1312935.827 | K61: 1321933.608 | L61: 1332735.01 | M61: 1343364.257 | N61: 1354646.733
A62: ED_STE2172_00004 | C62: Line clearance | D62: Reconfiguration of network to increase line clearance of MV (primarily 22kV) circuit spans following survey and assessment in current regulatory period. | E62: 0 | F62: 0 | G62: 0 | H62: 0 | I62: 2207600.507 | J62: 1989296.707 | K62: 2002929.71 | L62: 2019295.47 | M62: 2035400.389 | N62: 2052495.05
A63: ED_STE2172_00005 | C63: Fall arrest systems | D63: Program to commence installation of fall restraints on 66kV lattice towers to meet OHS (Prevention of Falls) Regulations 2003. | E63: 0 | F63: 0 | G63: 0 | H63: 0 | I63: 385450.3834 | J63: 1720155.012 | K63: 1727593.788 | L63: 1736694.447 | M63: 1745823.511 | N63: 1755301.285
A64: ED_STE2172_00006 | C64: Replace SWER OCRs with ACRs | D64: Program to replace & upgrade 234 3-phase ACR controller & replace 525 Oil Circuit Reclosers on SWER systems with Automatic Circuit Reclosers to enable reclose settings on Total Fire Ban days. | E64: 78000 | F64: 5328762.47 | G64: 5482747.661 | H64: 5302750.273 | I64: 5359381.404 | J64: 992737.9454 | K64: 0 | L64: 0 | M64: 0 | N64: 0
A65: ED_STE2172_00007 | C65: Woori Yallock GFN | D65: Trial installation of a Rapid Earth Fault Current Limiter (REFCL; also known as GFN) at Woori Yallock zone substation | E65: 0 | F65: 323153.85 | G65: 1917681.44 | H65: 2101094.55 | I65: 6010445.496 | J65: 0 | K65: 0 | L65: 0 | M65: 0 | N65: 0
A66: ED_STE2172_00008 | C66: Relay replacements | D66: Replacement of Master Earth Fault relays at multiple zone substations to enable detection of downed conductors and provide monitoring & fault recording for Neutral Earth Resistors. | E66: 0 | F66: 293681.79 | G66: 2205782.73 | H66: 1595012.6 | I66: 209596.0609 | J66: 0 | K66: 0 | L66: 0 | M66: 0 | N66: 0
A67: ED_STE2172_00009 | C67: ACR Replacements | D67: Replacement of 37 additional ACRs, 39 additional ACR controllers and modification of settings on 234 ACRs to enable reclose settings on Total Fire Ban days. | E67: 0 | F67: 1429424.53 | G67: 994305.33 | H67: 50249.57 | I67: 2025.082714 | J67: 0 | K67: 0 | L67: 0 | M67: 0 | N67: 0
A68: ED_STE2172_00010 | C68: Powerline Replacement Fund | D68: Victorian Government initiative funding the replacement of bare overhead conductor with insulated or underground network in areas of very high fire risk. | E68: 0 | F68: 0 | G68: 26450.12 | H68: 5974333.185 | I68: 12857142.86 | J68: 12525276.18 | K68: 12153589.85 | L68: 11809534.68 | M68: 11469503.97 | N68: 11139025.36
A69: ED_STE2172_00011 | C69: Declared Areas Conductor replacements | D69: Undergrounding of powerlines or insulating of conductors in high bushfire risk areas as per proposed amendments to Electricity Safety Regulations | E69: 0 | F69: 0 | G69: 0 | H69: 0 | I69: 0 | J69: 0 | K69: 80051.30254 | L69: 80705.39461 | M69: 81349.0616 | N69: 82032.28572
A70: ED_STE2172_00012 | C70: Power of Choice - Non-Network IT | D70: Program to enhance ICT systems to build the capabilities required for compliance with the Power of Choice reforms (e.g. management of metering data from third party metering providers). | E70: 0 | F70: 0 | G70: 0 | H70: 0 | I70: 0 | J70: 13722122.32 | K70: 32495040.26 | L70: 2162190.209 | M70: 0 | N70: 0
A71: ED_STE2172_00013
A72: ED_STE2172_00014
A73: ED_STE2172_00015
A74: ED_STE2172_00016
C75: Total | E75: =SUM(E59:E74) -> 4272000 | F75: 17382322.35 | G75: 55281974.93 | H75: 59965329.96 | I75: 65155848.97 | J75: 76685266.54 | K75: 91310399.11 | L75: 46928266.37 | M75: 44608617.36 | N75: 44468321.27
C77: TABLE 2.17.3 - FORECAST OPEX STEP CHANGES FOR DUAL FUNCTION ASSETS
E79: Current regulatory period | J79: Forthcoming regulatory period
E80: Historical ($0's, nominal) | I80: =CONCATENATE("Forecast ($0's, real ", dms_DollarReal, ")") -> Forecast ($0's, real December 2015)
A81: STE2173 | C81: Step change | D81: Description | E81: =CRCP -> 2011 | F81: 2012 | G81: 2013 | H81: 2014 | I81: 2015 | J81: =FRCP -> 2016 | K81: 2017 | L81: 2018 | M81: 2019 | N81: 2020
A82: ED_STE2173_00001
A83: ED_STE2173_00002
A84: ED_STE2173_00003
A85: ED_STE2173_00004
A86: ED_STE2173_00005
A87: ED_STE2173_00006
A88: ED_STE2173_00007
A89: ED_STE2173_00008
A90: ED_STE2173_00009
A91: ED_STE2173_00010
A92: ED_STE2173_00011
A93: ED_STE2173_00012
C94: Total | E94: =SUM(E82:E93) -> 0 | F94: 0 | G94: 0 | H94: 0 | I94: 0 | J94: 0 | K94: 0 | L94: 0 | M94: 0 | N94: 0
C95: Check | J95: =IF(J$51-'2.16 Opex Summary'!E$33=0,"OK","Error") -> Error | K95: =IF(K$51-'2.16 Opex Summary'!F$33=0,"OK","Error") -> Error | L95: =IF(L$51-'2.16 Opex Summary'!G$33=0,"OK","Error") -> Error | M95: =IF(M$51-'2.16 Opex Summary'!H$33=0,"OK","Error") -> Error | N95: =IF(N$51-'2.16 Opex Summary'!I$33=0,"OK","Error") -> Error
C97: TABLE 2.17.4 - FORECAST CAPEX STEP CHANGES FOR DUAL FUNCTION ASSETS
E99: Current regulatory period | J99: Forthcoming regulatory period
E100: Historical ($0's, nominal) | I100: =CONCATENATE("Forecast ($0's, real ", dms_DollarReal, ")") -> Forecast ($0's, real December 2015)
A101: STE2174 | C101: Step change | D101: Description | E101: =CRCP -> 2011 | F101: 2012 | G101: 2013 | H101: 2014 | I101: 2015 | J101: =FRCP -> 2016 | K101: 2017 | L101: 2018 | M101: 2019 | N101: 2020
A102: ED_STE2174_00001
A103: ED_STE2174_00002
A104: ED_STE2174_00003
A105: ED_STE2174_00004
A106: ED_STE2174_00005
A107: ED_STE2174_00006
A108: ED_STE2174_00007
A109: ED_STE2174_00008
A110: ED_STE2174_00009
A111: ED_STE2174_00010
A112: ED_STE2174_00011
A113: ED_STE2174_00012
C114: Total | E114: =SUM(E102:E113) -> 0 | F114: 0 | G114: 0 | H114: 0 | I114: 0 | J114: 0 | K114: 0 | L114: 0 | M114: 0 | N114: 0

Sheet 3.1 Revenue
C1: =SheetHeader -> REGULATORY REPORTING STATEMENT
C2: =dms_TradingName -> AusNet (D)
C3: =FRCP_span -> 2016 to 2020
C4: 3.1 REVENUE
E7: Standard control services | L7: Alternative control services
E8: =CONCATENATE("Forecast ($0's, real ", dms_DollarReal,")") -> Forecast ($0's, real December 2015) | L8: =CONCATENATE("Forecast ($0's, real ", dms_DollarReal,")") -> Forecast ($0's, real December 2015)
E9: =CRCP_y5 -> 2015 | F9: =FRCP -> 2016 | G9: 2017 | H9: 2018 | I9: 2019 | J9: 2020 | L9: =CRCP_y5 -> 2015 | M9: =FRCP -> 2016 | N9: 2017 | O9: 2018 | P9: 2019 | Q9: 2020
C11: TABLE 3.1.1 - REVENUE GROUPING BY CHARGEABLE QUANTITY
A12: ED_REV311_00001 | B12: DREV0101 | C12: Revenue from Fixed Customer Charges | E12: 44929725.19 | F12: 42191239.34 | G12: 56689635.93 | H12: 57962179.27 | I12: 59246533.88 | J12: 60275898.17
A13: ED_REV311_00002 | B13: DREV0102 | C13: Revenue from Energy Delivery charges where time of use is not a determinant | E13: 238778026.8 | F13: 216263844.9 | G13: 283985159.2 | H13: 282228171.4 | I13: 280334707.6 | J13: 279261257.7
A14: ED_REV311_00003 | B14: DREV0103 | C14: Revenue from On–Peak Energy Delivery charges | E14: 195858115.7 | F14: 178037000.6 | G14: 231761152.1 | H14: 229288295.1 | I14: 226883793.5 | J14: 224373274.1
A15: ED_REV311_00004 | B15: DREV0104 | C15: Revenue from Shoulder period Energy Delivery Charges | E15: 10786540.07 | F15: 10380704.21 | G15: 14256490.25 | H15: 14862719.88 | I15: 15464109.49 | J15: 16006927.99
A16: ED_REV311_00005 | B16: DREV0105 | C16: Revenue from Off–Peak Energy Delivery charges | E16: 49004230.87 | F16: 44241932.75 | G16: 57230709.3 | H16: 56304401.37 | I16: 55433504.13 | J16: 54543667.5
A17: ED_REV311_00006 | B17: DREV0106 | C17: Revenue from controlled load customer charges
A18: ED_REV311_00007 | B18: DREV0107 | C18: Revenue from unmetered supplies | E18: 8157419.542 | F18: 7684806.348 | G18: 10360826.66 | H18: 10611601.52 | I18: 10868315.39 | J18: 11097236.83
A19: ED_REV311_00008 | B19: DREV0108 | C19: Revenue from Contracted Maximum Demand charges | E19: 38821078.86 | F19: 36841497.79 | G19: 49980834.77 | H19: 51519904.31 | I19: 53058923.66 | J19: 54419365.02
A20: ED_REV311_00009 | B20: DREV0109 | C20: Revenue from Measured Maximum Demand charges | E20: 38066453.9 | F20: 36110327.41 | G20: 48967353.98 | H20: 50454889.39 | I20: 51942274.47 | J20: 53254534.88
A21: ED_REV311_00010 | B21: DREV0110 | C21: Revenue from metering charges | L21: 160048721.7 | M21: 103122805.4 | N21: 95066538.7 | O21: 87639652.03 | P21: 80792976.3 | Q21: 74481183.67
A22: ED_REV311_00011 | B22: DREV0111 | C22: Revenue from connection charges | L22: 3173649.504 | M22: 3689161.201 | N22: 3980382.141 | O22: 3991310.26 | P22: 3888060.692 | Q22: 3915933.053
A23: ED_REV311_00012 | B23: DREV0112 | C23: Revenue from public lighting charges | L23: 8434074.741 | M23: 7792879.572 | N23: 7915987.871 | O23: 8020472.914 | P23: 8085515.579 | Q23: 8142128.88
A24: ED_REV311_00013 | B24: DREV0113 | C24: Revenue from other Sources
B25: DREV01 | C25: Total revenue by chargeable quantity | E25: =SUM(E12:E24) -> 624401590.9 | F25: 571751353.3 | G25: 753232162.2 | H25: 753232162.2 | I25: 753232162.2 | J25: 753232162.2 | L25: =SUM(L12:L24) -> 171656446 | M25: 114604846.2 | N25: 106962908.7 | O25: 99651435.21 | P25: 92766552.57 | Q25: 86539245.6
C27: TABLE 3.1.2 REVENUE GROUPING BY CUSTOMER TYPE OR CLASS
A28: ED_REV312_00001 | B28: DREV0201 | C28: Revenue from residential Customers | E28: 308873599.7 | F28: 282308246.1 | G28: 372710436.9 | H28: 372803237.3 | I28: 372615461.2 | J28: 373365384.1
A29: ED_REV312_00002 | B29: DREV0202 | C29: Revenue from Non residential customers not on demand tariffs | E29: 172504714.5 | F29: 153118921.1 | G29: 194891365.1 | H29: 188409120.9 | I29: 182213196.4 | J29: 175758083.3
A30: ED_REV312_00003 | B30: DREV0203 | C30: Revenue from Non-residential low voltage demand tariff customers | E30: 117321853.6 | F30: 112572084.4 | G30: 154285705.4 | H30: 160557632.2 | I30: 166802856.5 | J30: 172449370.4
A31: ED_REV312_00004 | B31: DREV0204 | C31: Revenue from Non-residential high voltage demand tariff customers | E31: 17544003.59 | F31: 16067295.41 | G31: 20983828.1 | H31: 20850570.3 | I31: 20732332.69 | J31: 20562087.47
A32: ED_REV312_00005 | B32: DREV0205 | C32: Revenue from unmetered supplies | E32: 8157419.542 | F32: 7684806.348 | G32: 10360826.66 | H32: 10611601.52 | I32: 10868315.39 | J32: 11097236.83
A33: ED_REV312_00006 | B33: DREV0206 | C33: Revenue from Other Customers
B34: DREV02 | C34: Total revenue by customer class | E34: =SUM(E28:E33) -> 624401590.9 | F34: 571751353.3 | G34: 753232162.2 | H34: 753232162.2 | I34: 753232162.2 | J34: 753232162.2 | L34: =SUM(L28:L33) -> 0 | M34: 0 | N34: 0 | O34: 0 | P34: 0 | Q34: 0
C36: TABLE 3.1.3 REVENUE (penalties) ALLOWED (deducted) THROUGH INCENTIVE SCHEMES
A37: ED_REV313_00001 | B37: DREV0301 | C37: EBSS | E37: -5294726.474 | F37: 4536247.585 | G37: 5976107.545 | H37: 5976107.545 | I37: 5976107.545 | J37: 5976107.545
A38: ED_REV313_00002 | B38: DREV0302 | C38: STPIS
A39: ED_REV313_00003 | B39: DREV0303 | C39: F-Factor | E39: 2020000
A40: ED_REV313_00004 | B40: DREV0304 | C40: S-Factor True up | E40: -7257113.55 | F40: -2565854.231 | G40: -3380287.46 | H40: -3380287.46 | I40: -3380287.46 | J40: -3380287.46
A41: ED_REV313_00005 | B41: DREV0305 | C41: Other
B42: DREV03 | C42: Total revenue of incentive schemes | E42: =SUM(E37:E41) -> -10531840.02 | F42: 1970393.354 | G42: 2595820.085 | H42: 2595820.085 | I42: 2595820.085 | J42: 2595820.085 | L42: =SUM(L37:L41) -> 0 | M42: 0 | N42: 0 | O42: 0 | P42: 0 | Q42: 0

Sheet 3.2 Operating expenditure
C1: =SheetHeader -> REGULATORY REPORTING STATEMENT
C2: =dms_TradingName -> AusNet (D)
C3: =FRCP_span -> 2016 to 2020
C4: 3.2 OPERATING EXPENDITURE
C6: Instructions
C7: Forecasts for opex in table 3.2.1 are to be for the opex categories that the DNSP has reported in their response to their annual reporting RIN.
E11: Standard control services | L11: Alternative control services
E12: =CONCATENATE("Forecast ($0's, real ",dms_DollarReal,")") -> Forecast ($0's, real December 2015) | L12: =CONCATENATE("Forecast ($0's, real ",dms_DollarReal,")") -> Forecast ($0's, real December 2015)
E13: =CRCP_y5 -> 2015 | F13: =FRCP -> 2016 | G13: 2017 | H13: 2018 | I13: 2019 | J13: 2020 | L13: =CRCP_y5 -> 2015 | M13: =FRCP -> 2016 | N13: 2017 | O13: 2018 | P13: 2019 | Q13: 2020
C15: TABLE 3.2.1 - OPEX CATEGORIES
C16: Table 3.2.1.1 Current opex categories and cost allocations
A17: ED_OPX3211_00001 | B17: DOPEX0101 | C17: Maintenance - Routine | E17: 13725865.71 | F17: 14399904.73 | G17: 14726930.7 | H17: 15083371 | I17: 15445716.02 | J17: 15795363.02
A18: ED_OPX3211_00002 | B18: DOPEX0102 | C18: Maintenance - Condition based | E18: 53555289.27 | F18: 56185240.28 | G18: 57461223.24 | H18: 58851974.35 | I18: 60265764.42 | J18: 61630009.61
A19: ED_OPX3211_00003 | B19: DOPEX0103 | C19: Maintenance - Emergency | E19: 17564455.25 | F19: 18426996.7 | G19: 18845479.09 | H19: 19301601.84 | I19: 19765280.64 | J19: 20212710.28
A20: ED_OPX3211_00004 | B20: DOPEX0104 | C20: Maintenance - SCADA/Network Control | E20: 31318.0569 | F20: 32855.9994 | G20: 33602.16859 | H20: 34415.45189 | I20: 35242.20791 | J20: 36039.99108
A21: ED_OPX3211_00005 | B21: DOPEX0105 | C21: Maintenance - AMI | E21: 0 | F21: 0 | G21: 0 | H21: 0 | I21: 0 | J21: 0
A22: ED_OPX3211_00006 | B22: DOPEX0106 | C22: Maintenance - Public Lighting | E22: 0 | F22: 0 | G22: 0 | H22: 0 | I22: 0 | J22: 0 | L22: 2197480.81 | M22: 5222581.799 | N22: 5258670.397 | O22: 5299440.87 | P22: 5342837.37 | Q22: 5388724.339
A23: ED_OPX3211_00007 | B23: DOPEX0107 | C23: Maintenance - Alternative control -other | E23: 0 | F23: 0 | G23: 0 | H23: 0 | I23: 0 | J23: 0
A24: ED_OPX3211_00008 | B24: DOPEX0108 | C24: Network Operating Costs | E24: 51305641.3 | F24: 53825118.37 | G24: 55047502.27 | H24: 56379833.38 | I24: 57734235.67 | J24: 59041174.26
A25: ED_OPX3211_00009 | B25: DOPEX0109 | C25: Billing & Revenue Collection | E25: 318891.9854 | F25: 363977.9691 | G25: 511680.0864 | H25: 561526.4538 | I25: 611510.0053 | J25: 619633.3273
A26: ED_OPX3211_00010 | B26: DOPEX0110 | C26: Advertising/Marketing | E26: 664040.9244 | F26: 696650.1236 | G26: 712471.2482 | H26: 729715.4022 | I26: 747245.22 | J26: 764160.7227
A27: ED_OPX3211_00011 | B27: DOPEX0111 | C27: Customer Service | E27: 9210040.638 | F27: 10195346.16 | G27: 10414780.22 | H27: 11389081.7 | I27: 11786058.28 | J27: 12330444.95
A28: ED_OPX3211_00012 | B28: DOPEX0112 | C28: Regulatory | E28: 2073695.778 | F28: 2175529.199 | G28: 2224936.092 | H28: 2278786.884 | I28: 2333529.759 | J28: 2386354.224
A29: ED_OPX3211_00013 | B29: DOPEX0113 | C29: IT | E29: 14543818.77 | F29: 33245749.4 | G29: 33649753.64 | H29: 34083814.18 | I29: 33857397.37 | J29: 33995702.5
A30: ED_OPX3211_00014 | B30: DOPEX0114 | C30: Licence fee | E30: 0 | F30: 0 | G30: 0 | H30: 0 | I30: 0 | J30: 0
A31: ED_OPX3211_00015 | B31: DOPEX0115 | C31: GSL payments | E31: 6600540.977 | F31: 9256504.385 | G31: 9256504.385 | H31: 9256504.385 | I31: 9256504.385 | J31: 9256504.385
A32: ED_OPX3211_00016 | B32: DOPEX0116 | C32: Non-network alternatives costs | E32: 1634081.99 | F32: 12123208.52 | G32: 12406776.25 | H32: 12721201.09 | I32: 13044140.05 | J32: 13360349.93
A33: ED_OPX3211_00017 | B33: DOPEX0117 | C33: Other - Standard Control Services | E33: 27103325.49 | F33: 32125661.39 | G33: 32858168.8 | H33: 33658459.38 | I33: 34473179.67 | J33: 35260975.96
A34: ED_OPX3211_00018 | B34: DOPEX0118 | C34: AMI | E34: 0 | F34: 0 | G34: 0 | H34: 0 | I34: 0 | J34: 0 | L34: 11866240.08 | M34: 12000732.62 | N34: 11217784.09 | O34: 10508452.04 | P34: 10785592.91 | Q34: 10974495.55
A35: ED_OPX3211_00019 | B35: DOPEX0119 | C35: Alternative control -other | E35: 0 | F35: 0 | G35: 0 | H35: 0 | I35: 0 | J35: 0
A36: ED_OPX3211_00020 | B36: DOPEX0120
A37: ED_OPX3211_00021 | B37: DOPEX0121
A38: ED_OPX3211_00022 | B38: DOPEX0122
A39: ED_OPX3211_00023 | B39: DOPEX0123
A40: ED_OPX3211_00024 | B40: DOPEX0124
A41: ED_OPX3211_00025 | B41: DOPEX0125
A42: ED_OPX3211_00026 | B42: DOPEX0126
A43: ED_OPX3211_00027 | B43: DOPEX0127
A44: ED_OPX3211_00028 | B44: DOPEX0128
A45: ED_OPX3211_00029 | B45: DOPEX0129
A46: ED_OPX3211_00030 | B46: DOPEX0130
A47: ED_OPX3211_00031 | B47: DOPEX0131
A48: ED_OPX3211_00032 | B48: DOPEX0132
A49: ED_OPX3211_00033 | B49: DOPEX0133
A50: ED_OPX3211_00034 | B50: DOPEX0134
A51: ED_OPX3211_99999 | B51: DOPEX01 | C51: Total opex | E51: =SUM(E17:E50) -> 198331006.1 | F51: 243052743.2 | G51: 248149808.2 | H51: 254330285.5 | I51: 259355803.7 | J51: 264689423.2 | L51: =SUM(L17:L50) -> 14063720.89 | M51: 17223314.42 | N51: 16476454.49 | O51: 15807892.91 | P51: 16128430.28 | Q51: 16363219.89
C54: TABLE 3.2.2 - OPEX CONSISTENCY
C55: Table 3.2.2.1 Opex consistency - current cost allocation approach
A56: ED_OPX3221_00001 | B56: DOPEX0201 | C56: Opex for network services | E56: 198331006.1 | F56: 243052743.2 | G56: 248149808.2 | H56: 254330285.5 | I56: 259355803.7 | J56: 264689423.2
A57: ED_OPX3221_00002 | B57: DOPEX0202 | C57: Opex for metering | L57: 11866240.08 | M57: 12000732.62 | N57: 11217784.09 | O57: 10508452.04 | P57: 10785592.91 | Q57: 10974495.55
A58: ED_OPX3221_00003 | B58: DOPEX0203 | C58: Opex for connection services
A59: ED_OPX3221_00004 | B59: DOPEX0204 | C59: Opex for public lighting | L59: 2197480.81 | M59: 5222581.799 | N59: 5258670.397 | O59: 5299440.87 | P59: 5342837.37 | Q59: 5388724.339
A60: ED_OPX3221_00005 | B60: DOPEX0205 | C60: Opex for amounts payable for easement levy or similar direct charges on DNSP | E60: 13941869.58 | F60: 15189219.58 | G60: 16036339.44 | H60: 16798341.31 | I60: 17225579.76 | J60: 17665722.88
A61: ED_OPX3221_00006 | B61: DOPEX0207 | C61: Opex for transmission connection point planning | E61: 46676.36406 | F61: 48296.22345 | G61: 49787.17427 | H61: 51293.04081 | I61: 52836.02803 | J61: 54440.14847
C62: Total opex | E62: =SUM(E56:E61) -> 212319552.1 | F62: 258290259 | G62: 264235934.8 | H62: 271179919.8 | I62: 276634219.5 | J62: 282409586.2 | L62: =SUM(L56:L61) -> 14063720.89 | M62: 17223314.42 | N62: 16476454.49 | O62: 15807892.91 | P62: 16128430.28 | Q62: 16363219.89
C65: TABLE 3.2.4 - OPEX FOR HIGH VOLTAGE CUSTOMERS | F65: End user costs (not standard control services)
A66: ED_OPX324_00001 | B66: DOPEX0401 | C66: Opex for high voltage customers | E66: 203066.7205 | F66: 210113.9604 | G66: 216600.3802 | H66: 223151.6913 | I66: 229864.4968 | J66: 236843.264

Sheet 3.4 Operational data
C1: =SheetHeader -> REGULATORY REPORTING STATEMENT
C2: =dms_TradingName -> AusNet (D)
C3: =FRCP_span -> 2016 to 2020
C4: 3.4 OPERATIONAL DATA
E6: Standard control services
D7: Unit of measure | E7: Forecast
E8: =CRCP_y5 -> 2015 | F8: =FRCP -> 2016 | G8: 2017 | H8: 2018 | I8: 2019 | J8: 2020
C10: TABLE 3.4.1 - ENERGY DELIVERY
A11: ED_OPD3410_00001 | B11: DOPED01 | C11: Total energy delivered | D11: GWh | E11: 7448.761126 | F11: 7456.423615 | G11: 7457.515871 | H11: 7452.755754 | I11: 7448.825562 | J11: 7461.681892
C14: Table 3.4.1.1 Energy grouping - delivery by chargeable quantity
A15: ED_OPD3411_00001 | B15: DOPED0201 | C15: Energy Delivery where time of use is not a determinant | D15: GWh | E15: 2404.010451 | F15: 2389.086133 | G15: 2374.995296 | H15: 2362.489338 | I15: 2353.160899 | J15: 2356.572995
A16: ED_OPD3411_00002 | B16: DOPED0202 | C16: Energy Delivery at On-peak times | D16: GWh | E16: 2136.592762 | F16: 2131.789985 | G16: 2124.068857 | H16: 2113.062553 | I16: 2101.236509 | J16: 2091.092033
A17: ED_OPD3411_00003 | B17: DOPED0203 | C17: Energy Delivery at Shoulder times | D17: GWh | E17: 441.937903 | F17: 463.0600952 | G17: 483.3197027 | H17: 502.8624248 | I17: 521.828086 | J17: 540.1794427
A18: ED_OPD3411_00004 | B18: DOPED0204 | C18: Energy Delivery at Off-peak times | D18: GWh | E18: 2390.155318 | F18: 2394.125146 | G18: 2394.563958 | H18: 2391.727914 | I18: 2387.977825 | J18: 2387.223255
A19: ED_OPD3411_00005 | B19: DOPED0205 | C19: Controlled load energy deliveries | D19: GWh
A20: ED_OPD3411_00006 | B20: DOPED0206 | C20: Energy Delivery to unmetered supplies | D20: GWh | E20: 76.06469208 | F20: 78.36225579 | G20: 80.56805781 | H20: 82.61352515 | I20: 84.62224375 | J20: 86.61416618
C22: Table 3.4.1.2 Energy - received from TNSP and other DNSPs by time of receipt
A23: ED_OPD3412_00001 | B23: DOPED0301 | C23: Energy into DNSP network at On-peak times | D23: GWh
A24: ED_OPD3412_00002 | B24: DOPED0302 | C24: Energy into DNSP network at Shoulder times | D24: GWh
A25: ED_OPD3412_00003 | B25: DOPED0303 | C25: Energy into DNSP network at Off-peak times | D25: GWh
A26: ED_OPD3412_00004 | B26: DOPED0304 | C26: Energy received from TNSP and other DNSPs not included in the above categories | D26: GWh | E26: 1 | F26: 1 | G26: 1 | H26: 1 | I26: 1 | J26: 1
C28: Table 3.4.1.3 Energy - received into DNSP system from embedded generation by time of receipt
A29: ED_OPD3413_00001 | B29: DOPED0401 | C29: Energy into DNSP network at On-peak times from non-residential embedded generation | D29: GWh | E29: 0 | F29: 0 | G29: 0 | H29: 0 | I29: 0 | J29: 0
A30: ED_OPD3413_00002 | B30: DOPED0402 | C30: Energy into DNSP network at Shoulder times from non-residential embedded generation | D30: GWh | E30: 0 | F30: 0 | G30: 0 | H30: 0 | I30: 0 | J30: 0
A31: ED_OPD3413_00003 | B31: DOPED0403 | C31: Energy into DNSP network at Off-peak times from non-residential embedded generation | D31: GWh | E31: 0 | F31: 0 | G31: 0 | H31: 0 | I31: 0 | J31: 0
A32: ED_OPD3413_00004 | B32: DOPED0404 | C32: Energy received from embedded generation not included in above categories from non-residential embedded generation | D32: GWh | E32: 677.0690843 | F32: 710.9225385 | G32: 746.4686654 | H32: 783.7920987 | I32: 822.9817036 | J32: 864.1307888
A33: ED_OPD3413_00005 | B33: DOPED0405 | C33: Energy into DNSP network at On-peak times from residential embedded generation | D33: GWh | E33: 0 | F33: 0 | G33: 0 | H33: 0 | I33: 0 | J33: 0
A34: ED_OPD3413_00006 | B34: DOPED0406 | C34: Energy into DNSP network at Shoulder times from residential embedded generation | D34: GWh | E34: 0 | F34: 0 | G34: 0 | H34: 0 | I34: 0 | J34: 0
A35: ED_OPD3413_00007 | B35: DOPED0407 | C35: Energy into DNSP network at Off-peak times from residential embedded generation | D35: GWh | E35: 0 | F35: 0 | G35: 0 | H35: 0 | I35: 0 | J35: 0
A36: ED_OPD3413_00008 | B36: DOPED0408 | C36: Energy received from embedded generation not included in above categories from residential embedded generation | D36: GWh | E36: 160176.7087 | F36: 184882.0714 | G36: 206501.7622 | H36: 225035.7812 | I36: 235067.8426 | J36: 242119.8779
C38: Table 3.4.1.4 Energy grouping - customer type or class
A39: ED_OPD3414_00001 | B39: DOPED0501 | C39: Residential customers energy deliveries | D39: GWh | E39: 3154.122129 | F39: 3137.581569 | G39: 3120.483555 | H39: 3103.513944 | I39: 3088.765844 | J39: 3092.063146
A40: ED_OPD3414_00002 | B40: DOPED0502 | C40: Non residential customers not on demand tariffs energy deliveries | D40: GWh | E40: 1694.475997 | F40: 1646.481316 | G40: 1599.00056 | H40: 1549.31717 | I40: 1500.478866 | J40: 1452.573199
A41: ED_OPD3414_00003 | B41: DOPED0503 | C41: Non-residential low voltage demand tariff customers energy deliveries | D41: GWh | E41: 1708.988457 | F41: 1787.635212 | G41: 1863.390819 | H41: 1936.394945 | I41: 2007.236628 | J41: 2075.804622
A42: ED_OPD3414_00004 | B42: DOPED0504 | C42: Non-residential high voltage demand tariff customers energy deliveries | D42: GWh | E42: 815.1098513 | F42: 806.3632624 | G42: 794.0728795 | H42: 780.9161695 | I42: 767.7219801 | J42: 754.6267591
A43: ED_OPD3414_00005 | B43: DOPED0505 | C43: Other Customer Class Energy Deliveries | D43: GWh | E43: 76.06469208 | F43: 78.36225579 | G43: 80.56805781 | H43: 82.61352515 | I43: 84.62224375 | J43: 86.61416618
C45: TABLE 3.4.2 - CUSTOMER NUMBERS
C46: Table 3.4.2.1 Distribution customer numbers by customer type or class
A47: ED_OPD3421_00001 | B47: DOPCN0101 | C47: Residential customer numbers | D47: number | E47: 609822.1102 | F47: 622911.1849 | G47: 635330.9669 | H47: 647821.2757 | I47: 660120.4714 | J47: 672127.3018
A48: ED_OPD3421_00002 | B48: DOPCN0102 | C48: Non residential customers not on demand tariff customer numbers | D48: number | E48: 67392.35464 | F48: 67123.11627 | G48: 66872.40651 | H48: 66619.68989 | I48: 66372.41145 | J48: 66133.45236
A49: ED_OPD3421_00003 | B49: DOPCN0103 | C49: Low voltage demand tariff customer numbers | D49: number | E49: 2132.699548 | F49: 2232.277716 | G49: 2328.135496 | H49: 2424.459436 | I49: 2519.520176 | J49: 2612.648468
A50: ED_OPD3421_00004 | B50: DOPCN0104 | C50: High voltage demand tariff customer numbers | D50: number | E50: 100.404379 | F50: 102.4183987 | G50: 104.3334475 | H50: 106.2592705 | I50: 108.1558977 | J50: 110.0078614
A51: ED_OPD3421_00005 | B51: DOPCN0105 | C51: Unmetered Customer Numbers | D51: number | E51: 88.65537685 | F51: 89.59525271 | G51: 90.48894217 | H51: 91.38765955 | I51: 92.27275228 | J51: 93.13700197
A52: ED_OPD3421_00006 | B52: DOPCN0106 | C52: Other Customer Numbers | D52: number
B53: DOPCN01 | C53: Total customer numbers | D53: number | E53: =SUM(E47:E52) -> 679536.2241 | F53: =SUM(F47:F52) -> 692458.5926 | G53: 704726.3313 | H53: 717063.0719 | I53: 729212.8317 | J53: 741076.5474
C55: Table 3.4.2.2 Distribution customer numbers by location on the network
A56: ED_OPD3422_00001 | B56: DOPCN0201 | C56: Customers on CBD network | D56: number | E56: 0 | F56: 0 | G56: 0 | H56: 0 | I56: 0 | J56: 0
A57: ED_OPD3422_00002 | B57: DOPCN0202 | C57: Customers on Urban network | D57: number | E57: 302698.0134 | F57: 308454.2558 | G57: 313918.8948 | H57: 319414.2705 | I57: 324826.356 | J57: 330111.0238
A58: ED_OPD3422_00003 | B58: DOPCN0203 | C58: Customers on Short rural network | D58: number | E58: 258338.328 | F58: 263251.0066 | G58: 267914.8156 | H58: 272604.8568 | I58: 277223.8138 | J58: 281734.026
A59: ED_OPD3422_00004 | B59: DOPCN0204 | C59: Customers on Long rural network | D59: number | E59: 118499.8827 | F59: 120753.3301 | G59: 122892.621 | H59: 125043.9446 | I59: 127162.6618 | J59: 129231.4977
B60: DOPCN02 | C60: Total customer numbers | D60: number | E60: =SUM(E56:E59) -> 679536.2241 | F60: =SUM(F56:F59) -> 692458.5926 | G60: 704726.3313 | H60: 717063.0719 | I60: 729212.8317 | J60: 741076.5474
C62: Table 3.4.2.3 Distribution customer numbers by Aurora Feeder categories
A63: ED_OPD3423_00001 | C63: Critical Infrastructure | D63: number
A64: ED_OPD3423_00002 | C64: High Density Commercial | D64: number
A65: ED_OPD3423_00003 | C65: Urban | D65: number
A66: ED_OPD3423_00004 | C66: High Density Rural | D66: number
A67: ED_OPD3423_00005 | C67: Low Density Rural | D67: number
A68: ED_OPD3423_99999 | C68: Total customer numbers | D68: number
C70: Table 3.4.2.4 Unmetered Supply
A71: ED_OPD3424_00001 | C71: Number of unmetered connections reported in customer numbers in the economic benchmarking RIN | D71: number
A72: ED_OPD3424_00002 | C72: Unmetered connections not reported in customer numbers in the economic benchmarking RIN | D72: number
A73: ED_OPD3424_99999 | C73: Total unmetered connections | D73: number
C75: TABLE 3.4.3 - SYSTEM DEMAND
C76: Table 3.4.3.1 Annual system maximum demand characteristics at the zone substation level – MW measure
A77: ED_OPD3431_00002 | B77: DOPSD0102 | C77: Non–coincident Summated Weather Adjusted System Annual Maximum Demand 10% POE | D77: MW | E77: 2022.681508 | F77: 2062.550763 | G77: 2100.682929 | H77: 2138.738488 | I77: 2174.242351 | J77: 2208.694122
A78: ED_OPD3431_00003 | B78: DOPSD0103 | C78: Non–coincident Summated Weather Adjusted System Annual Maximum Demand 50% POE | D78: MW | E78: 1759.556423 | F78: 1797.728737 | G78: 1834.355908 | H78: 1870.967948 | I78: 1905.234132 | J78: 1938.58888
A79: ED_OPD3431_00005 | B79: DOPSD0105 | C79: Coincident Weather Adjusted System Annual Maximum Demand 10% POE | D79: MW
A80: ED_OPD3431_00006 | B80: DOPSD0106 | C80: Coincident Weather Adjusted System Annual Maximum Demand 50% POE | D80: MW
C82: Table 3.4.3.2 Annual system maximum demand characteristics at the transmission connection point – MW measure
A83: ED_OPD3432_00002 | B83: DOPSD0108 | C83: Non–coincident Summated Weather Adjusted System Annual Maximum Demand 10% POE | D83: MW | E83: 2081.887027 | F83: 2111.218509 | G83: 2141.55107 | H83: 2169.553458 | I83: 2195.725252 | J83: 2222.298499
A84: ED_OPD3432_00003 | B84: DOPSD0109 | C84: Non–coincident Summated Weather Adjusted System Annual Maximum Demand 50% POE | D84: MW | E84: 1843.359364 | F84: 1871.33325 | G84: 1900.27082 | H84: 1927.071239 | I84: 1952.282075 | J84: 1977.869109
A85: ED_OPD3432_00005 | B85: DOPSD0111 | C85: Coincident Weather Adjusted System Annual Maximum Demand 10% POE | D85: MW
A86: ED_OPD3432_00006 | B86: DOPSD0112 | C86: Coincident Weather Adjusted System Annual Maximum Demand 50% POE | D86: MW
C88: Table 3.4.3.3 Annual system maximum demand characteristics at the zone substation level – MVA measure
A89: ED_OPD3433_00002 | B89: DOPSD0202 | C89: Non–coincident Summated Weather Adjusted System Annual Maximum Demand 10% POE | D89: MVA | E89: 2104.953437 | F89: 2146.444362 | G89: 2186.127541 | H89: 2225.730997 | I89: 2262.678969 | J89: 2298.532054
A90: ED_OPD3433_00003 | B90: DOPSD0203 | C90: Non–coincident Summated Weather Adjusted System Annual Maximum Demand 50% POE | D90: MVA | E90: 1831.125822 | F90: 1870.850783 | G90: 1908.967753 | H90: 1947.068975 | I90: 1982.728926 | J90: 2017.440368
A91: ED_OPD3433_00005 | B91: DOPSD0205 | C91: Coincident Weather Adjusted System Annual Maximum Demand 10% POE | D91: MVA
A92: ED_OPD3433_00006 | B92: DOPSD0206 | C92: Coincident Weather Adjusted System Annual Maximum Demand 50% POE | D92: MVA
C94: Table 3.4.3.4 Annual system maximum demand characteristics at the transmission connection point – MVA measure
A95: ED_OPD3434_00002 | B95: DOPSD0208 | C95: Non–coincident Summated Weather Adjusted System Annual Maximum Demand 10% POE | D95: MVA | E95: 2166.339177 | F95: 2196.860497 | G95: 2228.423504 | H95: 2257.561815 | I95: 2284.795272 | J95: 2312.446468
A96: ED_OPD3434_00003 | B96: DOPSD0209 | C96: Non–coincident Summated Weather Adjusted System Annual Maximum Demand 50% POE | D96: MVA | E96: 1918.135594 | F96: 1947.244246 | G96: 1977.355674 | H96: 2005.243256 | I96: 2031.476776 | J96: 2058.101752
A97: ED_OPD3434_00005 | B97: DOPSD0211 | C97: Coincident Weather Adjusted System Annual Maximum Demand 10% POE | D97: MVA
A98: ED_OPD3434_00006 | B98: DOPSD0212 | C98: Coincident Weather Adjusted System Annual Maximum Demand 50% POE | D98: MVA
C100: Table 3.4.3.5 Power factor conversion between MVA and MW
A101: ED_OPD3435_00001 | B101: DOPSD0301 | C101: Average overall network power factor conversion between MVA and MW | D101: Factor | E101: 0.965708702 | F101: 0.965708702 | G101: 0.965708702 | H101: 0.965708702 | I101: 0.965708702 | J101: 0.965708702
A102: ED_OPD3435_00002 | B102: DOPSD0302 | C102: Average power factor conversion for low voltage distribution lines | D102: Factor
A103: ED_OPD3435_00003 | B103: DOPSD0303 | C103: Average power factor conversion for 3.3 kV lines | D103: Factor
A104: ED_OPD3435_00004 | B104: DOPSD0304 | C104: Average power factor conversion for 6.6 kV lines | D104: Factor
A105: ED_OPD3435_00005 | B105: DOPSD0305 | C105: Average power factor conversion for 7.6 kV lines | D105: Factor
A106: ED_OPD3435_00006 | B106: DOPSD0306 | C106: Average power factor conversion for 11 kV lines | D106: Factor
A107: ED_OPD3435_00007 | B107: DOPSD0307 | C107: Average power factor conversion for SWER lines | D107: Factor | E107: 0.9828290043 | F107: 0.9828290043 | G107: 0.9828290043 | H107: 0.9828290043 | I107: 0.9828290043 | J107: 0.9828290043
A108: ED_OPD3435_00008 | B108: DOPSD0308 | C108: Average power factor conversion for 22 kV lines | D108: Factor | E108: 0.949151161 | F108: 0.949151161 | G108: 0.949151161 | H108: 0.949151161 | I108: 0.949151161 | J108: 0.949151161
A109: ED_OPD3435_00009 | B109: DOPSD0309 | C109: Average power factor conversion for 33 kV lines | D109: Factor
A110: ED_OPD3435_00010 | B110: DOPSD0310 | C110: Average power factor conversion for 44 kV lines | D110: Factor
A111: ED_OPD3435_00011 | B111: DOPSD0311 | C111: Average power factor conversion for 66 kV lines | D111: Factor | E111: 0.9609150838 | F111: 0.9609150838 | G111: 0.9609150838 | H111: 0.9609150838 | I111: 0.9609150838 | J111: 0.9609150838
A112: ED_OPD3435_00012 | B112: DOPSD0312 | C112: Average power factor conversion for 110 kV lines | D112: Factor
A113: ED_OPD3435_00013 | B113: DOPSD0313 | C113: Average power factor conversion for 132 kV lines | D113: Factor
A114: ED_OPD3435_00013 | B114: DOPSD0314 | C114: Average power factor conversion for 220 kV lines | D114: Factor
C116: Table 3.4.3.6 Demand supplied (for customers charged on this basis) – MW measure
A117: ED_OPD3436_00001 | B117: DOPSD0401 | C117: Summated Chargeable Contracted Maximum Demand | D117: MW
A118: ED_OPD3436_00002 | B118: DOPSD0402 | C118: Summated Chargeable Measured Maximum Demand | D118: MW
C119: Table 3.4.3.7 Demand supplied (for customers charged on this basis) – MVA measure
A120: ED_OPD3437_00001 | B120: DOPSD0403 | C120: Summated Chargeable Contracted Maximum Demand | D120: MVA | E120: 1008.209376 | F120: 1041.125717 | G120: 1071.476961 | H120: 1100.361346 | I120: 1128.219244 | J120: 1155.023748
A121: ED_OPD3437_00002 | B121: DOPSD0404 | C121: Summated Chargeable Measured Maximum Demand | D121: MVA | E121: 567.4674025 | F121: 586.8316377 | G121: 604.9977687 | H121: 622.3189847 | I121: 639.0447293 | J121: 655.1597301

Sheet 3.5 Physical assets
C1: =SheetHeader -> REGULATORY REPORTING STATEMENT
C2: =dms_TradingName -> AusNet (D)
C3: =FRCP_span -> 2016 to 2020
C4: 3.5 PHYSICAL ASSETS DATA
D7: Unit of measure | E7: Forecast
E8: =CRCP_y5 -> 2015 | F8: =FRCP -> 2016 | G8: 2017 | H8: 2018 | I8: 2019 | J8: 2020
C10: TABLE 3.5.1 - NETWORK CAPACITIES VARIABLES
C11: Circuit length
C12: Table 3.5.1.1 Overhead network length of circuit at each voltage
A13: ED_PHA3511_00001 | B13: DPA0101 | C13: Overhead low voltage distribution | D13: km
A14: ED_PHA3511_00002 | B14: DPA0102 | C14: Overhead 2.2 kV | D14: km
A15: ED_PHA3511_00003 | B15: DPA0103 | C15: Overhead 7.6 kV | D15: km
A16: ED_PHA3511_00004 | B16: DPA0104 | C16: Overhead 11 kV | D16: km
A17: ED_PHA3511_00005 | B17: DPA0105 | C17: Overhead SWER | D17: km
A18: ED_PHA3511_00006 | B18: DPA0106 | C18: Overhead 22 kV | D18: km
A19: ED_PHA3511_00007 | B19: DPA0107 | C19: Overhead 33 kV | D19: km
A20: ED_PHA3511_00008 | B20: DPA0108 | C20: Overhead 44 kV | D20: km
A21: ED_PHA3511_00009 | B21: DPA0109 | C21: Overhead 66 kV | D21: km
A22: ED_PHA3511_00010 | B22: DPA0110 | C22: Overhead 132 kV | D22: km
A23: ED_PHA3511_00011 | B23: DPA0111 | C23: Overhead 6.6kv | D23: km
A24: ED_PHA3511_00012 | B24: DPA0112 | C24: Overhead 110kV | D24: km
A25: ED_PHA3511_00013 | B25: DPA0113 | C25: Overhead 220kV | D25: km
A26: ED_PHA3511_00014 | B26: DPA0114 | C26: Other | D26: km
B27: DPA01 | C27: Total overhead circuit km | D27: km | E27: =SUM(E13:E26) -> 0 | F27: 0 | G27: 0 | H27: 0 | I27: 0 | J27: 0
C29: Table 3.5.1.2 Underground network circuit length at each voltage
A30: ED_PHA3512_00001 | B30: DPA0201 | C30: Underground low voltage distribution | D30: km
A31: ED_PHA3512_00002 | B31: DPA0202 | C31: Underground 5 kV | D31: km
A32: ED_PHA3512_00003 | B32: DPA0203 | C32: Underground 6.6 Kv | D32: km
A33: ED_PHA3512_00004 | B33: DPA0204 | C33: Underground 7.6 kV | D33: km
A34: ED_PHA3512_00005 | B34: DPA0205 | C34: Underground 11 kV | D34: km
A35: ED_PHA3512_00006 | B35: DPA0206 | C35: Underground SWER | D35: km
A36: ED_PHA3512_00007 | B36: DPA0207 | C36: Underground 22 kV | D36: km
A37: ED_PHA3512_00008 | B37: DPA0208 | C37: Underground 33 kV | D37: km
A38: ED_PHA3512_00009 | B38: DPA0209 | C38: Underground 66 kV | D38: km
A39: ED_PHA3512_00010 | B39: DPA0210 | C39: Underground 110 kV | D39: km
A40: ED_PHA3512_00010 | B40: DPA0211 | C40: Underground 132 kV | D40: km
A41: ED_PHA3512_00011 | B41: DPA0212 | C41: Other | D41: km
B42: DPA02 | C42: Total underground circuit km | D42: km | E42: =SUM(E30:E41) -> 0 | F42: 0 | G42: 0 | H42: 0 | I42: 0 | J42: 0
C44: Circuit Capacity MVA
C45: Table 3.5.1.3 Estimated overhead network weighted average MVA capacity by voltage class
A46: ED_PHA3513_00001 | B46: DPA0301 | C46: Overhead low voltage distribution | D46: MVA
A47: ED_PHA3513_00002 | B47: DPA0302 | C47: Overhead 6.6 kV | D47: MVA
A48: ED_PHA3513_00003 | B48: DPA0303 | C48: Overhead 7.6 kV | D48: MVA
A49: ED_PHA3513_00004 | B49: DPA0304 | C49: Overhead 11 kV | D49: MVA
A50: ED_PHA3513_00005 | B50: DPA0305 | C50: Overhead SWER | D50: MVA
A51: ED_PHA3513_00006 | B51: DPA0306 | C51: Overhead 22 kV | D51: MVA
A52: ED_PHA3513_00007 | B52: DPA0307 | C52: Overhead 33 kV | D52: MVA
A53: ED_PHA3513_00008 | B53: DPA0308 | C53: Overhead 44 kV | D53: MVA
A54: ED_PHA3513_00009 | B54: DPA0309 | C54: Overhead 66 kV | D54: MVA
A55: ED_PHA3513_00010 | B55: DPA0310 | C55: Overhead 110 kV | D55: MVA
A56: ED_PHA3513_00011 | B56: DPA0311 | C56: Overhead 132 kV | D56: MVA
A57: ED_PHA3513_00012 | B57: DPA0312 | C57: Overhead 220 kV | D57: MVA
A58: ED_PHA3513_00013 | B58: DPA0313 | C58: Other | D58: MVA
C60: Table 3.5.1.4 Estimated underground network weighted average MVA capacity by voltage class
A61: ED_PHA3514_00001 | B61: DPA0401 | C61: Underground low voltage distribution | D61: MVA
A62: ED_PHA3514_00002 | B62: DPA0402 | C62: Underground 5 kV | D62: MVA
A63: ED_PHA3514_00003 | B63: DPA0403 | C63: Underground 6.6 kV | D63: MVA
A64: ED_PHA3514_00004 | B64: DPA0404 | C64: Underground 7.6 kV | D64: MVA
A65: ED_PHA3514_00005 | B65: DPA0405 | C65: Underground 11 kV | D65: MVA
A66: ED_PHA3514_00006 | B66: DPA0406 | C66: Underground SWER | D66: MVA
A67: ED_PHA3514_00007 | B67: DPA0407 | C67: Underground 12.7 kV | D67: MVA
A68: ED_PHA3514_00008 | B68: DPA0408 | C68: Underground 22 kV | D68: MVA
A69: ED_PHA3514_00009 | B69: DPA0409 | C69: Underground 33 kV | D69: MVA
A70: ED_PHA3514_00010 | B70: DPA0410 | C70: Underground 66 kV | D70: MVA
A71: ED_PHA3514_00011 | B71: DPA0411 | C71: Underground 110 kV | D71: MVA
A72: ED_PHA3514_00011 | B72: DPA0412 | C72: Underground 132 kV | D72: MVA
A73: ED_PHA3514_00012 | B73: DPA0413 | C73: Other | D73: MVA
C75: TABLE 3.5.2 - TRANSFORMER CAPACITIES VARIABLES
C76: Table 3.5.2.1 Distribution transformer total installed capacity
A77: ED_PHA3521_00001 | B77: DPA0501 | C77: Distribution transformer capacity owned by utility | D77: MVA
A78: ED_PHA3521_00002 | B78: DPA0502 | C78: Distribution transformer capacity owned by High Voltage Customers | D78: MVA
A79: ED_PHA3521_00003 | B79: DPA0503 | C79: Cold spare capacity included in DPA0501 | D79: MVA
C81: Table 3.5.2.2 Zone substation transformer capacity
A82: ED_PHA3522_00001 | B82: DPA0601 | C82: Total installed capacity for first step transformation where there are two steps to reach distribution voltage | D82: MVA
A83: ED_PHA3522_00002 | B83: DPA0602 | C83: Total installed capacity for second step transformation where there are two steps to reach distribution voltage | D83: MVA
A84: ED_PHA3522_00003 | B84: DPA0603 | C84: Total zone substation transformer capacity where there is only a single step transformation to reach distribution voltage | D84: MVA
A85: ED_PHA3522_00004 | B85: DPA0604 | C85: Total zone substation transformer capacity | D85: MVA
A86: ED_PHA3522_00005 | B86: DPA0605 | C86: Cold spare capacity of zone substation transformers included in DPA0604 | D86: MVA
C88: Table 3.5.2.3 Distribution - other transformer capacity
A89: ED_PHA3523_00001 | C89: Distribution other - transformer capacity owned by utility | D89: MVA
C91: TABLE 3.5.3 - PUBLIC LIGHTING
A92: ED_PHA353_00001 | B92: DPA0701 | C92: Public lighting luminaires | D92: 0's | E92: 142977.4824 | F92: 141943.1835 | G92: 144168.7892 | H92: 146380.119 | I92: 148537.5225 | J92: 150653.767
A93: ED_PHA353_00002 | B93: DPA0702 | C93: Public lighting poles | D93: 0's | E93: 80867.74612 | F93: 84203.65115 | G93: 87677.16682 | H93: 91293.96976 | I93: 95059.97076 | J93: 98981.32444

Sheet 4.1 Public lighting
C1: =SheetHeader -> REGULATORY REPORTING STATEMENT
C2: =dms_TradingName -> AusNet (D)
C3: =FRCP_span -> 2016 to 2020
C4: 4.1 PUBLIC LIGHTING
C8: TABLE 4.1.2 - DESCRIPTOR METRICS ANNUALLY
C9: <<<GROUP-ROW>>>
E11: Unit of Measure | F11: VOLUMES & EXPENDITURE
A12: PUB412 | C12: SERVICE/SERVICE QUALITY | D12: DESCRIPTOR METRIC | F12: =CRCP_y5 -> 2015 | G12: =FRCP -> 2016 | H12: 2017 | I12: 2018 | J12: 2019 | K12: 2020
A13: ED_PUB412_00001 | C13: LIGHT INSTALLATION | D13: Number of lights installed | E13: 0's | F13: 2500 | G13: 2500 | H13: 2500 | I13: 2500 | J13: 2500 | K13: 2500
A14: ED_PUB412_00002 | D14: Number of poles installed | E14: 0's | F14: 0 | G14: 0 | H14: 0 | I14: 0 | J14: 0 | K14: 0
A15: ED_PUB412_00003 | D15: Total expenditure | E15: $0's | F15: 0 | G15: 0 | H15: 0 | I15: 0 | J15: 0 | K15: 0
A16: ED_PUB412_00004 | C16: LIGHT REPLACEMENT | D16: Number of lights replaced | E16: 0's | F16: 2855 | G16: 2997 | H16: 3146 | I16: 3304 | J16: 3469 | K16: 3642
A17: ED_PUB412_00005 | D17: Number of poles replaced | E17: 0's | F17: 100 | G17: 100 | H17: 100 | I17: 100 | J17: 100 | K17: 100
A18: ED_PUB412_00006 | D18: Total expenditure | E18: $0's | F18: 2360342.356 | G18: 2000256.147 | H18: 1964308.08 | I18: 1920930.665 | J18: 1884563.895 | K18: 1854913.172
A19: ED_PUB412_00007 | C19: LIGHT MAINTENANCE | D19: Number of lights maintained | E19: 0's | F19: 18672 | G19: 18447 | H19: 18846 | I19: 31930 | J19: 36796 | K19: 38239
A20: ED_PUB412_00008 | D20: Number of poles maintained | E20: 0's | F20: 0 | G20: 0 | H20: 0 | I20: 0 | J20: 0 | K20: 0
A21: ED_PUB412_00009 | D21: Total expenditure | E21: $0's | F21: 2197480.81 | G21: 5222581.799 | H21: 5258670.397 | I21: 5299440.87 | J21: 5342837.37 | K21: 5388724.339
A22: ED_PUB412_00010 | C22: QUALITY OF SUPPLY | D22: Mean days to rectify/replace public lighting assets | E22: days | F22: 2 | G22: 2 | H22: 2 | I22: 2 | J22: 2 | K22: 2
A23: ED_PUB412_00011 | D23: GSO breaches | E23: 0's | F23: 15 | G23: 15 | H23: 15 | I23: 15 | J23: 15 | K23: 15
A24: ED_PUB412_00012 | D24: GSL payments | E24: $0's | F24: 150 | G24: 150 | H24: 150 | I24: 150 | J24: 150 | K24: 150
A25: ED_PUB412_00013 | D25: Customer complaints | E25: 0's | F25: 10 | G25: 10 | H25: 10 | I25: 10 | J25: 10 | K25: 10
C31: TABLE 4.1.3 - COST METRICS
C32: <<<GROUP-ROW>>>
F34: =CONCATENATE("AVERAGE UNIT COST ($0's, real ",dms_DollarReal, ")") -> AVERAGE UNIT COST ($0's, real December 2015)
A35: PUB413 | D35: LIGHT TYPE | F35: =CRCP_y5 -> 2015 | G35: =FRCP -> 2016 | H35: 2017 | I35: 2018 | J35: 2019 | K35: 2020
A36: ED_PUB413_00001 | C36: LIGHT INSTALLATION | D36: Major Road - all light types
A37: ED_PUB413_00002 | D37: 50W Colour Corrected Mercury Vapour
A38: ED_PUB413_00003 | D38: 80W Colour Corrected Mercury Vapour
A39: ED_PUB413_00004 | D39: 125W Colour Corrected Mercury Vapour
A40: ED_PUB413_00005 | D40: 250W Colour Corrected Mercury Vapour
A41: ED_PUB413_00006 | D41: 400W Colour Corrected Mercury Vapour
A42: ED_PUB413_00007 | D42: 100W High Pressure Sodium
A43: ED_PUB413_00008 | D43: 150W High Pressure Sodium
A44: ED_PUB413_00009 | D44: 250W High Pressure Sodium
A45: ED_PUB413_00010 | D45: 400W High Pressure Sodium
A46: ED_PUB413_00011 | D46: 2 x 14W T5 Fluorescent
A47: ED_PUB413_00012 | D47: 2 x 24W T5 Fluorescent
A48: ED_PUB413_00013 | D48: 32W Compact Fluorescent 1
A49: ED_PUB413_00014 | D49: 42W Compact Fluorescent 1
A50: ED_PUB413_00015 | D50: 70W Metal Halide 1
A51: ED_PUB413_00016 | D51: 100W Metal Halide 1
A52: ED_PUB413_00017 | D52: 150W Metal Halide 1
A53: ED_PUB413_00006 | D53: 18W LED 1
A54: ED_PUB413_00007 | D54: Other Minor
A55: ED_PUB413_00008
A56: ED_PUB413_00009
A57: ED_PUB413_00010
A58: ED_PUB413_00011
A59: ED_PUB413_00012
A60: ED_PUB413_00013
A61: ED_PUB413_00014
A62: ED_PUB413_00015
A63: ED_PUB413_00016
A64: ED_PUB413_00017
A65: ED_PUB413_00018
A66: ED_PUB413_00019
A67: ED_PUB413_00020
A68: ED_PUB413_00021
A69: ED_PUB413_00022
A70: ED_PUB413_00023
A71: ED_PUB413_00024
A72: ED_PUB413_00025
A73: ED_PUB413_00026
A74: ED_PUB413_00027
A75: ED_PUB413_00028
A76: ED_PUB413_00029 | C76: LIGHT REPLACEMENT | D76: Major Road - all light types
A77: ED_PUB413_00030 | D77: 50W Colour Corrected Mercury Vapour (Central)
A78: ED_PUB413_00031 | D78: 80W Colour Corrected Mercury Vapour (Central)
A79: ED_PUB413_00032 | D79: 125W Colour Corrected Mercury Vapour (Central)
A80: ED_PUB413_00033 | D80: 250W Colour Corrected Mercury Vapour (Central)
A81: ED_PUB413_00034 | D81: 400W Colour Corrected Mercury Vapour (Central)
A82: ED_PUB413_00035 | D82: 100W High Pressure Sodium (Central)
A83: ED_PUB413_00036 | D83: 150W High Pressure Sodium (Central)
A84: ED_PUB413_00037 | D84: 250W High Pressure Sodium (Central)
A85: ED_PUB413_00038 | D85: 400W High Pressure Sodium (Central)
A86: ED_PUB413_00039 | D86: 2 x 14W T5 Fluorescent (Central)
A87: ED_PUB413_00040 | D87: 2 x 24W T5 Fluorescent (Central)
A88: ED_PUB413_00041 | D88: 32W Compact Fluorescent 1 (Central)
A89: ED_PUB413_00042 | D89: 42W Compact Fluorescent 1 (Central)
A90: ED_PUB413_00031 | D90: 70W Metal Halide 1 (Central)
A91: ED_PUB413_00032 | D91: 100W Metal Halide 1 (Central)
A92: ED_PUB413_00033 | D92: 150W Metal Halide 1 (Central)
A93: ED_PUB413_00034 | D93: 18W LED 1 (Central)
A94: ED_PUB413_00035 | D94: Other Minor
A95: ED_PUB413_00036
A96: ED_PUB413_00037
A97: ED_PUB413_00038
A98: ED_PUB413_00039
A99: ED_PUB413_00040
A100: ED_PUB413_00041
A101: ED_PUB413_00042
A102: ED_PUB413_00043
A103: ED_PUB413_00044
A104: ED_PUB413_00045
A105: ED_PUB413_00046
A106: ED_PUB413_00047
A107: ED_PUB413_00048
A108: ED_PUB413_00049
A109: ED_PUB413_00050
A110: ED_PUB413_00051
A111: ED_PUB413_00052
A112: ED_PUB413_00053
A113: ED_PUB413_00054
A114: ED_PUB413_00055
A115: ED_PUB413_00056
A116: ED_PUB413_00069 | C116: LIGHT MAINTENANCE | D116: Major Road - all light types | F116: 316.4739223 | G116: 324.4617241 | H116: 332.651138 | I116: 341.0472528 | J116: 349.6552854 | K116: 358.4805848
A117: ED_PUB413_00070 | D117: 50W Colour Corrected Mercury Vapour (Central) | F117: 211.4686049 | G117: 216.8060725 | H117: 222.2782578 | I117: 227.888561 | J117: 233.6404683 | K117: 239.5375537
A118: ED_PUB413_00071 | D118: 80W Colour Corrected Mercury Vapour (Central) | F118: 211.4686049 | G118: 216.8060725 | H118: 222.2782578 | I118: 227.888561 | J118: 233.6404683 | K118: 239.5375537
A119: ED_PUB413_00072 | D119: 125W Colour Corrected Mercury Vapour (Central) | F119: 211.4686049 | G119: 216.8060725 | H119: 222.2782578 | I119: 227.888561 | J119: 233.6404683 | K119: 239.5375537
A120: ED_PUB413_00073 | D120: 250W Colour Corrected Mercury Vapour (Central) | F120: 211.4686049 | G120: 216.8060725 | H120: 222.2782578 | I120: 227.888561 | J120: 233.6404683 | K120: 239.5375537
A121: ED_PUB413_00074 | D121: 400W Colour Corrected Mercury Vapour (Central) | F121: 211.4686049 | G121: 216.8060725 | H121: 222.2782578 | I121: 227.888561 | J121: 233.6404683 | K121: 239.5375537
A122: ED_PUB413_00075 | D122: 100W High Pressure Sodium (Central) | F122: 215.9474053 | G122: 221.3979178 | H122: 226.9860013 | I122: 232.7151279 | J122: 238.5888578 | K122: 244.6108405
A123: ED_PUB413_00076 | D123: 150W High Pressure Sodium (Central) | F123: 215.9474053 | G123: 221.3979178 | H123: 226.9860013 | I123: 232.7151279 | J123: 238.5888578 | K123: 244.6108405
A124: ED_PUB413_00077 | D124: 250W High Pressure Sodium (Central) | F124: 215.9474053 | G124: 221.3979178 | H124: 226.9860013 | I124: 232.7151279 | J124: 238.5888578 | K124: 244.6108405
A125: ED_PUB413_00078 | D125: 400W High Pressure Sodium (Central) | F125: 215.9474053 | G125: 221.3979178 | H125: 226.9860013 | I125: 232.7151279 | J125: 238.5888578 | K125: 244.6108405
A126: ED_PUB413_00079 | D126: 2 x 14W T5 Fluorescent (Central) | F126: 214.2167213 | G126: 219.6235514 | H126: 225.1668498 | I126: 230.8500611 | J126: 236.6767166 | K126: 242.650437
A127: ED_PUB413_00080 | D127: 2 x 24W T5 Fluorescent (Central) | F127: 214.2167213 | G127: 219.6235514 | H127: 225.1668498 | I127: 230.8500611 | J127: 236.6767166 | K127: 242.650437
A128: ED_PUB413_00081 | D128: 32W Compact Fluorescent 1 (Central) | F128: 215.9474053 | G128: 221.3979178 | H128: 226.9860013 | I128: 232.7151279 | J128: 238.5888578 | K128: 244.6108405
A129: ED_PUB413_00082 | D129: 42W Compact Fluorescent 1 (Central) | F129: 215.9474053 | G129: 221.3979178 | H129: 226.9860013 | I129: 232.7151279 | J129: 238.5888578 | K129: 244.6108405
A130: ED_PUB413_00083 | D130: 70W Metal Halide 1 (Central) | F130: 215.9474053 | G130: 221.3979178 | H130: 226.9860013 | I130: 232.7151279 | J130: 238.5888578 | K130: 244.6108405
A131: ED_PUB413_00084 | D131: 100W Metal Halide 1 (Central) | F131: 215.9474053 | G131: 221.3979178 | H131: 226.9860013 | I131: 232.7151279 | J131: 238.5888578 | K131: 244.6108405
A132: ED_PUB413_00085 | D132: 150W Metal Halide 1 (Central) | F132: 215.9474053 | G132: 221.3979178 | H132: 226.9860013 | I132: 232.7151279 | J132: 238.5888578 | K132: 244.6108405
A133: ED_PUB413_00086 | D133: 18W LED 1 (Central) | F133: 213.8845698 | G133: 219.2830164 | H133: 224.8177197 | I133: 230.492119 | J133: 236.3097401 | K133: 242.2741979
A134: ED_PUB413_00087 | D134: Other Minor | F134: 213.8845698 | G134: 219.2830164 | H134: 224.8177197 | I134: 230.492119 | J134: 236.3097401 | K134: 242.2741979
A135: ED_PUB413_00088
A136: ED_PUB413_00089
A137: ED_PUB413_00090
A138: ED_PUB413_00091
A139: ED_PUB413_00092
A140: ED_PUB413_00093
A141: ED_PUB413_00094
A142: ED_PUB413_00095
A143: ED_PUB413_00096
A144: ED_PUB413_00097
A145: ED_PUB413_00098
A146: ED_PUB413_00099
A147: ED_PUB413_00100
A148: ED_PUB413_00101
A149: ED_PUB413_00102
A150: ED_PUB413_00103
A151: ED_PUB413_00104
A152: ED_PUB413_00105
A153: ED_PUB413_00106
A154: ED_PUB413_00107
A155: ED_PUB413_00108

Sheet 4.2 Metering
C1: =SheetHeader -> REGULATORY REPORTING STATEMENT
C2: =dms_TradingName -> AusNet (D)
C3: =FRCP_span -> 2016 to 2020
C4: 4.2 METERING
C7: TABLE 4.2.1 - METERING DESCRIPTOR METRIC | M7: TABLE 4.2.2 - COST METRICS
C8: <<<GROUP-ROW>>>
A10: NB: Codes in hidden column L | E10: VOLUMES (0's) | O10: =CONCATENATE("EXPENDITURE ($0's, real ",dms_DollarReal,")") -> EXPENDITURE ($0's, real December 2015) | U10: VOLUMES (0's)
C11: ASSET CATEGORY | D11: ASSET SUBCATEGORY | E11: =CRCP_y5 -> 2015 | F11: =FRCP -> 2016 | G11: 2017 | H11: 2018 | I11: 2019 | J11: 2020 | M11: SERVICE SUBCATEGORY | N11: METER TYPE | O11: =CRCP_y5 -> 2015 | P11: =FRCP -> 2016 | Q11: 2017 | R11: 2018 | S11: 2019 | T11: 2020 | U11: =CRCP_y5 -> 2015 | V11: =FRCP -> 2016 | W11: 2017 | X11: 2018 | Y11: 2019 | Z11: 2020
A12: ED_MET421_00001 | C12: Meter Type 4 | D12: Single phase meter population | E12: 588021.6951 | F12: 601363.3018 | G12: 614609.2304 | H12: 628156.2789 | I12: 640807.7776 | J12: 653314.0683 | L12: ED_MET422_00001 | M12: Meter purchase | N12: Meter Type 4 | O12: 15975130.28 | P12: 11485367.93 | Q12: 12180575.9 | R12: 13980329.3 | S12: 15221305.92 | T12: 16408733.63 | U12: 21707.03597 | V12: 21992.82524 | W12: 21632.11505 | X12: 21948.38989 | Y12: 20980.32581 | Z12: 20881.83135
A13: ED_MET421_00002 | D13: Multi phase meter population | E13: 130467.3408 | F13: 131771.5594 | G13: 132872.7459 | H13: 134050.0872 | I13: 135211.9144 | J13: 136382.4551 | L13: ED_MET422_00002 | N13: Meter Type 5
A14: ED_MET421_00003 | D14: Current transformer connected meter population | E14: 3805.739108 | F14: 3859.541999 | G14: 3906.83223 | H14: 3957.021383 | I14: 4006.983054 | J14: 4057.834315 | L14: ED_MET422_00003 | N14: Meter Type 6
A15: ED_MET421_00004 | D15: Direct connect meter population | E15: 714683.2969 | F15: 729275.3192 | G15: 743575.144 | H15: 758249.3448 | I15: 772012.7089 | J15: 785638.689 | L15: ED_MET422_00004 | M15: Meter testing | N15: Meter Type 4 | O15: 138429.1551 | P15: 166774.8014 | Q15: 239250.7263 | R15: 244053.783 | S15: 258881.7332 | T15: 271762.9632 | U15: 464.0744472 | V15: 561.1396071 | W15: 831.7881721 | X15: 935.847 | Y15: 939.4407 | Z15: 943.39377
A16: ED_MET421_00005 | C16: Meter Type 5 | D16: Single phase meter population | E16: 3859.8 | F16: 2701.86 | G16: 1891.302 | H16: 1323.9114 | I16: 926.73798 | J16: 648.716586 | L16: ED_MET422_00005 | N16: Meter Type 5 | O16: 123427.0103 | P16: 104441.6751 | Q16: 29481.64269 | R16: 2292.626446 | S16: 2431.919312 | T16: 2552.924806 | U16: 413.7807641 | V16: 351.4101654 | W16: 102.4969999 | X16: 8.79129 | Y16: 8.825049 | Z16: 8.8621839
A17: ED_MET421_00006 | D17: Multi phase meter population | E17: 0 | F17: 0 | G17: 0 | H17: 0 | I17: 0 | J17: 0 | L17: ED_MET422_00006 | N17: Meter Type 6 | O17: 9290.205074 | P17: 7861.201351 | Q17: 2219.048374 | R17: 172.5632809 | S17: 183.0476902 | T17: 192.1556306 | U17: 31.14478869 | V17: 26.4502275 | W17: 7.714827952 | X17: 0.66171 | Y17: 0.664251 | Z17: 0.6670461
A18: ED_MET421_00007 | D18: Current transformer connected meter population | E18: 0 | F18: 0 | G18: 0 | H18: 0 | I18: 0 | J18: 0 | L18: ED_MET422_00007 | M18: Meter investigation | N18: Meter Type 4 | O18: 1013624.264 | P18: 1182165.152 | Q18: 1690501.948 | R18: 1718419.528 | S18: 1815852.398 | T18: 1898216.628 | U18: 3398.107284 | V18: 3977.57745 | W18: 5877.263348 | X18: 6589.44 | Y18: 6589.44 | Z18: 6589.44
A19: ED_MET421_00008 | D19: Direct connect meter population | E19: 3859.8 | F19: 2701.86 | G19: 1891.302 | H19: 1323.9114 | I19: 926.73798 | J19: 648.716586 | L19: ED_MET422_00008 | N19: Meter Type 5 | O19: 903773.5757 | P19: 740323.5244 | Q19: 208311.9042 | R19: 16142.7289 | S19: 17058.00738 | T19: 17831.73196 | U19: 3029.840226 | V19: 2490.932972 | W19: 724.2250866 | X19: 61.9008 | Y19: 61.9008 | Z19: 61.9008
A20: ED_MET421_00009 | C20: Meter Type 6 | D20: Single phase meter population | E20: 3713.5 | F20: 2599.45 | G20: 1819.615 | H20: 1273.7305 | I20: 891.61135 | J20: 624.127945 | L20: ED_MET422_00009 | N20: Meter Type 6 | O20: 68025.96807 | P20: 55723.27603 | Q20: 15679.39064 | R20: 1215.044111 | S20: 1283.936039 | T20: 1342.173373 | U20: 228.0524901 | V20: 187.4895785 | W20: 54.51156566 | X20: 4.6592 | Y20: 4.6592 | Z20: 4.6592
A21: ED_MET421_00010 | D21: Multi phase meter population | E21: 0 | F21: 0 | G21: 0 | H21: 0 | I21: 0 | J21: 0 | L21: ED_MET422_00010 | M21: Scheduled meter reading | N21: Meter Type 4
A22: ED_MET421_00011 | D22: Current transformer connected meter population | E22: 0 | F22: 0 | G22: 0 | H22: 0 | I22: 0 | J22: 0 | L22: ED_MET422_00011 | N22: Meter Type 5 | O22: 106504.7742 | P22: 106504.7742 | Q22: 106504.7742 | R22: 60925.04145 | S22: 57726.32567 | T22: 57726.32567 | U22: 100595.2691 | V22: 84956.21527 | W22: 25355.74028 | X22: 2223.2 | Y22: 2279.2 | Z22: 2335.2
A23: ED_MET421_00012 | D23: Direct connect meter population | E23: 3713.5 | F23: 2599.45 | G23: 1819.615 | H23: 1273.7305 | I23: 891.61135 | J23: 624.127945 | L23: ED_MET422_00012 | N23: Meter Type 6 | O23: 1308487.226 | P23: 1308487.226 | Q23: 1308487.226 | R23: 748507.6521 | S23: 709209.1439 | T23: 709209.1439 | U23: 1336480.004 | V23: 1128704.003 | W23: 336869.1208 | X23: 29536.8 | Y23: 30280.8 | Z23: 31024.8
L24: ED_MET422_00013 | M24: Special meter reading | N24: Meter Type 4
L25: ED_MET422_00014 | N25: Meter Type 5
L26: ED_MET422_00015 | N26: Meter Type 6
L27: ED_MET422_00016 | M27: New meter installation | N27: Meter Type 4
L28: ED_MET422_00017 | N28: Meter Type 5
L29: ED_MET422_00018 | N29: Meter Type 6
L30: ED_MET422_00019 | M30: Meter replacement | N30: Meter Type 4 | O30: 1611932 | P30: 1579410 | Q30: 1547532 | R30: 1515976 | S30: 1485386 | T30: 1485386 | U30: 5006 | V30: 4905 | W30: 4806 | X30: 4708 | Y30: 4613 | Z30: 4613
L31: ED_MET422_00020 | N31: Meter Type 5
L32: ED_MET422_00021 | N32: Meter Type 6
L33: ED_MET422_00022 | M33: Meter maintenance | N33: Meter Type 4 | O33: 101118.7668 | P33: 117932.3409 | Q33: 182714.4082 | R33: 201465.0682 | S33: 231175.7978 | T33: 262690.6513 | U33: 338.9938757 | V33: 396.8015965 | W33: 635.2318588 | X33: 772.5366 | Y33: 838.90026 | Z33: 911.900286
L34: ED_MET422_00023 | N34: Meter Type 5 | O34: 90160.10431 | P34: 73854.39006 | Q34: 22514.96152 | R34: 1892.550641 | S34: 2171.651434 | T34: 2467.700058 | U34: 302.2556956 | V34: 248.4945152 | W34: 78.27637129 | X34: 7.257162 | Y34: 7.8805782 | Z34: 8.56633602
L35: ED_MET422_00024 | N35: Meter Type 6 | O35: 6786.244411 | P35: 5558.932585 | Q35: 1694.674523 | R35: 142.4500483 | S35: 163.4576348 | T35: 185.7408646 | U35: 22.7504287 | V35: 18.70388824 | W35: 5.891769882 | X35: 0.546238 | Y35: 0.5931618 | Z35: 0.64477798
L36: ED_MET422_00025 | M36: Remote meter reading | N36: Meter Type 4 | P36: 35213.44653 | Q36: 30305.57242 | R36: 28790.2938 | S36: 27926.58499 | T36: 26155.94754 | V36: 26726.34667 | W36: 23001.3621 | X36: 21851.29399 | Y36: 21195.75518 | Z36: 19851.8745
L37: ED_MET422_00026 | M37: Remote meter re-configuration | N37: Meter Type 4 | P37: 198405.531 | Q37: 179472.6116 | R37: 160794.4665 | S37: 131559.1089 | T37: 104760.0312 | V37: 7329.411765 | W37: 6630 | X37: 5940 | Y37: 4860 | Z37: 3870
L38: ED_MET422_00027 | M38: Other metering | N38: Meter Type 4 | O38: 4644765.783 | P38: 4545639.345 | Q38: 3748798.204 | R38: 3871791.246 | S38: 4078122.794 | T38: 4167554.437
L39: ED_MET422_00028 | N39: Meter Type 5
L40: ED_MET422_00029 | N40: Meter Type 6
L41: ED_MET422_00030 | N41: Meter Type 7
L42: ED_MET422_00031 | M42: IT infrastructure capex | N42: Meter Type 4 | O42: 0 | P42: 0 | Q42: 0 | R42: 300000 | S42: 300000 | T42: 300000
L43: ED_MET422_00032 | M43: IT infrastructure opex | N43: Meter Type 4 | O43: 3351847 | P43: 3351847 | Q43: 3451847 | R43: 3451847 | S43: 3451847 | T43: 3451847
L44: ED_MET422_00033 | M44: Communications infrastructure capex | N44: Meter Type 4 | O44: 18408581.77 | P44: 4625266.085 | Q44: 229941.7997 | R44: 229941.7997 | S44: 229941.7997 | T44: 229941.7997
L45: ED_MET422_00034 | M45: Communications infrastructure opex | N45: Meter Type 4

Sheet 4.3 Fee-based services
C1: =SheetHeader -> REGULATORY REPORTING STATEMENT
C2: =dms_TradingName -> AusNet (D)
C3: =FRCP_span -> 2016 to 2020
C4: 4.3 ANCILLARY SERVICES - FEE BASED SERVICES
C6: TABLE 4.3.1 - COST METRICS FOR FEE-BASED SERVICES
C9: SERVICE | D9: SERVICE SUBCATEGORY | E9: =CONCATENATE("EXPENDITURE ($0's, real ", dms_DollarReal, ")") -> EXPENDITURE ($0's, real December 2015) | K9: VOLUMES (0's)
E10: =CRCP_y5 -> 2015 | F10: =FRCP -> 2016 | G10: 2017 | H10: 2018 | I10: 2019 | J10: 2020 | K10: =CRCP_y5 -> 2015 | L10: =FRCP -> 2016 | M10: 2017 | N10: 2018 | O10: 2019 | P10: 2020
A11: ED_FEE431_00001 | C11: Common Fee-Based Services | D11: Energisation
A12: ED_FEE431_00002 | C12: Common Fee-Based Services | D12: De-energisation
A13: ED_FEE431_00003 | C13: Common Fee-Based Services | D13: Re-energisation
A14: ED_FEE431_00004 | C14: Miscellaneous Fee-Based Services | D14: Field officer visits—BH | E14: 3495159.815 | F14: 3749536.935 | G14: 67535.9016 | H14: 32811.11067 | I14: 21671.53624 | J14: 18924.14743 | K14: 211699.5648 | L14: 203139.0831 | M14: 3658.900117 | N14: 1777.611223 | O14: 1174.10125 | P14: 1025.255658
A15: ED_FEE431_00005 | C15: Miscellaneous Fee-Based Services | D15: Field officer visits—AH | E15: 447724.6734 | F15: 1264723.167 | G15: 22779.93812 | H15: 11067.22577 | I15: 7309.834366 | J15: 6383.136926 | K15: 3865.360213 | L15: 3709.056891 | M15: 66.80678323 | N15: 32.45688154 | O15: 21.43757008 | P15: 18.71984211
A16: ED_FEE431_00006 | C16: Miscellaneous Fee-Based Services | D16: Remote Re-energisation | E16: 0 | F16: 633911.145 | G16: 633911.145 | H16: 633911.145 | I16: 633911.145 | J16: 633911.145 | L16: 104090.5 | M16: 104090.5 | N16: 104090.5 | O16: 104090.5 | P16: 104090.5
A17: ED_FEE431_00007 | C17: Miscellaneous Fee-Based Services | D17: Remote De-energisation | E17: 0 | F17: 388484.145 | G17: 388484.145 | H17: 388484.145 | I17: 388484.145 | J17: 388484.145 | L17: 63790.5 | M17: 63790.5 | N17: 63790.5 | O17: 63790.5 | P17: 63790.5
A18: ED_FEE431_00008 | C18: Miscellaneous Fee-Based Services | D18: Remote Meter Re-configuration | E18: 0 | F18: 198405.531 | G18: 179472.6116 | H18: 160794.4665 | I18: 131559.1089 | J18: 104760.0312 | L18: 7329.411765 | M18: 6630 | N18: 5940 | O18: 4860 | P18: 3870
A19: ED_FEE431_00009 | C19: Miscellaneous Fee-Based Services | D19: Remote Special Read | E19: 0 | F19: 35213.44653 | G19: 30305.57242 | H19: 28790.2938 | I19: 27926.58499 | J19: 26155.94754 | L19: 26726.34667 | M19: 23001.3621 | N19: 21851.29399 | O19: 21195.75518 | P19: 19851.8745
A20: ED_FEE431_00010 | C20: Miscellaneous Fee-Based Services | D20: Routine new connections— Single Ø Overhead—BH | E20: 38480.79414 | F20: 69380.46388 | G20: 74821.79247 | H20: 75071.2683 | I20: 73162.45881 | J20: 73619.01274 | K20: 184.675309 | L20: 179.2221117 | M20: 191.7425874 | N20: 189.9528562 | O20: 182.4227268 | P20: 181.082309
A21: ED_FEE431_00011 | C21: Miscellaneous Fee-Based Services | D21: Routine new connections— Single Ø Overhead—AH | E21: 1645.847001 | F21: 2598.331006 | G21: 2802.061862 | H21: 2743.264612 | I21: 2809.716668 | J21: 2845.429898 | K21: 5.735258045 | L21: 5.56590409 | M21: 5.95473874 | N21: 5.756147158 | O21: 5.809640981 | P21: 5.803920161
A22: ED_FEE431_00012 | C22: Miscellaneous Fee-Based Services | D22: Routine new connections— Single Ø Underground—BH | E22: 2327008.653 | F22: 2698261.119 | G22: 2911412.572 | H22: 2919324.63 | I22: 2843681.226 | J22: 2864444.411 | K22: 13828.19499 | L22: 13420.17865 | M22: 14365.28629 | N22: 14222.56957 | O22: 13651.85418 | P22: 13565.92191
A23: ED_FEE431_00013 | C23: Miscellaneous Fee-Based Services | D23: Routine new connections— Single Ø Underground—AH | E23: 27026.62338 | F23: 29214.32991 | G23: 31522.2061 | H23: 31640.92432 | I23: 30846.08222 | J23: 30983.60534 | K23: 117.0439712 | L23: 113.5904581 | M23: 121.5899946 | N23: 120.50472 | O23: 115.7625243 | P23: 114.7073612
A24: ED_FEE431_00014 | C24: Miscellaneous Fee-Based Services | D24: Routine new connections— Multi Ø Overhead—Direct Connected Meter—BH | E24: 27411.39053 | F24: 37766.52939 | G24: 40728.15018 | H24: 40846.49517 | I24: 39843.91216 | J24: 40349.78159 | K24: 94.05823193 | L24: 91.28082708 | M24: 97.65771534 | N24: 96.70327225 | O24: 92.9542557 | P24: 92.86272258
A25: ED_FEE431_00015 | C25: Miscellaneous Fee-Based Services | D25: Routine new connections— Multi Ø Overhead—Direct Connected Meter—AH | E25: 447.006012 | F25: 555.3881737 | G25: 598.939532 | H25: 586.378711 | I25: 600.5890653 | J25: 608.2160094 | K25: 1.147051609 | L25: 1.113180818 | M25: 1.190947748 | N25: 1.151229432 | O25: 1.161928196 | P25: 1.160784032
A26: ED_FEE431_00016 | C26: Miscellaneous Fee-Based Services | D26: Routine new connections— Multi Ø Overhead—CT Connected Meter—BH | E26: 3667.823695 | F26: 5565.046941 | G26: 6001.411982 | H26: 5875.552674 | I26: 5349.238553 | J26: 5417.146922 | K26: 10.32346448 | L26: 10.01862736 | M26: 10.71852973 | N26: 10.36106488 | O26: 9.29542557 | P26: 9.286272258
A27: ED_FEE431_00017 | C27: Miscellaneous Fee-Based Services | D27: Routine new connections— Multi Ø Overhead—CT ConnectedMeter—AH | E27: 597.7744755 | F27: 745.6530391 | G27: 804.1279195 | H27: 787.2567345 | I27: 806.3316911 | J27: 816.5767432 | K27: 1.147051609 | L27: 1.113180818 | M27: 1.190947748 | N27: 1.151229432 | O27: 1.161928196 | P27: 1.160784032
A28: ED_FEE431_00018 | C28: Miscellaneous Fee-Based Services | D28: Routine new connections— Multi Ø Underground—Direct Connected Meter—BH | E28: 373932.9895 | F28: 505061.5449 | G28: 544960.5465 | H28: 546594.5876 | I28: 532419.3073 | J28: 536318.1046 | K28: 1729.649796 | L28: 1678.614547 | M28: 1796.82992 | N28: 1779.453031 | O28: 1708.004964 | P28: 1697.262903
A29: ED_FEE431_00019 | C29: Miscellaneous Fee-Based Services | D29: Routine new connections— Multi Ø Underground—Direct Connected Meter—aH | E29: 3217.058587 | F29: 3979.481506 | G29: 4293.799971 | H29: 4202.22051 | I29: 4312.204803 | J29: 4369.782002 | K29: 11.00413404 | L29: 10.67944477 | M29: 11.43153795 | N29: 11.046266 | O29: 11.17006813 | P29: 11.16620331
A30: ED_FEE431_00020 | C30: Miscellaneous Fee-Based Services | D30: Routine new connections— Multi Ø Underground—CT Connected Meter—BH | E30: 53286.39868 | F30: 74594.88293 | G30: 80486.46576 | H30: 80549.33147 | I30: 78547.75664 | J30: 79133.33987 | K30: 177.0665205 | L30: 171.841975 | M30: 183.943838 | N30: 181.7612859 | O30: 174.6592472 | P30: 173.5837059
A31: ED_FEE431_00021 | C31: Miscellaneous Fee-Based Services | D31: Routine new connections— Multi Ø Underground—CT ConnectedMeter—AH | E31: 10273.67962 | F31: 11482.53902 | G31: 12389.50084 | H31: 12676.41368 | I31: 12442.5623 | J31: 12035.53284 | K31: 22.00826808 | L31: 21.35888955 | M31: 22.86307591 | N31: 23.09673799 | O31: 22.34013627 | P31: 21.31729722
A32: ED_FEE431_00022 | C32: Miscellaneous Fee-Based Services | D32: Routine new connections— Temporary Overhead Supply—Coincident Disconnection (Truck visit)—BH | E32: 303738.2337 | F32: 247653.3329 | G32: 267077.4402 | H32: 267980.8846 | I32: 260749.3523 | J32: 262470.5422 | K32: 783.4362489 | L32: 760.3024987 | M32: 813.4173119 | N32: 805.8606021 | O32: 772.6822505 | P32: 767.2782453
A33: ED_FEE431_00023 | C33: Miscellaneous Fee-Based Services | D33: Routine new connections— Temporary Overhead Supply—Coincident Disconnection (Truck visit)—AH | E33: 2915.231664 | F33: 2302.558863 | G33: 2483.126055 | H33: 2431.051191 | I33: 2489.954028 | J33: 2521.571153 | K33: 5.735258045 | L33: 5.56590409 | M33: 5.95473874 | N33: 5.756147158 | O33: 5.809640981 | P33: 5.803920161
A34: ED_FEE431_00024 | C34: Miscellaneous Fee-Based Services | D34: Service Truck Visit—BH | E34: 228366 | F34: 331916.4931 | G34: 331916.4931 | H34: 331916.4931 | I34: 331916.4931 | J34: 331916.4931 | K34: 900 | L34: 900 | M34: 900 | N34: 900 | O34: 900 | P34: 900
A35: ED_FEE431_00025 | C35: Miscellaneous Fee-Based Services | D35: Wasted Truck Visit—BH | E35: 758622 | F35: 1155200.598 | G35: 1155200.598 | H35: 1155200.598 | I35: 1155200.598 | J35: 1155200.598 | K35: 5900 | L35: 5900 | M35: 5900 | N35: 5900 | O35: 5900 | P35: 5900
A36: ED_FEE431_00026 | C36: Miscellaneous Fee-Based Services | D36: Service Truck Visit—AH | E36: 467810 | F36: 611793.0295 | G36: 611793.0295 | H36: 611793.0295 | I36: 611793.0295 | J36: 611793.0295 | K36: 1400 | L36: 1400 | M36: 1400 | N36: 1400 | O36: 1400 | P36: 1400
A37: ED_FEE431_00027 | C37: Miscellaneous Fee-Based Services
A38: ED_FEE431_00028 | C38: Miscellaneous Fee-Based Services | D38: Meter equipment tests Single phase | E38: 85071.6 | F38: 85681.32699 | G38: 85681.32699 | H38: 85681.32699 | I38: 85681.32699 | J38: 85681.32699 | K38: 540 | L38: 540 | M38: 540 | N38: 540 | O38: 540 | P38: 540
A39: ED_FEE431_00029 | C39: Miscellaneous Fee-Based Services | D39: Meter equipment tests Single phase (each additional meter) | E39: 1520.4 | F39: 1655.204013 | G39: 1655.204013 | H39: 1655.204013 | I39: 1655.204013 | J39: 1655.204013 | K39: 28 | L39: 28 | M39: 28 | N39: 28 | O39: 28 | P39: 28
A40: ED_FEE431_00030 | C40: Miscellaneous Fee-Based Services | D40: Meter equipment tests Multi Phase | E40: 16525.86 | F40: 14681.65441 | G40: 14681.65441 | H40: 14681.65441 | I40: 14681.65441 | J40: 14681.65441 | K40: 78 | L40: 78 | M40: 78 | N40: 78 | O40: 78 | P40: 78
A41: ED_FEE431_00031 | C41: Miscellaneous Fee-Based Services | D41: Meter equipment tests Multi Phase (each additional meter) | E41: 282.44 | F41: 354.6865742 | G41: 354.6865742 | H41: 354.6865742 | I41: 354.6865742 | J41: 354.6865742 | K41: 4 | L41: 4 | M41: 4 | N41: 4 | O41: 4 | P41: 4
A42: ED_FEE431_00032 | C42: Miscellaneous Fee-Based Services | D42: Activation of renewable energy installation. | E42: 0 | F42: 367769.9699 | G42: 367769.9699 | H42: 367769.9699 | I42: 367769.9699 | J42: 367769.9699 | K42: 13586 | L42: 13586 | M42: 13586 | N42: 13586 | O42: 13586 | P42: 13586
A43: ED_FEE431_00033 | C43: Miscellaneous Fee-Based Services | D43: PV & small generator installation pre-approval Up to 15kW | E43: 0 | F43: 196117.9035 | G43: 196117.9035 | H43: 196117.9035 | I43: 196117.9035 | J43: 196117.9035 | K43: 1327.039146 | L43: 1327.039146 | M43: 1327.039146 | N43: 1327.039146 | O43: 1327.039146 | P43: 1327.039146
A44: ED_FEE431_00034 | C44: Miscellaneous Fee-Based Services | D44: PV & small generator installation pre-approval 15 to 30kW | E44: 0 | F44: 7032.842963 | G44: 7032.842963 | H44: 7032.842963 | I44: 7032.842963 | J44: 7032.842963 | K44: 35.89790793 | L44: 35.89790793 | M44: 35.89790793 | N44: 35.89790793 | O44: 35.89790793 | P44: 35.89790793
A45: ED_FEE431_00035 | C45: Miscellaneous Fee-Based Services | D45: Exchange meter for renewable energy installation. Single Phase Single element | E45: 0 | F45: 838155.6603 | G45: 838155.6603 | H45: 838155.6603 | I45: 838155.6603 | J45: 838155.6603 | K45: 924 | L45: 924 | M45: 924 | N45: 924 | O45: 924 | P45: 924
A46: ED_FEE431_00036 | C46: Miscellaneous Fee-Based Services | D46: Exchange meter for renewable energy installation. Single Phase two element with contactor | E46: 0 | F46: 286848.8114 | G46: 286848.8114 | H46: 286848.8114 | I46: 286848.8114 | J46: 286848.8114 | K46: 308 | L46: 308 | M46: 308 | N46: 308 | O46: 308 | P46: 308
A47: ED_FEE431_00037 | C47: Miscellaneous Fee-Based Services | D47: Exchange meter for renewable energy installation. Multi Phase direct connect meter | E47: 0 | F47: 116177.4863 | G47: 116177.4863 | H47: 116177.4863 | I47: 116177.4863 | J47: 116177.4863 | K47: 122 | L47: 122 | M47: 122 | N47: 122 | O47: 122 | P47: 122
A48: ED_FEE431_00038 | C48: Miscellaneous Fee-Based Services | D48: Exchange meter for renewable energy installation. Multi Phase direct connect meter with contactor | E48: 0 | F48: 38492.23658 | G48: 38492.23658 | H48: 38492.23658 | I48: 38492.23658 | J48: 38492.23658 | K48: 41 | L48: 41 | M48: 41 | N48: 41 | O48: 41 | P48: 41
A49: ED_FEE431_00039 | C49: Miscellaneous Fee-Based Services | D49: Exchange meter for renewable energy installation. Multi Phase CT Meter | E49: 0 | F49: 19536.47537 | G49: 19536.47537 | H49: 19536.47537 | I49: 19536.47537 | J49: 19536.47537 | K49: 19 | L49: 19 | M49: 19 | N49: 19 | O49: 19 | P49: 19
A50: ED_FEE431_00040 | C50: Miscellaneous Fee-Based Services
A51: ED_FEE431_00041 | C51: Miscellaneous Fee-Based Services
A52: ED_FEE431_00042 | C52: Miscellaneous Fee-Based Services
A53: ED_FEE431_00043 | C53: Miscellaneous Fee-Based Services
A54: ED_FEE431_00044 | C54: Miscellaneous Fee-Based Services
A55: ED_FEE431_00045 | C55: Miscellaneous Fee-Based Services
A56: ED_FEE431_00046 | C56: Miscellaneous Fee-Based Services
A57: ED_FEE431_00047 | C57: Miscellaneous Fee-Based Services
A58: ED_FEE431_00048 | C58: Miscellaneous Fee-Based Services
A59: ED_FEE431_00049 | C59: Miscellaneous Fee-Based Services
A60: ED_FEE431_00050 | C60: Miscellaneous Fee-Based Services
A61: ED_FEE431_00051 | C61: Miscellaneous Fee-Based Services
A62: ED_FEE431_00052 | C62: Miscellaneous Fee-Based Services
A63: ED_FEE431_00053 | C63: Miscellaneous Fee-Based Services
A64: ED_FEE431_00054 | C64: Miscellaneous Fee-Based Services
A65: ED_FEE431_00055 | C65: Miscellaneous Fee-Based Services
A66: ED_FEE431_00056 | C66: Miscellaneous Fee-Based Services
A67: ED_FEE431_00057 | C67: Miscellaneous Fee-Based Services
A68: ED_FEE431_00058 | C68: Miscellaneous Fee-Based Services
A69: ED_FEE431_00059 | C69: Miscellaneous Fee-Based Services
A70: ED_FEE431_00060 | C70: Miscellaneous Fee-Based Services
A71: ED_FEE431_00061 | C71: Miscellaneous Fee-Based Services
A72: ED_FEE431_00062 | C72: Miscellaneous Fee-Based Services
A73: ED_FEE431_00063 | C73: Miscellaneous Fee-Based Services
A74: ED_FEE431_00064 | C74: Miscellaneous Fee-Based Services
A75: ED_FEE431_00065 | C75: Miscellaneous Fee-Based Services
A76: ED_FEE431_00066 | C76: Miscellaneous Fee-Based Services
A77: ED_FEE431_00067 | C77: Miscellaneous Fee-Based Services
A78: ED_FEE431_00068 | C78: Miscellaneous Fee-Based Services
A79: ED_FEE431_00069 | C79: Miscellaneous Fee-Based Services
A80: ED_FEE431_00070 | C80: Miscellaneous Fee-Based Services
A81: ED_FEE431_00071 | C81: Miscellaneous Fee-Based Services
A82: ED_FEE431_00072 | C82: Miscellaneous Fee-Based Services
A83: ED_FEE431_00073 | C83: Miscellaneous Fee-Based Services
A84: ED_FEE431_00074 | C84: Miscellaneous Fee-Based Services
A85: ED_FEE431_00075 | C85: Miscellaneous Fee-Based Services
A86: ED_FEE431_00076 | C86: Miscellaneous Fee-Based Services
A87: ED_FEE431_00077 | C87: Miscellaneous Fee-Based Services
A88: ED_FEE431_00078 | C88: Miscellaneous Fee-Based Services
A89: ED_FEE431_00079 | C89: Miscellaneous Fee-Based Services
A90: ED_FEE431_00080 | C90: Miscellaneous Fee-Based Services
A91: ED_FEE431_00081 | C91: Miscellaneous Fee-Based Services
A92: ED_FEE431_00082 | C92: Miscellaneous Fee-Based Services
A93: ED_FEE431_00083 | C93: Miscellaneous Fee-Based Services
A94: ED_FEE431_00084 | C94: Miscellaneous Fee-Based Services
A95: ED_FEE431_00085 | C95: Miscellaneous Fee-Based Services
A96: ED_FEE431_00086 | C96: Miscellaneous Fee-Based Services
A97: ED_FEE431_00087 | C97: Miscellaneous Fee-Based Services
A98: ED_FEE431_00088 | C98: Miscellaneous Fee-Based Services
A99: ED_FEE431_00089 | C99: Miscellaneous Fee-Based Services
A100: ED_FEE431_00090 | C100: Miscellaneous Fee-Based Services
A101: ED_FEE431_00091 | C101: Miscellaneous Fee-Based Services
A102: ED_FEE431_00092 | C102: Miscellaneous Fee-Based Services
A103: ED_FEE431_00093 | C103: Miscellaneous Fee-Based Services
A104: ED_FEE431_00094 | C104: Miscellaneous Fee-Based Services
A105: ED_FEE431_00095 | C105: Miscellaneous Fee-Based Services
A106: ED_FEE431_00096 | C106: Miscellaneous Fee-Based Services
A107: ED_FEE431_00097 | C107: Miscellaneous Fee-Based Services
A108: ED_FEE431_00098 | C108: Miscellaneous Fee-Based Services
A109: ED_FEE431_00099 | C109: Miscellaneous Fee-Based Services
A110: ED_FEE431_00100 | C110: Miscellaneous Fee-Based Services
A111: ED_FEE431_00101 | C111: Miscellaneous Fee-Based Services
A112: ED_FEE431_00102 | C112: Miscellaneous Fee-Based Services
A113: ED_FEE431_00103 | C113: Miscellaneous Fee-Based Services
A114: ED_FEE431_00104 | C114: Miscellaneous Fee-Based Services
A115: ED_FEE431_00105 | C115: Miscellaneous Fee-Based Services
A116: ED_FEE431_00106 | C116: Miscellaneous Fee-Based Services
A117: ED_FEE431_00107 | C117: Miscellaneous Fee-Based Services
A118: ED_FEE431_00108 | C118: Miscellaneous Fee-Based Services
A119: ED_FEE431_00109 | C119: Miscellaneous Fee-Based Services
A120: ED_FEE431_00110 | C120: Miscellaneous Fee-Based Services
A121: ED_FEE431_00111 | C121: Miscellaneous Fee-Based Services
A122: ED_FEE431_00112 | C122: Miscellaneous Fee-Based Services
A123: ED_FEE431_00113 | C123: Miscellaneous Fee-Based Services
A124: ED_FEE431_00114 | C124: Miscellaneous Fee-Based Services
A125: ED_FEE431_00115 | C125: Miscellaneous Fee-Based Services
A126: ED_FEE431_00116 | C126: Miscellaneous Fee-Based Services
A127: ED_FEE431_00117 | C127: Miscellaneous Fee-Based Services
A128: ED_FEE431_00118 | C128: Miscellaneous Fee-Based Services
A129: ED_FEE431_00119 | C129: Miscellaneous Fee-Based Services
A130: ED_FEE431_00120 | C130: Miscellaneous Fee-Based Services
A131: ED_FEE431_00121 | C131: Miscellaneous Fee-Based Services
A132: ED_FEE431_00122 | C132: Miscellaneous Fee-Based Services
A133: ED_FEE431_00123 | C133: Miscellaneous Fee-Based Services
A134: ED_FEE431_00124 | C134: Miscellaneous Fee-Based Services
A135: ED_FEE431_00125 | C135: Miscellaneous Fee-Based Services
A136: ED_FEE431_00126 | C136: Miscellaneous Fee-Based Services
A137: ED_FEE431_00127 | C137: Miscellaneous Fee-Based Services
A138: ED_FEE431_00128 | C138: Miscellaneous Fee-Based Services
A139: ED_FEE431_00129 | C139: Miscellaneous Fee-Based Services
A140: ED_FEE431_00130 | C140: Miscellaneous Fee-Based Services
A141: ED_FEE431_00131 | C141: Miscellaneous Fee-Based Services
A142: ED_FEE431_00132 | C142: Miscellaneous Fee-Based Services
A143: ED_FEE431_00133 | C143: Miscellaneous Fee-Based Services
A144: ED_FEE431_00134 | C144: Miscellaneous Fee-Based Services
A145: ED_FEE431_00135 | C145: Miscellaneous Fee-Based Services
A146: ED_FEE431_00136 | C146: Miscellaneous Fee-Based Services
A147: ED_FEE431_00137 | C147: Miscellaneous Fee-Based Services
A148: ED_FEE431_00138 | C148: Miscellaneous Fee-Based Services
A149: ED_FEE431_00139 | C149: Miscellaneous Fee-Based Services
A150: ED_FEE431_00140 | C150: Miscellaneous Fee-Based Services
A151: ED_FEE431_00141 | C151: Miscellaneous Fee-Based Services
A152: ED_FEE431_00142 | C152: Miscellaneous Fee-Based Services
A153: ED_FEE431_00143 | C153: Miscellaneous Fee-Based Services
A154: ED_FEE431_00144 | C154: Miscellaneous Fee-Based Services
A155: ED_FEE431_00145 | C155: Miscellaneous Fee-Based Services
A156: ED_FEE431_00146 | C156: Miscellaneous Fee-Based Services
A157: ED_FEE431_00147 | C157: Miscellaneous Fee-Based Services
A158: ED_FEE431_00148 | C158: Miscellaneous Fee-Based Services
A159: ED_FEE431_00149 | C159: Miscellaneous Fee-Based Services
A160: ED_FEE431_00150 | C160: Miscellaneous Fee-Based Services
A161: ED_FEE431_00151 | C161: Miscellaneous Fee-Based Services
A162: ED_FEE431_00152 | C162: Miscellaneous Fee-Based Services
A163: ED_FEE431_00153 | C163: Miscellaneous Fee-Based Services
A164: ED_FEE431_00154 | C164: Miscellaneous Fee-Based Services
A165: ED_FEE431_00155 | C165: Miscellaneous Fee-Based Services
A166: ED_FEE431_00156 | C166: Miscellaneous Fee-Based Services
A167: ED_FEE431_00157 | C167: Miscellaneous Fee-Based Services
A168: ED_FEE431_00158 | C168: Miscellaneous Fee-Based Services
A169: ED_FEE431_00159 | C169: Miscellaneous Fee-Based Services
A170: ED_FEE431_00160 | C170: Miscellaneous Fee-Based Services
A171: ED_FEE431_00161 | C171: Miscellaneous Fee-Based Services
A172: ED_FEE431_00162 | C172: Miscellaneous Fee-Based Services
A173: ED_FEE431_00163 | C173: Miscellaneous Fee-Based Services
A174: ED_FEE431_00164 | C174: Miscellaneous Fee-Based Services
A175: ED_FEE431_00165 | C175: Miscellaneous Fee-Based Services
A176: ED_FEE431_00166 | C176: Miscellaneous Fee-Based Services
A177: ED_FEE431_00167 | C177: Miscellaneous Fee-Based Services
A178: ED_FEE431_00168 | C178: Miscellaneous Fee-Based Services
A179: ED_FEE431_00169 | C179: Miscellaneous Fee-Based Services
A180: ED_FEE431_00170 | C180: Miscellaneous Fee-Based Services
A181: ED_FEE431_00171 | C181: Miscellaneous Fee-Based Services
A182: ED_FEE431_00172 | C182: Miscellaneous Fee-Based Services
A183: ED_FEE431_00173 | C183: Miscellaneous Fee-Based Services
A184: ED_FEE431_00174 | C184: Miscellaneous Fee-Based Services
A185: ED_FEE431_00175 | C185: Miscellaneous Fee-Based Services
A186: ED_FEE431_00176 | C186: Miscellaneous Fee-Based Services
A187: ED_FEE431_00177 | C187: Miscellaneous Fee-Based Services
A188: ED_FEE431_00178 | C188: Miscellaneous Fee-Based Services
A189: ED_FEE431_00179 | C189: Miscellaneous Fee-Based Services
A190: ED_FEE431_00180 | C190: Miscellaneous Fee-Based Services
A191: ED_FEE431_00181 | C191: Miscellaneous Fee-Based Services
A192: ED_FEE431_00182 | C192: Miscellaneous Fee-Based Services
A193: ED_FEE431_00183 | C193: Miscellaneous Fee-Based Services
A194: ED_FEE431_00184 | C194: Miscellaneous Fee-Based Services
A195: ED_FEE431_00185 | C195: Miscellaneous Fee-Based Services
A196: ED_FEE431_00186 | C196: Miscellaneous Fee-Based Services
A197: ED_FEE431_00187 | C197: Miscellaneous Fee-Based Services
A198: ED_FEE431_00188 | C198: Miscellaneous Fee-Based Services
A199: ED_FEE431_00189 | C199: Miscellaneous Fee-Based Services
A200: ED_FEE431_00190 | C200: Miscellaneous Fee-Based Services
A201: ED_FEE431_00191 | C201: Miscellaneous Fee-Based Services
A202: ED_FEE431_00192 | C202: Miscellaneous Fee-Based Services
A203: ED_FEE431_00193 | C203: Miscellaneous Fee-Based Services
... 278 more rows

Sheet 4.4 Quoted services.
C1: =SheetHeader -> REGULATORY REPORTING STATEMENT
C2: =dms_TradingName -> AusNet (D)
C3: =FRCP_span -> 2016 to 2020
C4: 4.4 ANCILLARY SERVICES - QUOTED SERVICES
C6: TABLE 4.4.1 - COST METRICS FOR QUOTED SERVICES
C10: SERVICE | D10: SERVICE SUBCATEGORY | E10: =CONCATENATE("EXPENDITURE ($0's, real ", dms_DollarReal, ")") -> EXPENDITURE ($0's, real December 2015) | K10: VOLUMES (0's)
E11: =CRCP_y5 -> 2015 | F11: =FRCP -> 2016 | G11: 2017 | H11: 2018 | I11: 2019 | J11: 2020 | K11: =CRCP_y5 -> 2015 | L11: =FRCP -> 2016 | M11: 2017 | N11: 2018 | O11: 2019 | P11: 2020
A12: ED_QUO441_00001 | C12: Quoted Services | D12: Recoverable works | E12: 628391.6759 | F12: 644252.2818 | G12: 660513.2094 | H12: 677184.5628 | I12: 694276.7011 | J12: 711800.2451 | K12: 360 | L12: 360 | M12: 360 | N12: 360 | O12: 360 | P12: 360
A13: ED_QUO441_00002 | C13: Quoted Services | D13: Made up of the following activities
A14: ED_QUO441_00003 | C14: Quoted Services | D14: Routine connections - customers above 100 amps
A15: ED_QUO441_00004 | C15: Quoted Services | D15: Supply abolishment (>100 amps)
A16: ED_QUO441_00005 | C16: Quoted Services | D16: Reserve feeder maintenance
A17: ED_QUO441_00006 | C17: Quoted Services | D17: Rearrangement of network assets at customer request, excluding alteration and relocation of public lighting assets
A18: ED_QUO441_00007 | C18: Quoted Services | D18: Auditing design and construction
A19: ED_QUO441_00008 | C19: Quoted Services | D19: Specification and design enquiry fees
A20: ED_QUO441_00009 | C20: Quoted Services | D20: Elective undergrounding where above ground service currently exists
A21: ED_QUO441_00010 | C21: Quoted Services | D21: Damage to overhead service cables caused by high load vehicles
A22: ED_QUO441_00011 | C22: Quoted Services | D22: High load escorts - lifting overhead lines
A23: ED_QUO441_00012 | C23: Quoted Services | D23: Covering of low voltage lines for safety reasons
A24: ED_QUO441_00013 | C24: Quoted Services | D24: After hours truck by appointment
A25: ED_QUO441_00014 | C25: Quoted Services
A26: ED_QUO441_00015 | C26: Quoted Services
A27: ED_QUO441_00016 | C27: Quoted Services
A28: ED_QUO441_00017 | C28: Quoted Services
A29: ED_QUO441_00018 | C29: Quoted Services
A30: ED_QUO441_00019 | C30: Quoted Services
A31: ED_QUO441_00020 | C31: Quoted Services
A32: ED_QUO441_00021 | C32: Quoted Services
A33: ED_QUO441_00022 | C33: Quoted Services
A34: ED_QUO441_00023 | C34: Quoted Services
A35: ED_QUO441_00024 | C35: Quoted Services
A36: ED_QUO441_00025 | C36: Quoted Services
A37: ED_QUO441_00026 | C37: Quoted Services
A38: ED_QUO441_00027 | C38: Quoted Services
A39: ED_QUO441_00028 | C39: Quoted Services
A40: ED_QUO441_00029 | C40: Quoted Services
A41: ED_QUO441_00030 | C41: Quoted Services
A42: ED_QUO441_00031 | C42: Quoted Services
A43: ED_QUO441_00032 | C43: Quoted Services
A44: ED_QUO441_00033 | C44: Quoted Services
A45: ED_QUO441_00034 | C45: Quoted Services
A46: ED_QUO441_00035 | C46: Quoted Services
A47: ED_QUO441_00036 | C47: Quoted Services
A48: ED_QUO441_00037 | C48: Quoted Services
A49: ED_QUO441_00038 | C49: Quoted Services
A50: ED_QUO441_00039 | C50: Quoted Services
A51: ED_QUO441_00040 | C51: Quoted Services
A52: ED_QUO441_00041 | C52: Quoted Services
A53: ED_QUO441_00042 | C53: Quoted Services
A54: ED_QUO441_00043 | C54: Quoted Services
A55: ED_QUO441_00044 | C55: Quoted Services
A56: ED_QUO441_00045 | C56: Quoted Services
A57: ED_QUO441_00046 | C57: Quoted Services
A58: ED_QUO441_00047 | C58: Quoted Services
A59: ED_QUO441_00048 | C59: Quoted Services
A60: ED_QUO441_00049 | C60: Quoted Services
A61: ED_QUO441_00050 | C61: Quoted Services
A62: ED_QUO441_00051 | C62: Quoted Services
A63: ED_QUO441_00052 | C63: Quoted Services
A64: ED_QUO441_00053 | C64: Quoted Services
A65: ED_QUO441_00054 | C65: Quoted Services
A66: ED_QUO441_00055 | C66: Quoted Services
A67: ED_QUO441_00056 | C67: Quoted Services
A68: ED_QUO441_00057 | C68: Quoted Services
A69: ED_QUO441_00058 | C69: Quoted Services
A70: ED_QUO441_00059 | C70: Quoted Services
A71: ED_QUO441_00060 | C71: Quoted Services
A72: ED_QUO441_00061 | C72: Quoted Services
A73: ED_QUO441_00062 | C73: Quoted Services
A74: ED_QUO441_00063 | C74: Quoted Services
A75: ED_QUO441_00064 | C75: Quoted Services
A76: ED_QUO441_00065 | C76: Quoted Services
A77: ED_QUO441_00066 | C77: Quoted Services
A78: ED_QUO441_00067 | C78: Quoted Services
A79: ED_QUO441_00068 | C79: Quoted Services
A80: ED_QUO441_00069 | C80: Quoted Services
A81: ED_QUO441_00070 | C81: Quoted Services
A82: ED_QUO441_00071 | C82: Quoted Services
A83: ED_QUO441_00072 | C83: Quoted Services
A84: ED_QUO441_00073 | C84: Quoted Services
A85: ED_QUO441_00074 | C85: Quoted Services
A86: ED_QUO441_00075 | C86: Quoted Services
A87: ED_QUO441_00076 | C87: Quoted Services
A88: ED_QUO441_00077 | C88: Quoted Services
A89: ED_QUO441_00078 | C89: Quoted Services
A90: ED_QUO441_00079 | C90: Quoted Services
A91: ED_QUO441_00080 | C91: Quoted Services
A92: ED_QUO441_00081 | C92: Quoted Services
A93: ED_QUO441_00082 | C93: Quoted Services
A94: ED_QUO441_00083 | C94: Quoted Services
A95: ED_QUO441_00084 | C95: Quoted Services
A96: ED_QUO441_00085 | C96: Quoted Services
A97: ED_QUO441_00086 | C97: Quoted Services
A98: ED_QUO441_00087 | C98: Quoted Services
A99: ED_QUO441_00088 | C99: Quoted Services
A100: ED_QUO441_00089 | C100: Quoted Services
A101: ED_QUO441_00090 | C101: Quoted Services
A102: ED_QUO441_00091 | C102: Quoted Services
A103: ED_QUO441_00092 | C103: Quoted Services
A104: ED_QUO441_00093 | C104: Quoted Services
A105: ED_QUO441_00094 | C105: Quoted Services
A106: ED_QUO441_00095 | C106: Quoted Services
A107: ED_QUO441_00096 | C107: Quoted Services
A108: ED_QUO441_00097 | C108: Quoted Services
A109: ED_QUO441_00098 | C109: Quoted Services
A110: ED_QUO441_00099 | C110: Quoted Services
A111: ED_QUO441_00100 | C111: Quoted Services
A112: ED_QUO441_00101 | C112: Quoted Services
A113: ED_QUO441_00102 | C113: Quoted Services
A114: ED_QUO441_00103 | C114: Quoted Services
A115: ED_QUO441_00104 | C115: Quoted Services
A116: ED_QUO441_00105 | C116: Quoted Services
A117: ED_QUO441_00106 | C117: Quoted Services
A118: ED_QUO441_00107 | C118: Quoted Services
A119: ED_QUO441_00108 | C119: Quoted Services
A120: ED_QUO441_00109 | C120: Quoted Services
A121: ED_QUO441_00110 | C121: Quoted Services
A122: ED_QUO441_00111 | C122: Quoted Services
A123: ED_QUO441_00112 | C123: Quoted Services
A124: ED_QUO441_00113 | C124: Quoted Services
A125: ED_QUO441_00114 | C125: Quoted Services
A126: ED_QUO441_00115 | C126: Quoted Services
A127: ED_QUO441_00116 | C127: Quoted Services
A128: ED_QUO441_00117 | C128: Quoted Services
A129: ED_QUO441_00118 | C129: Quoted Services
A130: ED_QUO441_00119 | C130: Quoted Services
A131: ED_QUO441_00120 | C131: Quoted Services
A132: ED_QUO441_00121 | C132: Quoted Services
A133: ED_QUO441_00122 | C133: Quoted Services
A134: ED_QUO441_00123 | C134: Quoted Services
A135: ED_QUO441_00124 | C135: Quoted Services
A136: ED_QUO441_00125 | C136: Quoted Services
A137: ED_QUO441_00126 | C137: Quoted Services
A138: ED_QUO441_00127 | C138: Quoted Services
A139: ED_QUO441_00128 | C139: Quoted Services
A140: ED_QUO441_00129 | C140: Quoted Services
A141: ED_QUO441_00130 | C141: Quoted Services
A142: ED_QUO441_00131 | C142: Quoted Services
A143: ED_QUO441_00132 | C143: Quoted Services
A144: ED_QUO441_00133 | C144: Quoted Services
A145: ED_QUO441_00134 | C145: Quoted Services
A146: ED_QUO441_00135 | C146: Quoted Services
A147: ED_QUO441_00136 | C147: Quoted Services
A148: ED_QUO441_00137 | C148: Quoted Services
A149: ED_QUO441_00138 | C149: Quoted Services
A150: ED_QUO441_00139 | C150: Quoted Services
A151: ED_QUO441_00140 | C151: Quoted Services
A152: ED_QUO441_00141 | C152: Quoted Services
A153: ED_QUO441_00142 | C153: Quoted Services
A154: ED_QUO441_00143 | C154: Quoted Services
A155: ED_QUO441_00144 | C155: Quoted Services
A156: ED_QUO441_00145 | C156: Quoted Services
A157: ED_QUO441_00146 | C157: Quoted Services
A158: ED_QUO441_00147 | C158: Quoted Services
A159: ED_QUO441_00148 | C159: Quoted Services
A160: ED_QUO441_00149 | C160: Quoted Services
A161: ED_QUO441_00150 | C161: Quoted Services
A162: ED_QUO441_00151 | C162: Quoted Services
A163: ED_QUO441_00152 | C163: Quoted Services
A164: ED_QUO441_00153 | C164: Quoted Services
A165: ED_QUO441_00154 | C165: Quoted Services
A166: ED_QUO441_00155 | C166: Quoted Services
A167: ED_QUO441_00156 | C167: Quoted Services
A168: ED_QUO441_00157 | C168: Quoted Services
A169: ED_QUO441_00158 | C169: Quoted Services
A170: ED_QUO441_00159 | C170: Quoted Services
A171: ED_QUO441_00160 | C171: Quoted Services
A172: ED_QUO441_00161 | C172: Quoted Services
A173: ED_QUO441_00162 | C173: Quoted Services
A174: ED_QUO441_00163 | C174: Quoted Services
A175: ED_QUO441_00164 | C175: Quoted Services
A176: ED_QUO441_00165 | C176: Quoted Services
A177: ED_QUO441_00166 | C177: Quoted Services
A178: ED_QUO441_00167 | C178: Quoted Services
A179: ED_QUO441_00168 | C179: Quoted Services
A180: ED_QUO441_00169 | C180: Quoted Services
A181: ED_QUO441_00170 | C181: Quoted Services
A182: ED_QUO441_00171 | C182: Quoted Services
A183: ED_QUO441_00172 | C183: Quoted Services
A184: ED_QUO441_00173 | C184: Quoted Services
A185: ED_QUO441_00174 | C185: Quoted Services
A186: ED_QUO441_00175 | C186: Quoted Services
A187: ED_QUO441_00176 | C187: Quoted Services
A188: ED_QUO441_00177 | C188: Quoted Services
A189: ED_QUO441_00178 | C189: Quoted Services
A190: ED_QUO441_00179 | C190: Quoted Services
A191: ED_QUO441_00180 | C191: Quoted Services
A192: ED_QUO441_00181 | C192: Quoted Services
A193: ED_QUO441_00182 | C193: Quoted Services
A194: ED_QUO441_00183 | C194: Quoted Services
A195: ED_QUO441_00184 | C195: Quoted Services
A196: ED_QUO441_00185 | C196: Quoted Services
A197: ED_QUO441_00186 | C197: Quoted Services
A198: ED_QUO441_00187 | C198: Quoted Services
A199: ED_QUO441_00188 | C199: Quoted Services
A200: ED_QUO441_00189 | C200: Quoted Services
A201: ED_QUO441_00190 | C201: Quoted Services
A202: ED_QUO441_00191 | C202: Quoted Services
A203: ED_QUO441_00192 | C203: Quoted Services
A204: ED_QUO441_00193 | C204: Quoted Services
... 270 more rows

Sheet 5.4 MD & utilisation-Spatial
C1: =SheetHeader -> REGULATORY REPORTING STATEMENT | H1: Worksheet navigation
C2: =dms_TradingName -> AusNet (D)
C3: =FRCP_span -> 2016 to 2020
C4: 5.4 MAXIMUM DEMAND AND UTILISATION AT SPATIAL LEVEL
C8: TABLE 5.4.1 - NON-COINCIDENT & COINCIDENT MAXIMUM DEMAND
I10: Forthcoming Period
C11: NETWORK LEVEL | D11: SUBSTATION | E11: FORECASTING ELEMENTS | F11: UNIT | G11: MAX DEMAND | H11: =CRCP_y5 -> 2015 | I11: =FRCP -> 2016 | J11: 2017 | K11: 2018 | L11: 2019 | M11: 2020
A12: ED_MDU541_00001 | C12: SUBSTRANSMISSION SUBSTATION | D12: <Enter substation name> | E12: Substation Rating | F12: MVA | G12: Non-Coincident
A13: ED_MDU541_00002 | G13: Coincident
A14: ED_MDU541_00003 | E14: Raw Adjusted MD | F14: MW | G14: Non-Coincident
A15: ED_MDU541_00004 | G15: Coincident
A16: ED_MDU541_00005 | E16: Raw Adjusted MD | F16: MVA | G16: Non-Coincident
A17: ED_MDU541_00006 | G17: Coincident
A18: ED_MDU541_00007 | E18: Date MD occurred | G18: Non-Coincident
A19: ED_MDU541_00008 | G19: Coincident
A20: ED_MDU541_00009 | E20: Half hour time period MD occurred | G20: Non-Coincident
A21: ED_MDU541_00010 | G21: Coincident
A22: ED_MDU541_00011 | E22: Winter/Summer Peaking | G22: Non-Coincident
A23: ED_MDU541_00012 | G23: Coincident
A24: ED_MDU541_00013 | E24: Adjustments - Embedded generation | F24: MW | G24: Non-Coincident
A25: ED_MDU541_00014 | G25: Coincident
A26: ED_MDU541_00015 | E26: Weather Corrected 10% POE | F26: MW | G26: Non-Coincident
A27: ED_MDU541_00016 | G27: Coincident
A28: ED_MDU541_00017 | E28: Weather Corrected MD 10% POE | F28: MVA | G28: Non-Coincident
A29: ED_MDU541_00018 | G29: Coincident
A30: ED_MDU541_00019 | E30: Weather Corrected MD 50% POE | F30: MW | G30: Non-Coincident
A31: ED_MDU541_00020 | G31: Coincident
A32: ED_MDU541_00021 | E32: Weather Corrected MD 50% POE | F32: MVA | G32: Non-Coincident
A33: ED_MDU541_00022 | G33: Coincident
A34: ED_MDU541_00023 | D34: <Enter substation name> | E34: Substation Rating | F34: MVA | G34: Non-Coincident
A35: ED_MDU541_00024 | G35: Coincident
A36: ED_MDU541_00025 | E36: Raw Adjusted MD | F36: MW | G36: Non-Coincident
A37: ED_MDU541_00026 | G37: Coincident
A38: ED_MDU541_00027 | E38: Raw Adjusted MD | F38: MVA | G38: Non-Coincident
A39: ED_MDU541_00028 | G39: Coincident
A40: ED_MDU541_00029 | E40: Date MD occurred | G40: Non-Coincident
A41: ED_MDU541_00030 | G41: Coincident
A42: ED_MDU541_00031 | E42: Half hour time period MD occurred | G42: Non-Coincident
A43: ED_MDU541_00032 | G43: Coincident
A44: ED_MDU541_00033 | E44: Winter/Summer Peaking | G44: Non-Coincident
A45: ED_MDU541_00034 | G45: Coincident
A46: ED_MDU541_00035 | E46: Adjustments - Embedded generation | F46: MW | G46: Non-Coincident
A47: ED_MDU541_00036 | G47: Coincident
A48: ED_MDU541_00037 | E48: Weather Corrected 10% POE | F48: MW | G48: Non-Coincident
A49: ED_MDU541_00038 | G49: Coincident
A50: ED_MDU541_00039 | E50: Weather Corrected MD 10% POE | F50: MVA | G50: Non-Coincident
A51: ED_MDU541_00040 | G51: Coincident
A52: ED_MDU541_00041 | E52: Weather Corrected MD 50% POE | F52: MW | G52: Non-Coincident
A53: ED_MDU541_00042 | G53: Coincident
A54: ED_MDU541_00043 | E54: Weather Corrected MD 50% POE | F54: MVA | G54: Non-Coincident
A55: ED_MDU541_00044 | G55: Coincident
A56: ED_MDU541_00023 | D56: <Enter substation name> | E56: Substation Rating | F56: MVA | G56: Non-Coincident
A57: ED_MDU541_00024 | G57: Coincident
A58: ED_MDU541_00025 | E58: Raw Adjusted MD | F58: MW | G58: Non-Coincident
A59: ED_MDU541_00026 | G59: Coincident
A60: ED_MDU541_00027 | E60: Raw Adjusted MD | F60: MVA | G60: Non-Coincident
A61: ED_MDU541_00028 | G61: Coincident
A62: ED_MDU541_00029 | E62: Date MD occurred | G62: Non-Coincident
A63: ED_MDU541_00030 | G63: Coincident
A64: ED_MDU541_00031 | E64: Half hour time period MD occurred | G64: Non-Coincident
A65: ED_MDU541_00032 | G65: Coincident
A66: ED_MDU541_00033 | E66: Winter/Summer Peaking | G66: Non-Coincident
A67: ED_MDU541_00034 | G67: Coincident
A68: ED_MDU541_00035 | E68: Adjustments - Embedded generation | F68: MW | G68: Non-Coincident
A69: ED_MDU541_00036 | G69: Coincident
A70: ED_MDU541_00037 | E70: Weather Corrected 10% POE | F70: MW | G70: Non-Coincident
A71: ED_MDU541_00038 | G71: Coincident
A72: ED_MDU541_00039 | E72: Weather Corrected MD 10% POE | F72: MVA | G72: Non-Coincident
A73: ED_MDU541_00040 | G73: Coincident
A74: ED_MDU541_00041 | E74: Weather Corrected MD 50% POE | F74: MW | G74: Non-Coincident
A75: ED_MDU541_00042 | G75: Coincident
A76: ED_MDU541_00043 | E76: Weather Corrected MD 50% POE | F76: MVA | G76: Non-Coincident
A77: ED_MDU541_00044 | G77: Coincident
A78: ED_MDU541_00023 | D78: <Enter substation name> | E78: Substation Rating | F78: MVA | G78: Non-Coincident
A79: ED_MDU541_00024 | G79: Coincident
A80: ED_MDU541_00025 | E80: Raw Adjusted MD | F80: MW | G80: Non-Coincident
A81: ED_MDU541_00026 | G81: Coincident
A82: ED_MDU541_00027 | E82: Raw Adjusted MD | F82: MVA | G82: Non-Coincident
A83: ED_MDU541_00028 | G83: Coincident
A84: ED_MDU541_00029 | E84: Date MD occurred | G84: Non-Coincident
A85: ED_MDU541_00030 | G85: Coincident
A86: ED_MDU541_00031 | E86: Half hour time period MD occurred | G86: Non-Coincident
A87: ED_MDU541_00032 | G87: Coincident
A88: ED_MDU541_00033 | E88: Winter/Summer Peaking | G88: Non-Coincident
A89: ED_MDU541_00034 | G89: Coincident
A90: ED_MDU541_00035 | E90: Adjustments - Embedded generation | F90: MW | G90: Non-Coincident
A91: ED_MDU541_00036 | G91: Coincident
A92: ED_MDU541_00037 | E92: Weather Corrected 10% POE | F92: MW | G92: Non-Coincident
A93: ED_MDU541_00038 | G93: Coincident
A94: ED_MDU541_00039 | E94: Weather Corrected MD 10% POE | F94: MVA | G94: Non-Coincident
A95: ED_MDU541_00040 | G95: Coincident
A96: ED_MDU541_00041 | E96: Weather Corrected MD 50% POE | F96: MW | G96: Non-Coincident
A97: ED_MDU541_00042 | G97: Coincident
A98: ED_MDU541_00043 | E98: Weather Corrected MD 50% POE | F98: MVA | G98: Non-Coincident
A99: ED_MDU541_00044 | G99: Coincident
A100: ED_MDU541_00023 | D100: <Enter substation name> | E100: Substation Rating | F100: MVA | G100: Non-Coincident
A101: ED_MDU541_00024 | G101: Coincident
A102: ED_MDU541_00025 | E102: Raw Adjusted MD | F102: MW | G102: Non-Coincident
A103: ED_MDU541_00026 | G103: Coincident
A104: ED_MDU541_00027 | E104: Raw Adjusted MD | F104: MVA | G104: Non-Coincident
A105: ED_MDU541_00028 | G105: Coincident
A106: ED_MDU541_00029 | E106: Date MD occurred | G106: Non-Coincident
A107: ED_MDU541_00030 | G107: Coincident
A108: ED_MDU541_00031 | E108: Half hour time period MD occurred | G108: Non-Coincident
A109: ED_MDU541_00032 | G109: Coincident
A110: ED_MDU541_00033 | E110: Winter/Summer Peaking | G110: Non-Coincident
A111: ED_MDU541_00034 | G111: Coincident
A112: ED_MDU541_00035 | E112: Adjustments - Embedded generation | F112: MW | G112: Non-Coincident
A113: ED_MDU541_00036 | G113: Coincident
A114: ED_MDU541_00037 | E114: Weather Corrected 10% POE | F114: MW | G114: Non-Coincident
A115: ED_MDU541_00038 | G115: Coincident
A116: ED_MDU541_00039 | E116: Weather Corrected MD 10% POE | F116: MVA | G116: Non-Coincident
A117: ED_MDU541_00040 | G117: Coincident
A118: ED_MDU541_00041 | E118: Weather Corrected MD 50% POE | F118: MW | G118: Non-Coincident
A119: ED_MDU541_00042 | G119: Coincident
A120: ED_MDU541_00043 | E120: Weather Corrected MD 50% POE | F120: MVA | G120: Non-Coincident
A121: ED_MDU541_00044 | G121: Coincident
A122: ED_MDU541_00023 | D122: <Enter substation name> | E122: Substation Rating | F122: MVA | G122: Non-Coincident
A123: ED_MDU541_00024 | G123: Coincident
A124: ED_MDU541_00025 | E124: Raw Adjusted MD | F124: MW | G124: Non-Coincident
A125: ED_MDU541_00026 | G125: Coincident
A126: ED_MDU541_00027 | E126: Raw Adjusted MD | F126: MVA | G126: Non-Coincident
A127: ED_MDU541_00028 | G127: Coincident
A128: ED_MDU541_00029 | E128: Date MD occurred | G128: Non-Coincident
A129: ED_MDU541_00030 | G129: Coincident
A130: ED_MDU541_00031 | E130: Half hour time period MD occurred | G130: Non-Coincident
A131: ED_MDU541_00032 | G131: Coincident
A132: ED_MDU541_00033 | E132: Winter/Summer Peaking | G132: Non-Coincident
A133: ED_MDU541_00034 | G133: Coincident
A134: ED_MDU541_00035 | E134: Adjustments - Embedded generation | F134: MW | G134: Non-Coincident
A135: ED_MDU541_00036 | G135: Coincident
A136: ED_MDU541_00037 | E136: Weather Corrected 10% POE | F136: MW | G136: Non-Coincident
A137: ED_MDU541_00038 | G137: Coincident
A138: ED_MDU541_00039 | E138: Weather Corrected MD 10% POE | F138: MVA | G138: Non-Coincident
A139: ED_MDU541_00040 | G139: Coincident
A140: ED_MDU541_00041 | E140: Weather Corrected MD 50% POE | F140: MW | G140: Non-Coincident
A141: ED_MDU541_00042 | G141: Coincident
A142: ED_MDU541_00043 | E142: Weather Corrected MD 50% POE | F142: MVA | G142: Non-Coincident
A143: ED_MDU541_00044 | G143: Coincident
A144: ED_MDU541_00023 | D144: <Enter substation name> | E144: Substation Rating | F144: MVA | G144: Non-Coincident
A145: ED_MDU541_00024 | G145: Coincident
A146: ED_MDU541_00025 | E146: Raw Adjusted MD | F146: MW | G146: Non-Coincident
A147: ED_MDU541_00026 | G147: Coincident
A148: ED_MDU541_00027 | E148: Raw Adjusted MD | F148: MVA | G148: Non-Coincident
A149: ED_MDU541_00028 | G149: Coincident
A150: ED_MDU541_00029 | E150: Date MD occurred | G150: Non-Coincident
A151: ED_MDU541_00030 | G151: Coincident
A152: ED_MDU541_00031 | E152: Half hour time period MD occurred | G152: Non-Coincident
A153: ED_MDU541_00032 | G153: Coincident
A154: ED_MDU541_00033 | E154: Winter/Summer Peaking | G154: Non-Coincident
A155: ED_MDU541_00034 | G155: Coincident
A156: ED_MDU541_00035 | E156: Adjustments - Embedded generation | F156: MW | G156: Non-Coincident
A157: ED_MDU541_00036 | G157: Coincident
A158: ED_MDU541_00037 | E158: Weather Corrected 10% POE | F158: MW | G158: Non-Coincident
A159: ED_MDU541_00038 | G159: Coincident
A160: ED_MDU541_00039 | E160: Weather Corrected MD 10% POE | F160: MVA | G160: Non-Coincident
A161: ED_MDU541_00040 | G161: Coincident
A162: ED_MDU541_00041 | E162: Weather Corrected MD 50% POE | F162: MW | G162: Non-Coincident
A163: ED_MDU541_00042 | G163: Coincident
A164: ED_MDU541_00043 | E164: Weather Corrected MD 50% POE | F164: MVA | G164: Non-Coincident
A165: ED_MDU541_00044 | G165: Coincident
A166: ED_MDU541_00023 | D166: <Enter substation name> | E166: Substation Rating | F166: MVA | G166: Non-Coincident
A167: ED_MDU541_00024 | G167: Coincident
A168: ED_MDU541_00025 | E168: Raw Adjusted MD | F168: MW | G168: Non-Coincident
A169: ED_MDU541_00026 | G169: Coincident
A170: ED_MDU541_00027 | E170: Raw Adjusted MD | F170: MVA | G170: Non-Coincident
A171: ED_MDU541_00028 | G171: Coincident
A172: ED_MDU541_00029 | E172: Date MD occurred | G172: Non-Coincident
A173: ED_MDU541_00030 | G173: Coincident
A174: ED_MDU541_00031 | E174: Half hour time period MD occurred | G174: Non-Coincident
A175: ED_MDU541_00032 | G175: Coincident
A176: ED_MDU541_00033 | E176: Winter/Summer Peaking | G176: Non-Coincident
A177: ED_MDU541_00034 | G177: Coincident
A178: ED_MDU541_00035 | E178: Adjustments - Embedded generation | F178: MW | G178: Non-Coincident
A179: ED_MDU541_00036 | G179: Coincident
A180: ED_MDU541_00037 | E180: Weather Corrected 10% POE | F180: MW | G180: Non-Coincident
A181: ED_MDU541_00038 | G181: Coincident
A182: ED_MDU541_00039 | E182: Weather Corrected MD 10% POE | F182: MVA | G182: Non-Coincident
A183: ED_MDU541_00040 | G183: Coincident
A184: ED_MDU541_00041 | E184: Weather Corrected MD 50% POE | F184: MW | G184: Non-Coincident
A185: ED_MDU541_00042 | G185: Coincident
A186: ED_MDU541_00043 | E186: Weather Corrected MD 50% POE | F186: MVA | G186: Non-Coincident
A187: ED_MDU541_00044 | G187: Coincident
A188: ED_MDU541_00023 | D188: <Enter substation name> | E188: Substation Rating | F188: MVA | G188: Non-Coincident
A189: ED_MDU541_00024 | G189: Coincident
A190: ED_MDU541_00025 | E190: Raw Adjusted MD | F190: MW | G190: Non-Coincident
A191: ED_MDU541_00026 | G191: Coincident
A192: ED_MDU541_00027 | E192: Raw Adjusted MD | F192: MVA | G192: Non-Coincident
A193: ED_MDU541_00028 | G193: Coincident
A194: ED_MDU541_00029 | E194: Date MD occurred | G194: Non-Coincident
A195: ED_MDU541_00030 | G195: Coincident
A196: ED_MDU541_00031 | E196: Half hour time period MD occurred | G196: Non-Coincident
A197: ED_MDU541_00032 | G197: Coincident
A198: ED_MDU541_00033 | E198: Winter/Summer Peaking | G198: Non-Coincident
A199: ED_MDU541_00034 | G199: Coincident
A200: ED_MDU541_00035 | E200: Adjustments - Embedded generation | F200: MW | G200: Non-Coincident
A201: ED_MDU541_00036 | G201: Coincident
A202: ED_MDU541_00037 | E202: Weather Corrected 10% POE | F202: MW | G202: Non-Coincident
A203: ED_MDU541_00038 | G203: Coincident
A204: ED_MDU541_00039 | E204: Weather Corrected MD 10% POE | F204: MVA | G204: Non-Coincident
... 10810 more rows

Sheet 6.2 Reliability & Cust serv
C1: =SheetHeader -> REGULATORY REPORTING STATEMENT
C2: =dms_TradingName -> AusNet (D)
C3: =FRCP_span -> 2016 to 2020
C4: 6.2 RELIABILITY AND CUSTOMER SERVICE PERFORMANCE
C8: Instructions
C9: This regulatory template requires the input of performance Historicals and proposed targets for the forthcoming regulatory control period under the STPIS.
C10: Performance targets for some parameters may cross feeder classifications in tables 6.2.1, 6.2.2 and 6.2.3. However, where a single target for the whole network is prescribed, this should be entered in the "whole network (system)" cell. DNSPs must define each of the parameters which apply to it. If common definitions exist for the parameter, please attach a reference to the definition.
C11: DNSPs should insert "n/a" against parameters which do not apply to it. Do not delete inapplicable fields.
C12: If parts of this template are unsuitable to record any of the requested information, the DNSP must provide this information in an alternative format, within it's accompanying regulatory proposal and indicate the section of the regulatory proposal containing the information in the 'addressed at chapter/section of regulatory proposal' column.
C13: The DNSP must provide detail of historical unplanned minutes off supply, unplanned interruptions, momentary interruptions, customer numbers and customer service in accordance with tables 6.2.1, 6.2.2, 6.2.4 and 6.2.5. Table 6.2.3 is not compulsory - those businesses who want to include MAIFI in the s-factor calcuation may make such a proposal and submit the relevant MAIFI information necessary to establish the MAIFI targets, including the estimated performance for 2015.
C14: Definitions of parameters under the AER's STPIS apply. Where exclusions apply, data provided below must exclude all events outlined under clause 3.3 of the AER's STPIS.
C18: TABLE 6.2.1 - UNPLANNED MINUTES OFF SUPPLY (SAIDI) - Historical, TARGET AND PROPOSED RELIABILTY
E20: Historical | J20: Target | K20: Proposed target
C21: SAIDI | E21: =PRCP_y5 -> 2010 | F21: =CRCP -> 2011 | G21: 2012 | H21: 2013 | I21: 2014 | J21: 2015 | K21: =FRCP -> 2016 | L21: 2017 | M21: 2018 | N21: 2019 | O21: 2020
A22: ED_REL621_00001 | C22: Total sustained minutes off supply | D22: CBD | J22: 0
A23: ED_REL621_00002 | D23: Urban | J23: 0
A24: ED_REL621_00003 | D24: Short rural | J24: 0
A25: ED_REL621_00004 | D25: Long rural | J25: 0
D26: Total | E26: =IFERROR((E22*(E$87/E$91))+(E23*(E$88/E$91))+(E24*(E$89/E$91))+(E25*(E$90/E$91)),"") ->  | F26: =IFERROR((F22*(F$87/F$91))+(F23*(F$88/F$91))+(F24*(F$89/F$91))+(F25*(F$90/F$91)),"") ->  | G26: =IFERROR((G22*(G$87/G$91))+(G23*(G$88/G$91))+(G24*(G$89/G$91))+(G25*(G$90/G$91)),"") ->  | J26: 0 | K26: 0 | L26: 0 | M26: 0 | N26: 0 | O26: 0
A27: ED_REL621_00006 | C27: Total value of excluded events* *see 3.3 of STPIS | D27: CBD | J27: 0
A28: ED_REL621_00007 | D28: Urban | J28: 0
A29: ED_REL621_00008 | D29: Short rural | J29: 0
A30: ED_REL621_00009 | D30: Long rural | J30: 0
D31: Total | E31: =IFERROR((E27*(E$87/E$91))+(E28*(E$88/E$91))+(E29*(E$89/E$91))+(E30*(E$90/E$91)),"") ->  | F31: =IFERROR((F27*(F$87/F$91))+(F28*(F$88/F$91))+(F29*(F$89/F$91))+(F30*(F$90/F$91)),"") ->  | G31: =IFERROR((G27*(G$87/G$91))+(G28*(G$88/G$91))+(G29*(G$89/G$91))+(G30*(G$90/G$91)),"") ->  | J31: 0 | K31: 0 | L31: 0 | M31: 0 | N31: 0 | O31: 0
A32: ED_REL621_00011 | C32: Total sustained minutes off supply after removing excluded events | D32: CBD | J32: 0 | K32: 0 | L32: 0 | M32: 0 | N32: 0 | O32: 0
A33: ED_REL621_00012 | D33: Urban | J33: 101.803 | K33: 82.632 | L33: 82.632 | M33: 82.632 | N33: 82.632 | O33: 82.632
A34: ED_REL621_00013 | D34: Short rural | J34: 208.542 | K34: 192.647 | L34: 192.647 | M34: 192.647 | N34: 192.647 | O34: 192.647
A35: ED_REL621_00014 | D35: Long rural | J35: 256.578 | K35: 242.154 | L35: 242.154 | M35: 242.154 | N35: 242.154 | O35: 242.154
D36: Total | E36: =IFERROR(E26-E31,"") ->  | F36: =IFERROR(F26-F31,"") ->  | G36: =IFERROR(G26-G31,"") ->  | J36: 0 | K36: 0 | L36: 0 | M36: 0 | N36: 0 | O36: 0
C39: TABLE 6.2.2 - UNPLANNED INTERRUPTIONS TO SUPPLY (SAIFI) - Historical, TARGET AND PROPOSED RELIABILITY
E41: Historical | J41: Target | K41: Proposed target
C42: SAIFI | E42: =PRCP_y5 -> 2010 | F42: =CRCP -> 2011 | G42: 2012 | H42: 2013 | I42: 2014 | J42: 2015 | K42: =FRCP -> 2016 | L42: 2017 | M42: 2018 | N42: 2019 | O42: 2020
A43: ED_REL622_00001 | C43: Total sustained customer interruptions | D43: CBD | J43: 0
A44: ED_REL622_00002 | D44: Urban | J44: 0
A45: ED_REL622_00003 | D45: Short rural | J45: 0
A46: ED_REL622_00004 | D46: Long rural | J46: 0
D47: Total | E47: =IFERROR((E43*(E$87/E$91))+(E44*(E$88/E$91))+(E45*(E$89/E$91))+(E46*(E$90/E$91)),"") ->  | F47: =IFERROR((F43*(F$87/F$91))+(F44*(F$88/F$91))+(F45*(F$89/F$91))+(F46*(F$90/F$91)),"") ->  | G47: =IFERROR((G43*(G$87/G$91))+(G44*(G$88/G$91))+(G45*(G$89/G$91))+(G46*(G$90/G$91)),"") ->  | J47: 0 | K47: 0 | L47: 0 | M47: 0 | N47: 0 | O47: 0
A48: ED_REL622_00006 | C48: Total value of excluded events* *see 3.3 of STPIS | D48: CBD | J48: 0
A49: ED_REL622_00007 | D49: Urban | J49: 0
A50: ED_REL622_00008 | D50: Short rural | J50: 0
A51: ED_REL622_00009 | D51: Long rural | J51: 0
D52: Total | E52: =IFERROR((E48*(E$87/E$91))+(E49*(E$88/E$91))+(E50*(E$89/E$91))+(E51*(E$90/E$91)),"") ->  | F52: =IFERROR((F48*(F$87/F$91))+(F49*(F$88/F$91))+(F50*(F$89/F$91))+(F51*(F$90/F$91)),"") ->  | G52: =IFERROR((G48*(G$87/G$91))+(G49*(G$88/G$91))+(G50*(G$89/G$91))+(G51*(G$90/G$91)),"") ->  | J52: 0 | K52: 0 | L52: 0 | M52: 0 | N52: 0 | O52: 0
A53: ED_REL622_00011 | C53: Total sustained customer interruptions after removing excluded events | D53: CBD | J53: 0 | K53: 0 | L53: 0 | M53: 0 | N53: 0 | O53: 0
A54: ED_REL622_00012 | D54: Urban | J54: 1.448 | K54: 1.226 | L54: 1.226 | M54: 1.226 | N54: 1.226 | O54: 1.226
A55: ED_REL622_00013 | D55: Short rural | J55: 2.632 | K55: 2.416 | L55: 2.416 | M55: 2.416 | N55: 2.416 | O55: 2.416
A56: ED_REL622_00014 | D56: Long rural | J56: 3.317 | K56: 3.051 | L56: 3.051 | M56: 3.051 | N56: 3.051 | O56: 3.051
D57: Total | E57: =IFERROR(E47-E52,"") ->  | F57: =IFERROR(F47-F52,"") ->  | G57: =IFERROR(G47-G52,"") ->  | J57: 0 | K57: 0 | L57: 0 | M57: 0 | N57: 0 | O57: 0
C60: Table 6.2.3 - Unplanned momentary interruptions to supply (MAIFI) - Historical, target and proposed reliability
E62: Historical | J62: Estimate | K62: Proposed target
C63: MAIFI | E63: =PRCP_y5 -> 2010 | F63: =CRCP -> 2011 | G63: 2012 | H63: 2013 | I63: 2014 | J63: 2015 | K63: =FRCP -> 2016 | L63: 2017 | M63: 2018 | N63: 2019 | O63: 2020
A64: ED_REL623_00001 | C64: Total sustained customer interruptions | D64: CBD
A65: ED_REL623_00002 | D65: Urban
A66: ED_REL623_00003 | D66: Short rural
A67: ED_REL623_00004 | D67: Long rural
A68: ED_REL623_00005 | D68: Total
A69: ED_REL623_00006 | C69: Total value of excluded events* *see 3.3 of STPIS | D69: CBD
A70: ED_REL623_00007 | D70: Urban
A71: ED_REL623_00008 | D71: Short rural
A72: ED_REL623_00009 | D72: Long rural
A73: ED_REL623_00010 | D73: Total
A74: ED_REL623_00011 | C74: Total sustained customer interruptions after removing excluded events | D74: CBD | E74: 0 | F74: 0 | G74: 0 | H74: 0 | I74: 0 | J74: 0 | K74: 0 | L74: 0 | M74: 0 | N74: 0 | O74: 0
A75: ED_REL623_00012 | D75: Urban | E75: 2.906 | F75: 3.148 | G75: 2.697 | H75: 2.785 | I75: 2.458 | J75: 2.512 | K75: 2.799 | L75: 2.799 | M75: 2.799 | N75: 2.799 | O75: 2.799
A76: ED_REL623_00013 | D76: Short rural | E76: 6.135 | F76: 5.668 | G76: 5.74 | H76: 5.659 | I76: 5.95 | J76: 5.409 | K76: 5.83 | L76: 5.83 | M76: 5.83 | N76: 5.83 | O76: 5.83
A77: ED_REL623_00014 | D77: Long rural | E77: 12.168 | F77: 12.168 | G77: 10.58 | H77: 9.925 | I77: 12.059 | J77: 8.924 | K77: 11.38 | L77: 11.38 | M77: 11.38 | N77: 11.38 | O77: 11.38
A78: ED_REL623_00015 | D78: Total
C81: TABLE 6.2.4 - CUSTOMER NUMBERS
C83: The number of distribution customers is calculated as the average of the number of customers at the beginning of the reporting period and the number of customers at the end of the reporting period.
E85: Historical | J85: Estimate | K85: Forecast
C86: Average customer numbers | E86: =PRCP_y5 -> 2010 | F86: =CRCP -> 2011 | G86: 2012 | H86: 2013 | I86: 2014 | J86: 2015 | K86: =FRCP -> 2016 | L86: 2017 | M86: 2018 | N86: 2019 | O86: 2020
A87: ED_REL624_00001 | D87: CBD | J87: ='3.4 Operational data'!E56 -> 0 | K87: ='3.4 Operational data'!F56 -> 0 | L87: ='3.4 Operational data'!G56 -> 0 | M87: ='3.4 Operational data'!H56 -> 0 | N87: ='3.4 Operational data'!I56 -> 0 | O87: ='3.4 Operational data'!J56 -> 0
A88: ED_REL624_00002 | D88: Urban | J88: ='3.4 Operational data'!E57 -> 302698.0134 | K88: ='3.4 Operational data'!F57 -> 308454.2558 | L88: ='3.4 Operational data'!G57 -> 313918.8948 | M88: ='3.4 Operational data'!H57 -> 319414.2705 | N88: ='3.4 Operational data'!I57 -> 324826.356 | O88: ='3.4 Operational data'!J57 -> 330111.0238
A89: ED_REL624_00003 | D89: Short rural | J89: ='3.4 Operational data'!E58 -> 258338.328 | K89: ='3.4 Operational data'!F58 -> 263251.0066 | L89: ='3.4 Operational data'!G58 -> 267914.8156 | M89: ='3.4 Operational data'!H58 -> 272604.8568 | N89: ='3.4 Operational data'!I58 -> 277223.8138 | O89: ='3.4 Operational data'!J58 -> 281734.026
A90: ED_REL624_00004 | D90: Long rural | J90: ='3.4 Operational data'!E59 -> 118499.8827 | K90: ='3.4 Operational data'!F59 -> 120753.3301 | L90: ='3.4 Operational data'!G59 -> 122892.621 | M90: ='3.4 Operational data'!H59 -> 125043.9446 | N90: ='3.4 Operational data'!I59 -> 127162.6618 | O90: ='3.4 Operational data'!J59 -> 129231.4977
D91: Total | E91: =SUM(E87:E90) -> 0 | F91: =SUM(F87:F90) -> 0 | G91: 0 | H91: 0 | I91: 0 | J91: 679536.2241 | K91: 692458.5926 | L91: 704726.3313 | M91: 717063.0719 | N91: 729212.8317 | O91: 741076.5474
C93: TABLE 6.2.5 - CUSTOMER SERVICE
C95: The AER's definition of calls answered within 30 seconds is as follows: Calls to the fault line answered in 30 seconds where the time to answer a call is measured from when the call enters the telephone system of the call centre (including that time when it may be ringing unanswered by any response) and the caller speaks with a human operator, but excluding the time that the caller is connected to an automated interactive service that provides substantive information. This measure does not apply to: - calls to payment lines and automated interactive services; - calls abandoned by the customer within 30 seconds of the call being queued for response by a human operator. Where the time in which a telephone call is abandoned is not measured, then an estimate of the number of calls abandoned within 30 seconds will be determined by taking 20 per cent of all calls abandoned. Note: Being placed in a queuing system (automated or otherwise) does not constitute a response. 'Calls answered within 30 seconds' and 'Calls received' should be calculated excluding calls abandoned within 30 seconds of being queued for a human operator; and calls to payment lines and automated interactive services.
E97: Historical | J97: Target | K97: Proposed target
C98: Customer service | E98: =PRCP_y5 -> 2010 | F98: =CRCP -> 2011 | G98: 2012 | H98: 2013 | I98: 2014 | J98: 2015 | K98: =FRCP -> 2016 | L98: 2017 | M98: 2018 | N98: 2019 | O98: 2020
A99: ED_REL625_00001 | C99: Number of calls received | J99: 126244 | K99: 128276 | L99: 130342 | M99: 132440 | N99: 134572 | O99: 136739
A100: ED_REL625_00002 | C100: Number of calls answered within 30 seconds | J100: 97839 | K100: 99413 | L100: 101015 | M100: 102641 | N100: 104293 | O100: 105972
A101: ED_REL625_00003 | C101: Percentage of calls answered within 30 seconds | E101: =IFERROR((E100/E99),"") ->  | F101: =IFERROR((F100/F99),"") ->  | G101: =IFERROR((G100/G99),"") ->  | J101: 0.7749992079 | K101: 0.7749929839 | L101: 0.7749996164 | M101: 0.775 | N101: 0.7749977707 | O101: 0.7749946979

Sheet 6.4 Historical MEDs (hidden)
B1: =SheetHeader -> REGULATORY REPORTING STATEMENT
B2: =dms_TradingName -> AusNet (D)
B3: =FRCP_span -> 2016 to 2020
B4: 6.4 HISTORICAL MAJOR EVENT DAY
B6: =CONCATENATE("Instructions This regulatory template requires the input of historical daily performance data for the calculation of the major event day (MED) boundaries for the regulatory years ", PRCP_y5, " to ", CRCP_y4, ". The MED boundary is calculated at the end of each reporting period (typically one regulatory year) for use during the next reporting period. The MED boundary is calculated from the daily unplanned SAIDI over five sequential regulatory", " years ending on the last day of the last complete reporting period — these values should reflect any exclusions permitted under clause 3.3(a) and 5.4 of the scheme.", " Note: The AER started collecting the historical daily performance data", " in the 2012-13 annual RINs and therefore will not seek to collect this data in future Reset RINs. However, the daily performance data collected in table 6.4.1 below is for the required period up to 2013.") -> Instructions This regulatory template requires the input of historical daily performance data for the calculation of the major event day (MED) boundaries for the regulatory years 2010 to 2014. The MED boundary is calculated at the end of each reporting period (typically one regulatory year) for use during the next reporting period. The MED boundary is calculated from the daily unplanned SAIDI over five sequential regulatory years ending on the last day of the last complete reporting period — these values should reflect any exclusions permitted under clause 3.3(a) and 5.4 of the scheme. Note: The AER started collecting the historical daily performance data in the 2012-13 annual RINs and therefore will not seek to collect this data in future Reset RINs. However, the daily performance data collected in table 6.4.1 below is for the required period up to 2013.
B8: TABLE 6.4.1 - HISTORICAL DAILY SAIDI
B10: Date | C10: Network SAIDI (after removing the impact of events excluded under 3.3(a))
B11: =DATE((PRCP_y1-1), 1,1) -> 2005-01-01
B12: =B11+1 -> 2005-01-02
B13: =B12+1 -> 2005-01-03
B14: =B13+1 -> 2005-01-04
B15: 2005-01-05
B16: 2005-01-06
B17: 2005-01-07
B18: 2005-01-08
B19: 2005-01-09
B20: 2005-01-10
B21: 2005-01-11
B22: 2005-01-12
B23: 2005-01-13
B24: 2005-01-14
B25: 2005-01-15
B26: 2005-01-16
B27: 2005-01-17
B28: 2005-01-18
B29: 2005-01-19
B30: 2005-01-20
B31: 2005-01-21
B32: 2005-01-22
B33: 2005-01-23
B34: 2005-01-24
B35: 2005-01-25
B36: 2005-01-26
B37: 2005-01-27
B38: 2005-01-28
B39: 2005-01-29
B40: 2005-01-30
B41: 2005-01-31
B42: 2005-02-01
B43: 2005-02-02
B44: 2005-02-03
B45: 2005-02-04
B46: 2005-02-05
B47: 2005-02-06
B48: 2005-02-07
B49: 2005-02-08
B50: 2005-02-09
B51: 2005-02-10
B52: 2005-02-11
B53: 2005-02-12
B54: 2005-02-13
B55: 2005-02-14
B56: 2005-02-15
B57: 2005-02-16
B58: 2005-02-17
B59: 2005-02-18
B60: 2005-02-19
B61: 2005-02-20
B62: 2005-02-21
B63: 2005-02-22
B64: 2005-02-23
B65: 2005-02-24
B66: 2005-02-25
B67: 2005-02-26
B68: 2005-02-27
B69: 2005-02-28
B70: 2005-03-01
B71: 2005-03-02
B72: 2005-03-03
B73: 2005-03-04
B74: 2005-03-05
B75: 2005-03-06
B76: 2005-03-07
B77: 2005-03-08
B78: =B77+1 -> 2005-03-09
B79: 2005-03-10
B80: 2005-03-11
B81: 2005-03-12
B82: 2005-03-13
B83: 2005-03-14
B84: 2005-03-15
B85: 2005-03-16
B86: 2005-03-17
B87: 2005-03-18
B88: 2005-03-19
B89: 2005-03-20
B90: 2005-03-21
B91: 2005-03-22
B92: 2005-03-23
B93: 2005-03-24
B94: 2005-03-25
B95: 2005-03-26
B96: 2005-03-27
B97: 2005-03-28
B98: 2005-03-29
B99: 2005-03-30
B100: 2005-03-31
B101: 2005-04-01
B102: 2005-04-02
B103: 2005-04-03
B104: 2005-04-04
B105: 2005-04-05
B106: 2005-04-06
B107: 2005-04-07
B108: 2005-04-08
B109: 2005-04-09
B110: 2005-04-10
B111: 2005-04-11
B112: 2005-04-12
B113: 2005-04-13
B114: 2005-04-14
B115: 2005-04-15
B116: 2005-04-16
B117: 2005-04-17
B118: 2005-04-18
B119: 2005-04-19
B120: 2005-04-20
B121: 2005-04-21
B122: 2005-04-22
B123: 2005-04-23
B124: 2005-04-24
B125: 2005-04-25
B126: 2005-04-26
B127: 2005-04-27
B128: 2005-04-28
B129: 2005-04-29
B130: 2005-04-30
B131: 2005-05-01
B132: 2005-05-02
B133: 2005-05-03
B134: 2005-05-04
B135: 2005-05-05
B136: 2005-05-06
B137: 2005-05-07
B138: 2005-05-08
B139: 2005-05-09
B140: 2005-05-10
B141: 2005-05-11
B142: =B141+1 -> 2005-05-12
B143: 2005-05-13
B144: 2005-05-14
B145: 2005-05-15
B146: 2005-05-16
B147: 2005-05-17
B148: 2005-05-18
B149: 2005-05-19
B150: 2005-05-20
B151: 2005-05-21
B152: 2005-05-22
B153: 2005-05-23
B154: 2005-05-24
B155: 2005-05-25
B156: 2005-05-26
B157: 2005-05-27
B158: 2005-05-28
B159: 2005-05-29
B160: 2005-05-30
B161: 2005-05-31
B162: 2005-06-01
B163: 2005-06-02
B164: 2005-06-03
B165: 2005-06-04
B166: 2005-06-05
B167: 2005-06-06
B168: 2005-06-07
B169: 2005-06-08
B170: 2005-06-09
B171: 2005-06-10
B172: 2005-06-11
B173: 2005-06-12
B174: 2005-06-13
B175: 2005-06-14
B176: 2005-06-15
B177: 2005-06-16
B178: 2005-06-17
B179: 2005-06-18
B180: 2005-06-19
B181: 2005-06-20
B182: 2005-06-21
B183: 2005-06-22
B184: 2005-06-23
B185: 2005-06-24
B186: 2005-06-25
B187: 2005-06-26
B188: 2005-06-27
B189: 2005-06-28
B190: 2005-06-29
B191: 2005-06-30
B192: 2005-07-01
B193: 2005-07-02
B194: 2005-07-03
B195: 2005-07-04
B196: 2005-07-05
B197: 2005-07-06
B198: 2005-07-07
B199: 2005-07-08
B200: 2005-07-09
B201: 2005-07-10
B202: 2005-07-11
B203: 2005-07-12
... 3094 more rows

Sheet 7.2 Contingent projects
C1: =SheetHeader -> REGULATORY REPORTING STATEMENT
C2: =dms_TradingName -> AusNet (D)
C3: =FRCP_span -> 2016 to 2020
C4: 7.2 CONTINGENT PROJECTS
C6: TABLE 7.2.1 - PROPOSED CONTINGENT PROJECTS FOR THE FORTHCOMING REGULATORY CONTROL PERIOD
C8: Proposed contingent project name | D8: Proposed contingent capital expenditure ($0's, nominal) | E8: Proposed trigger events | F8: =CONCATENATE("Proposed annual revenue requirement for ", FRCP_y1, " ($0's, nominal)") -> Proposed annual revenue requirement for 2016 ($0's, nominal) | G8: =CONCATENATE("5% of the annual revenue requirement for ",FRCP_y1,"") -> 5% of the annual revenue requirement for 2016
A9: CON721_1 | C9: Installation of REFCLs contingent project - expenditure project to ensure polyphase electric line has the required capacity to reduce voltage in the event of a phase-to-ground fault | D9: 214000000 | E9: Limb 1: Legislation is assented to, or regulations are made or amended, or a regulatory instrument is made or amended, which gives effect to Recommendation 27 of the Victorian Bushfires Royal Commission, in part or in full. | F9: 584300000 | G9: =+F9*0.05 -> 29215000
A10: CON721_2 | E10: Limb 2: A regulatory instrument is made or amended (including the acceptance of AusNet Services’ bushfire mitigation plan by Energy Safe Victoria under Division 2A of Part 10 of the Electricity Safety Act 1998 (Vic)) which contains details of the plans and procedures (including details in relation to timing and location) by which AusNet Services will ensure polyphase electric line has the capacity required to reduce voltage in the event of a phase-to-ground fault. | F10: =+$F$9 -> 584300000 | G10: =+F10*0.05 -> 29215000
A11: CON721_3 | E11: Limb 3: Completion of project scope by AusNet Services which accurately identifies the scope of works and proposed costings for the contingent project. | F11: =+$F$9 -> 584300000 | G11: 29215000
A12: CON721_4 | F12: 584300000 | G12: 29215000
A13: CON721_5 | F13: 584300000 | G13: 29215000
A14: CON721_6 | F14: 584300000 | G14: 29215000
A15: CON721_7 | F15: 584300000 | G15: 29215000
A16: CON721_8 | F16: 584300000 | G16: 29215000
A17: CON721_9 | F17: 584300000 | G17: 29215000
A18: CON721_10 | F18: 584300000 | G18: 29215000
A19: CON721_11 | F19: 584300000 | G19: 29215000
A20: CON721_12 | F20: 584300000 | G20: 29215000
A21: CON721_13 | F21: 584300000 | G21: 29215000
A22: CON721_14 | F22: 584300000 | G22: 29215000
A23: CON721_15 | F23: 584300000 | G23: 29215000
A24: CON721_16 | F24: 584300000 | G24: 29215000
A25: CON721_17 | F25: 584300000 | G25: 29215000
A26: CON721_18 | F26: 584300000 | G26: 29215000
A27: CON721_19 | F27: 584300000 | G27: 29215000
A28: CON721_20 | F28: 584300000 | G28: 29215000
A29: CON721_21 | F29: 584300000 | G29: 29215000
A30: CON721_22 | F30: 584300000 | G30: 29215000
A31: CON721_23 | F31: 584300000 | G31: 29215000
A32: CON721_24 | F32: 584300000 | G32: 29215000
A33: CON721_25 | F33: 584300000 | G33: 29215000
A34: CON721_26 | F34: 584300000 | G34: 29215000
A35: CON721_27 | F35: 584300000 | G35: 29215000
A36: CON721_28 | F36: 584300000 | G36: 29215000
A37: CON721_29 | F37: 584300000 | G37: 29215000
A38: CON721_30 | F38: 584300000 | G38: 29215000
A39: CON721_31 | F39: 584300000 | G39: 29215000
A40: CON721_32 | F40: 584300000 | G40: 29215000
A41: CON721_33 | F41: 584300000 | G41: 29215000
A42: CON721_34 | F42: 584300000 | G42: 29215000
A43: CON721_35 | F43: 584300000 | G43: 29215000
A44: CON721_36 | F44: 584300000 | G44: 29215000
A45: CON721_37 | F45: 584300000 | G45: 29215000
A46: CON721_38 | F46: 584300000 | G46: 29215000

Sheet Unprotected Worksheet
